{"text_format":"1","workbook":"xlsx","n_sheets":16,"sheets":["2008 Dashboard","Fall 2008 Enrollment","Fall 2007 Enrollment","F02-08 Enrollment by AcadPlan","Calculation","Dashboard Scroll Data","Historic Deg Counts 2003 - 07","Scrap work","Fall 2008 Staff Totals","Dynamic Charts","NEEDS WORK - Retention","Combo boxes","Retention & Grad ScrapWork","Macro Scrapwork","Common Data Set 0809","Admissions"],"not_rendered":{"charts":50,"images":5,"macros":1,"external_links":0,"defined_names":6,"comments":0,"pivot_tables":0},"unopened":[],"bounds":{"document_bytes":16777216,"sheet_cells":100000,"rows_first":2000,"rows_last":500,"rows_between":2000,"halvings":0,"cell_chars":16384,"cell_head_chars":4096},"cells_cut":0,"cells_raw":0,"read":"whole","date_system":"1900"}

{"sheet":"2008 Dashboard","index":0,"n_rows":65,"n_cols":16,"rows_kept":65,"cut":false,"hidden":true,"merged":[[3,6,3,7],[3,9,3,10],[3,12,3,13],[3,15,3,16],[10,0,10,1]]}
["West Chester University Retention & Graduation Rates 2008"]
[]
[]
[null,null,null,null,null,null,"4th Fall",null,null,"5th Fall",null,null,"6th Fall",null,null,"7th Fall"]
[]
[]
["University Summary"]
[]
[null,null,"N","%","% Change"]
[]
["Total"]
[]
[]
[]
[]
[]
[]
["Admit Type"]
[]
[null,null,"N","%","% Change"]
[]
[]
[]
[]
[]
[]
[]
[]
["Student Ethnicity"]
[]
[null,null,"N","%","% Change"]
[]
[]
[]
[]
[]
[]
[]
[]
[]
["Gender"]
[]
[null,null,"N","%","% Change"]
[]
[]
[]
[]
[]
[]
[]
[]
["Tuition Residency"]
[]
[null,null,"N","%","% Change"]
[]
[]
[]
[]
[]
[]
[]
[]
["College"]
[]
[null,null,"N","%","% Change"]

{"sheet":"Fall 2008 Enrollment","index":1,"n_rows":133,"n_cols":16,"rows_kept":133,"cut":false,"hidden":true,"merged":[[118,12,118,13],[119,12,119,13],[120,12,120,13],[121,12,121,13],[113,12,113,13],[114,12,114,13],[115,12,115,13],[116,12,116,13],[117,12,117,13],[108,2,114,2],[108,3,108,4],[108,5,108,7],[109,5,109,7],[109,3,109,4],[110,5,110,7],[112,5,112,7],[107,3,107,4],[107,9,109,9],[114,10,114,11],[113,3,113,4],[113,5,113,7],[114,3,114,4],[114,5,114,7],[111,3,111,4],[110,3,110,4],[111,5,111,7],[112,3,112,4],[110,10,110,11],[117,3,117,4],[115,3,115,4],[120,2,120,4],[120,5,120,7],[119,2,119,4],[119,5,119,7],[118,3,118,4],[118,5,118,7],[117,5,117,7],[116,3,116,4],[115,5,115,7],[108,12,109,13],[110,12,110,13],[111,12,111,13],[128,9,129,9],[128,8,129,8],[121,9,121,11],[120,10,120,11],[111,10,111,11],[115,10,115,11],[112,10,112,11],[118,10,118,11],[113,10,113,11],[117,9,120,9],[117,10,117,11],[110,9,116,9],[112,12,112,13],[128,7,129,7],[3,10,4,10],[3,8,4,8],[107,5,107,7],[116,10,116,11],[116,5,116,7],[3,11,4,11],[3,12,4,12],[106,2,106,7],[106,9,106,14],[3,1,4,1],[3,13,4,13],[3,14,4,14],[0,0,1,16],[121,5,121,7],[121,2,121,4],[3,9,4,9],[3,2,4,2],[115,2,118,2],[108,14,109,14],[3,3,4,3],[119,10,119,11],[107,10,109,11],[107,12,107,13],[3,15,4,15],[3,4,4,4],[3,5,4,5],[3,6,4,6],[3,7,4,7]]}
["West Chester University's Total Enrollment Fall 2008"]
[]
[]
[null,"Student Level","N","Full-time","Part-time","Female","Male","African-American","Native-American","Asian","Latino","White","NRA","Unknown","Non-Resident PA","Resident"]
[null,null,null," Full-Time  "," Full-Time  "," Full-Time  "," Full-Time  "," Full-Time  "," Full-Time  "," Full-Time  "," Full-Time  "," Full-Time  "," Full-Time  "," Full-Time  "," Full-Time  "," Full-Time  "]
[null," First-time, First-year  ",2002,1993,9,1236,766,202,5,42,90,1646,5,12,294,1708]
[null," Other, First-year  ",943,901,42,510,433,116,6,17,23,777,2,2,116,827]
[null," Sophmore  ",2606,2523,83,1581,1025,226,6,51,77,2238,5,3,334,2272]
[null," Junior  ",2575,2396,179,1583,992,211,9,55,55,2241,4,0,304,2271]
[null," Senior  ",3002,2477,525,1848,1154,224,5,59,89,2610,13,2,296,2706]
[null," Non-degree UG**  ",356,52,304,220,136,18,3,7,7,304,1,16,13,343]
[null," Total Undergraduate  ",11484,10342,1142,6978,4506,997,34,231,341,9816,30,35,1357,10127]
[null," First-time Graduate Student  ",512,216,296,363,149,35,1,16,8,444,5,3,68,444]
[null," Graduate Student  ",1116,310,806,831,285,86,0,22,21,939,46,2,131,985]
[null," Non-degree Graduate**  ",509,89,420,357,152,22,1,17,5,455,6,3,20,489]
[null," Total Graduate  ",2137,615,1522,1551,586,143,2,55,34,1838,57,8,219,1918]
[null," Total University  ",13621,10957,2664,8529,5092,1140,36,286,375,11654,87,43,1576,12045]
[]
[]
[]
[]
[]
[]
[]
[]
[]
[]
[]
[]
[]
[]
[]
[]
[]
[]
[]
[]
[]
[]
[]
[]
[]
[]
[]
[]
[]
[]
[]
[]
[]
[]
[]
[]
[]
[]
[]
[]
[]
[]
[]
[]
[]
[]
[]
[]
[]
[]
[]
[]
[]
[]
[]
[]
[]
[]
[]
[]
[]
[]
[]
[]
[]
[]
[]
[]
[]
[]
[]
[]
[]
[]
[]
[]
[]
[]
[]
[]
[]
[]
[]
[]
[]
[]
[]
[]
[]
[null,null,"Percent Change of Total Enrollment from Fall 2007 to Fall 2008",null,null,null,null,null,null,"Difference in Headcount of African-Americans & Latinos from Fall 2007 to Fall 2008"]
[null,null,"Acad Career","Student Level",null,"Percent",null,null,null,"Acad Career","Student Level",null,"African-Americans",null,"Latinos"]
[null,null," Undergraduate  "," First-time, First-year  ",null,2.7163938036854599E-3,null,null,null,null,null,null,"N",null,"N"]
[null,null,null," Other, First-year  ",null,4.3315468761471188E-3]
[null,null,null," Sophmore  ",null,2.7898098524337389E-3,null,null,null," Undergraduate  "," First-time, First-year  ",null,11,null,28]
[null,null,null," Junior  ",null,4.4049629248954503E-4,null,null,null,null," Other, First-year  ",null,10,null,-11]
[null,null,null," Senior  ",null,1.9748917113280973E-2,null,null,null,null," Sophmore  ",null,1,null,22]
[null,null,null," Non-degree UG**  ",null,-2.7898098524337424E-3,null,null,null,null," Junior  ",null,3,null,-15]
[null,null,null," Total Undergraduate  ",null,2.7237354085603127E-2,null,null,null,null," Senior  ",null,-11,null,17]
[null,null," Graduate  "," First-time Graduate Student  ",null,1.1746567799721039E-3,null,null,null,null," Non-degree UG**  ",null,-4,null,-2]
[null,null,null," Graduate Student  ",null,4.1847147786506222E-3,null,null,null,null," Total Undergraduate  ",null,10,null,39]
[null,null,null," Non-degree Graduate**  ",null,-3.3771382424197943E-3,null,null,null," Graduate  "," First-time Graduate Student  ",null,-16,null,-3]
[null,null,null," Total Graduate  ",null,1.9822333162029249E-3,null,null,null,null," Graduate Student  ",null,27,null,7]
[null,null,"Total University",null,null,2.921958740180608E-2,null,null,null,null," Non-degree Graduate**  ",null,2,null,-1]
[null,null,null,null,null,null,null,null,null,null," Total Graduate  ",null,13,null,3]
[null,null,null,null,null,null,null,null,null,"Total University",null,null,23,null,42]
[]
[]
[]
[]
[]
[]
[null,null,null,null,null,null,null,"Student Level",2008,2007]
[]
[null,null,null,null,null,null,null," Total Undergraduate  ",11484,11113]
[null,null,null,null,null,null,null," Total Graduate  ",2137,2110]
[null,null,null,null,null,null,null," Total University  ",13621,13223]

{"sheet":"Fall 2007 Enrollment","index":2,"n_rows":17,"n_cols":18,"rows_kept":17,"cut":false,"hidden":true,"merged":[[0,0,1,17],[3,3,4,3],[3,4,4,4],[3,5,4,5],[3,6,4,6],[3,7,4,7],[3,14,4,14],[3,15,4,15],[3,13,4,13],[3,1,4,1],[3,8,4,8],[3,9,4,9],[3,10,4,10],[3,11,4,11],[3,12,4,12],[3,2,4,2]]}
["West Chester University's Total Enrollment Fall 2007"]
[]
[]
[null,"Student Level","N","Full-time","Part-time","Female","Male","African-American","Native-American","Asian","Latino","White","NRA","Unknown","Non-Resident PA","Resident"," "," "]
[null,null,null," Full-Time  "," Full-Time  "," Full-Time  "," Full-Time  "," Full-Time  "," Full-Time  "," Full-Time  "," Full-Time  "," Full-Time  "," Full-Time  "," Full-Time  "," Full-Time  "," Full-Time  "]
[null," First-time, First-year  ",1965,1957,8,1221,744,191,9,39,62,1662,1,1,303,1662]
[null," Other, First-year  ",884,851,33,483,401,106,2,17,34,723,2,0,116,768]
[null," Sophmore  ",2568,2483,85,1568,1000,225,7,49,55,2228,4,0,341,2227]
[null," Junior  ",2569,2363,206,1556,1013,208,7,45,70,2229,10,0,286,2283]
[null," Senior  ",2733,2259,474,1696,1037,235,6,64,72,2342,10,4,271,2462]
[null," Non-degree UG**  ",394,63,331,257,137,22,1,6,9,352,3,1,9,385]
[null," Total Undergraduate  ",11113,9976,1137,6781,4332,987,32,220,302,9536,30,6,1326,9787]
[null," First-time Graduate Student  ",496,221,275,364,132,51,0,9,11,398,26,1,81,415]
[null," Graduate Student  ",1059,293,766,794,265,59,1,26,14,916,42,1,134,925]
[null," Non-degree Graduate**  ",555,106,449,414,141,20,0,11,6,515,3,0,21,534]
[null," Total Graduate  ",2110,620,1490,1572,538,130,1,46,31,1829,71,2,236,1874]
[null," Total University  ",13223,10596,2627,8353,4870,1117,33,266,333,11365,101,8,1562,11661]

{"sheet":"F02-08 Enrollment by AcadPlan","index":3,"n_rows":352,"n_cols":12,"rows_kept":352,"cut":false,"hidden":true,"merged":[[13,3,13,4],[14,3,14,4],[15,3,15,4],[16,3,16,4],[31,3,31,4],[26,3,26,4],[27,3,27,4],[28,3,28,4],[29,3,29,4],[30,3,30,4],[0,0,1,11],[4,2,4,11],[22,2,22,11],[41,1,41,11],[24,3,24,4],[32,3,32,4],[33,3,33,4],[34,3,34,4],[6,3,6,4],[7,3,7,4],[8,3,8,4],[9,3,9,4],[10,3,10,4],[11,3,11,4],[25,3,25,4],[12,3,12,4]]}
["West Chester University's Total Enrollment by Academic Plan Fall 2002 - 2008"]
[]
[]
[]
[null,null,"Undergraduate Enrollment by Academic Plan Fall 2002 - 2008"]
[]
[null,null,{"$f":"C25","v":"College"},{"$f":"'Dashboard Scroll Data'!D5","v":"Descrip"},null,{"$f":"'Dashboard Scroll Data'!E5","v":"Fall 02"},{"$f":"'Dashboard Scroll Data'!F5","v":"Fall 03"},{"$f":"'Dashboard Scroll Data'!G5","v":"Fall 04"},{"$f":"'Dashboard Scroll Data'!H5","v":"Fall 05"},{"$f":"'Dashboard Scroll Data'!I5","v":"Fall 06"},{"$f":"'Dashboard Scroll Data'!J5","v":"Fall 07"},{"$f":"'Dashboard Scroll Data'!K5","v":"Fall 08"}]
[null,null,{"$f":"OFFSET('Dashboard Scroll Data'!C5, Calculation!$D$5, 0, 1, 1)","v":"CAS"},{"$f":"OFFSET('Dashboard Scroll Data'!D5, Calculation!$D$5, 0, 1, 1)","v":"A102 Anthropology BA"},null,{"$f":"OFFSET('Dashboard Scroll Data'!E5, Calculation!$D$5, 0)","v":33},{"$f":"OFFSET('Dashboard Scroll Data'!F5, Calculation!$D$5, 0)","v":33},{"$f":"OFFSET('Dashboard Scroll Data'!G5, Calculation!$D$5, 0)","v":29},{"$f":"OFFSET('Dashboard Scroll Data'!H5, Calculation!$D$5, 0)","v":29},{"$f":"OFFSET('Dashboard Scroll Data'!I5, Calculation!$D$5, 0)","v":31},0,{"$f":"OFFSET('Dashboard Scroll Data'!K5, Calculation!$D$5, 0)","v":39}]
[null,null,{"$f":"OFFSET('Dashboard Scroll Data'!C6, Calculation!$D$5, 0, 1, 1)","v":"CAS"},{"$f":"OFFSET('Dashboard Scroll Data'!D6, Calculation!$D$5, 0, 1, 1)","v":"A103 Anthropology-Sociology BA"},null,0,0,{"$f":"OFFSET('Dashboard Scroll Data'!G6, Calculation!$D$5, 0)","v":2},{"$f":"OFFSET('Dashboard Scroll Data'!H6, Calculation!$D$5, 0)","v":1},{"$f":"OFFSET('Dashboard Scroll Data'!I6, Calculation!$D$5, 0)","v":0},{"$f":"OFFSET('Dashboard Scroll Data'!J6, Calculation!$D$5, 0)","v":0},{"$f":"OFFSET('Dashboard Scroll Data'!K6, Calculation!$D$5, 0)","v":0}]
[null,null,{"$f":"OFFSET('Dashboard Scroll Data'!C7, Calculation!$D$5, 0, 1, 1)","v":"CAS"},{"$f":"OFFSET('Dashboard Scroll Data'!D7, Calculation!$D$5, 0, 1, 1)","v":"A185 Sociology BA"},null,0,0,{"$f":"OFFSET('Dashboard Scroll Data'!G7, Calculation!$D$5, 0)","v":81},{"$f":"OFFSET('Dashboard Scroll Data'!H7, Calculation!$D$5, 0)","v":77},{"$f":"OFFSET('Dashboard Scroll Data'!I7, Calculation!$D$5, 0)","v":94},{"$f":"OFFSET('Dashboard Scroll Data'!J7, Calculation!$D$5, 0)","v":92},{"$f":"OFFSET('Dashboard Scroll Data'!K7, Calculation!$D$5, 0)","v":92}]
[null,null,{"$f":"OFFSET('Dashboard Scroll Data'!C8, Calculation!$D$5, 0, 1, 1)","v":"CAS"},{"$f":"OFFSET('Dashboard Scroll Data'!D8, Calculation!$D$5, 0, 1, 1)","v":"E174 Social Studies: Anthropol BSED"},null,0,0,{"$f":"OFFSET('Dashboard Scroll Data'!G8, Calculation!$D$5, 0)","v":0},{"$f":"OFFSET('Dashboard Scroll Data'!H8, Calculation!$D$5, 0)","v":0},{"$f":"OFFSET('Dashboard Scroll Data'!I8, Calculation!$D$5, 0)","v":0},{"$f":"OFFSET('Dashboard Scroll Data'!J8, Calculation!$D$5, 0)","v":0},{"$f":"OFFSET('Dashboard Scroll Data'!K8, Calculation!$D$5, 0)","v":0}]
[null,null,{"$f":"OFFSET('Dashboard Scroll Data'!C9, Calculation!$D$5, 0, 1, 1)","v":"CAS"},{"$f":"OFFSET('Dashboard Scroll Data'!D9, Calculation!$D$5, 0, 1, 1)","v":"E182 Social Studies: Sociology BSED"},null,0,0,{"$f":"OFFSET('Dashboard Scroll Data'!G9, Calculation!$D$5, 0)","v":1},{"$f":"OFFSET('Dashboard Scroll Data'!H9, Calculation!$D$5, 0)","v":0},{"$f":"OFFSET('Dashboard Scroll Data'!I9, Calculation!$D$5, 0)","v":0},0,{"$f":"OFFSET('Dashboard Scroll Data'!K9, Calculation!$D$5, 0)","v":0}]
[null,null,{"$f":"OFFSET('Dashboard Scroll Data'!C10, Calculation!$D$5, 0, 1, 1)","v":"CAS"},{"$f":"OFFSET('Dashboard Scroll Data'!D10, Calculation!$D$5, 0, 1, 1)","v":"A104 Studio Arts BA"},null,0,0,{"$f":"OFFSET('Dashboard Scroll Data'!G10, Calculation!$D$5, 0)","v":0},{"$f":"OFFSET('Dashboard Scroll Data'!H10, Calculation!$D$5, 0)","v":0},{"$f":"OFFSET('Dashboard Scroll Data'!I10, Calculation!$D$5, 0)","v":0},{"$f":"OFFSET('Dashboard Scroll Data'!J10, Calculation!$D$5, 0)","v":0},{"$f":"OFFSET('Dashboard Scroll Data'!K10, Calculation!$D$5, 0)","v":0}]
[null,null,{"$f":"OFFSET('Dashboard Scroll Data'!C11, Calculation!$D$5, 0, 1, 1)","v":"CAS"},{"$f":"OFFSET('Dashboard Scroll Data'!D11, Calculation!$D$5, 0, 1, 1)","v":"F190 Studio Arts BFA"},null,0,0,{"$f":"OFFSET('Dashboard Scroll Data'!G11, Calculation!$D$5, 0)","v":0},{"$f":"OFFSET('Dashboard Scroll Data'!H11, Calculation!$D$5, 0)","v":0},{"$f":"OFFSET('Dashboard Scroll Data'!I11, Calculation!$D$5, 0)","v":0},{"$f":"OFFSET('Dashboard Scroll Data'!J11, Calculation!$D$5, 0)","v":0},{"$f":"OFFSET('Dashboard Scroll Data'!K11, Calculation!$D$5, 0)","v":0}]
[null,null,{"$f":"OFFSET('Dashboard Scroll Data'!C12, Calculation!$D$5, 0, 1, 1)","v":"CAS"},{"$f":"OFFSET('Dashboard Scroll Data'!D12, Calculation!$D$5, 0, 1, 1)","v":"A106 Biology BA"},null,0,0,{"$f":"OFFSET('Dashboard Scroll Data'!G12, Calculation!$D$5, 0)","v":19},0,{"$f":"OFFSET('Dashboard Scroll Data'!I12, Calculation!$D$5, 0)","v":23},{"$f":"OFFSET('Dashboard Scroll Data'!J12, Calculation!$D$5, 0)","v":21},0]
[null,null,{"$f":"OFFSET('Dashboard Scroll Data'!C13, Calculation!$D$5, 0, 1, 1)","v":"CAS"},{"$f":"OFFSET('Dashboard Scroll Data'!D13, Calculation!$D$5, 0, 1, 1)","v":"E106 Biology BSED"},null,0,0,{"$f":"OFFSET('Dashboard Scroll Data'!G13, Calculation!$D$5, 0)","v":28},{"$f":"OFFSET('Dashboard Scroll Data'!H13, Calculation!$D$5, 0)","v":37},{"$f":"OFFSET('Dashboard Scroll Data'!I13, Calculation!$D$5, 0)","v":48},{"$f":"OFFSET('Dashboard Scroll Data'!J13, Calculation!$D$5, 0)","v":37},{"$f":"OFFSET('Dashboard Scroll Data'!K13, Calculation!$D$5, 0)","v":36}]
[null,null,{"$f":"OFFSET('Dashboard Scroll Data'!C14, Calculation!$D$5, 0, 1, 1)","v":"CAS"},{"$f":"OFFSET('Dashboard Scroll Data'!D14, Calculation!$D$5, 0, 1, 1)","v":"S106 Biology BS"},null,{"$f":"OFFSET('Dashboard Scroll Data'!E14, Calculation!$D$5, 0)","v":120},{"$f":"OFFSET('Dashboard Scroll Data'!F14, Calculation!$D$5, 0)","v":117},{"$f":"OFFSET('Dashboard Scroll Data'!G14, Calculation!$D$5, 0)","v":106},{"$f":"OFFSET('Dashboard Scroll Data'!H14, Calculation!$D$5, 0)","v":121},{"$f":"OFFSET('Dashboard Scroll Data'!I14, Calculation!$D$5, 0)","v":135},{"$f":"OFFSET('Dashboard Scroll Data'!J14, Calculation!$D$5, 0)","v":170},{"$f":"OFFSET('Dashboard Scroll Data'!K14, Calculation!$D$5, 0)","v":200}]
[]
[]
[]
[]
[]
[null,null,"Graduate Enrollment by Academic Plan Fall 2002 - 2008"]
[]
[null,null,{"$f":"'Dashboard Scroll Data'!C184","v":"College"},{"$f":"'Dashboard Scroll Data'!D184","v":"Descrip"},null,{"$f":"'Dashboard Scroll Data'!E184","v":"Fall 02"},{"$f":"'Dashboard Scroll Data'!F184","v":"Fall 03"},{"$f":"'Dashboard Scroll Data'!G184","v":"Fall 04"},{"$f":"'Dashboard Scroll Data'!H184","v":"Fall 05"},{"$f":"'Dashboard Scroll Data'!I184","v":"Fall 06"},{"$f":"'Dashboard Scroll Data'!J184","v":"Fall 07"},{"$f":"'Dashboard Scroll Data'!K184","v":"Fall 08"}]
[null,null,{"$f":"OFFSET('Dashboard Scroll Data'!C184, Calculation!$D$13, 0, 1, 1)","v":"CAS"},{"$f":"OFFSET('Dashboard Scroll Data'!D184, Calculation!$D$13, 0, 1, 1)","v":"C204 Gerontology CERTIF"},null,{"$f":"OFFSET('Dashboard Scroll Data'!E184, Calculation!$D$13, 0, 1, 1)","v":1},{"$f":"OFFSET('Dashboard Scroll Data'!F184, Calculation!$D$13, 0, 1, 1)","v":2},{"$f":"OFFSET('Dashboard Scroll Data'!G184, Calculation!$D$13, 0, 1, 1)","v":2},{"$f":"OFFSET('Dashboard Scroll Data'!H184, Calculation!$D$13, 0, 1, 1)","v":0},{"$f":"OFFSET('Dashboard Scroll Data'!I184, Calculation!$D$13, 0, 1, 1)","v":0},{"$f":"OFFSET('Dashboard Scroll Data'!J184, Calculation!$D$13, 0, 1, 1)","v":0},{"$f":"OFFSET('Dashboard Scroll Data'!K184, Calculation!$D$13, 0, 1, 1)","v":1}]
[null,null,{"$f":"OFFSET('Dashboard Scroll Data'!C185, Calculation!$D$13, 0, 1, 1)","v":"CAS"},{"$f":"OFFSET('Dashboard Scroll Data'!D185, Calculation!$D$13, 0, 1, 1)","v":"S175 Long-Term Hlth Care MSA"},null,{"$f":"OFFSET('Dashboard Scroll Data'!E185, Calculation!$D$13, 0, 1, 1)","v":2},{"$f":"OFFSET('Dashboard Scroll Data'!F185, Calculation!$D$13, 0, 1, 1)","v":5},{"$f":"OFFSET('Dashboard Scroll Data'!G185, Calculation!$D$13, 0, 1, 1)","v":5},{"$f":"OFFSET('Dashboard Scroll Data'!H185, Calculation!$D$13, 0, 1, 1)","v":4},{"$f":"OFFSET('Dashboard Scroll Data'!I185, Calculation!$D$13, 0, 1, 1)","v":2},{"$f":"OFFSET('Dashboard Scroll Data'!J185, Calculation!$D$13, 0, 1, 1)","v":0},{"$f":"OFFSET('Dashboard Scroll Data'!K185, Calculation!$D$13, 0, 1, 1)","v":0}]
[null,null,{"$f":"OFFSET('Dashboard Scroll Data'!C186, Calculation!$D$13, 0, 1, 1)","v":"CAS"},{"$f":"OFFSET('Dashboard Scroll Data'!D186, Calculation!$D$13, 0, 1, 1)","v":"PG02 Biology PROF-GRW"},null,{"$f":"OFFSET('Dashboard Scroll Data'!E186, Calculation!$D$13, 0, 1, 1)","v":0},{"$f":"OFFSET('Dashboard Scroll Data'!F186, Calculation!$D$13, 0, 1, 1)","v":0},{"$f":"OFFSET('Dashboard Scroll Data'!G186, Calculation!$D$13, 0, 1, 1)","v":3},{"$f":"OFFSET('Dashboard Scroll Data'!H186, Calculation!$D$13, 0, 1, 1)","v":3},{"$f":"OFFSET('Dashboard Scroll Data'!I186, Calculation!$D$13, 0, 1, 1)","v":0},{"$f":"OFFSET('Dashboard Scroll Data'!J186, Calculation!$D$13, 0, 1, 1)","v":1},{"$f":"OFFSET('Dashboard Scroll Data'!K186, Calculation!$D$13, 0, 1, 1)","v":2}]
[null,null,{"$f":"OFFSET('Dashboard Scroll Data'!C187, Calculation!$D$13, 0, 1, 1)","v":"CAS"},{"$f":"OFFSET('Dashboard Scroll Data'!D187, Calculation!$D$13, 0, 1, 1)","v":"S173 Biology MS"},null,{"$f":"OFFSET('Dashboard Scroll Data'!E187, Calculation!$D$13, 0, 1, 1)","v":9},{"$f":"OFFSET('Dashboard Scroll Data'!F187, Calculation!$D$13, 0, 1, 1)","v":16},{"$f":"OFFSET('Dashboard Scroll Data'!G187, Calculation!$D$13, 0, 1, 1)","v":15},{"$f":"OFFSET('Dashboard Scroll Data'!H187, Calculation!$D$13, 0, 1, 1)","v":17},{"$f":"OFFSET('Dashboard Scroll Data'!I187, Calculation!$D$13, 0, 1, 1)","v":18},{"$f":"OFFSET('Dashboard Scroll Data'!J187, Calculation!$D$13, 0, 1, 1)","v":14},{"$f":"OFFSET('Dashboard Scroll Data'!K187, Calculation!$D$13, 0, 1, 1)","v":9}]
[null,null,{"$f":"OFFSET('Dashboard Scroll Data'!C188, Calculation!$D$13, 0, 1, 1)","v":"CAS"},{"$f":"OFFSET('Dashboard Scroll Data'!D188, Calculation!$D$13, 0, 1, 1)","v":"S174 Biology - Thesis MS"},null,{"$f":"OFFSET('Dashboard Scroll Data'!E188, Calculation!$D$13, 0, 1, 1)","v":11},{"$f":"OFFSET('Dashboard Scroll Data'!F188, Calculation!$D$13, 0, 1, 1)","v":7},{"$f":"OFFSET('Dashboard Scroll Data'!G188, Calculation!$D$13, 0, 1, 1)","v":8},{"$f":"OFFSET('Dashboard Scroll Data'!H188, Calculation!$D$13, 0, 1, 1)","v":6},{"$f":"OFFSET('Dashboard Scroll Data'!I188, Calculation!$D$13, 0, 1, 1)","v":8},{"$f":"OFFSET('Dashboard Scroll Data'!J188, Calculation!$D$13, 0, 1, 1)","v":18},{"$f":"OFFSET('Dashboard Scroll Data'!K188, Calculation!$D$13, 0, 1, 1)","v":17}]
[null,null,{"$f":"OFFSET('Dashboard Scroll Data'!C189, Calculation!$D$13, 0, 1, 1)","v":"CAS"},{"$f":"OFFSET('Dashboard Scroll Data'!D189, Calculation!$D$13, 0, 1, 1)","v":"S561 Biology - Natural Science MS"},null,{"$f":"OFFSET('Dashboard Scroll Data'!E189, Calculation!$D$13, 0, 1, 1)","v":1},{"$f":"OFFSET('Dashboard Scroll Data'!F189, Calculation!$D$13, 0, 1, 1)","v":0},{"$f":"OFFSET('Dashboard Scroll Data'!G189, Calculation!$D$13, 0, 1, 1)","v":0},{"$f":"OFFSET('Dashboard Scroll Data'!H189, Calculation!$D$13, 0, 1, 1)","v":0},{"$f":"OFFSET('Dashboard Scroll Data'!I189, Calculation!$D$13, 0, 1, 1)","v":0},{"$f":"OFFSET('Dashboard Scroll Data'!J189, Calculation!$D$13, 0, 1, 1)","v":0},{"$f":"OFFSET('Dashboard Scroll Data'!K189, Calculation!$D$13, 0, 1, 1)","v":0}]
[null,null,{"$f":"OFFSET('Dashboard Scroll Data'!C190, Calculation!$D$13, 0, 1, 1)","v":"CAS"},{"$f":"OFFSET('Dashboard Scroll Data'!D190, Calculation!$D$13, 0, 1, 1)","v":"T181 Biology TCHGCERT"},null,{"$f":"OFFSET('Dashboard Scroll Data'!E190, Calculation!$D$13, 0, 1, 1)","v":0},{"$f":"OFFSET('Dashboard Scroll Data'!F190, Calculation!$D$13, 0, 1, 1)","v":0},{"$f":"OFFSET('Dashboard Scroll Data'!G190, Calculation!$D$13, 0, 1, 1)","v":0},{"$f":"OFFSET('Dashboard Scroll Data'!H190, Calculation!$D$13, 0, 1, 1)","v":0},{"$f":"OFFSET('Dashboard Scroll Data'!I190, Calculation!$D$13, 0, 1, 1)","v":0},{"$f":"OFFSET('Dashboard Scroll Data'!J190, Calculation!$D$13, 0, 1, 1)","v":0},{"$f":"OFFSET('Dashboard Scroll Data'!K190, Calculation!$D$13, 0, 1, 1)","v":2}]
[null,null,{"$f":"OFFSET('Dashboard Scroll Data'!C191, Calculation!$D$13, 0, 1, 1)","v":"CAS"},{"$f":"OFFSET('Dashboard Scroll Data'!D191, Calculation!$D$13, 0, 1, 1)","v":"A105 Physical Science: Chemistry MA"},null,{"$f":"OFFSET('Dashboard Scroll Data'!E191, Calculation!$D$13, 0, 1, 1)","v":1},{"$f":"OFFSET('Dashboard Scroll Data'!F191, Calculation!$D$13, 0, 1, 1)","v":0},{"$f":"OFFSET('Dashboard Scroll Data'!G191, Calculation!$D$13, 0, 1, 1)","v":0},{"$f":"OFFSET('Dashboard Scroll Data'!H191, Calculation!$D$13, 0, 1, 1)","v":0},{"$f":"OFFSET('Dashboard Scroll Data'!I191, Calculation!$D$13, 0, 1, 1)","v":0},{"$f":"OFFSET('Dashboard Scroll Data'!J191, Calculation!$D$13, 0, 1, 1)","v":0},{"$f":"OFFSET('Dashboard Scroll Data'!K191, Calculation!$D$13, 0, 1, 1)","v":0}]
[null,null,{"$f":"OFFSET('Dashboard Scroll Data'!C192, Calculation!$D$13, 0, 1, 1)","v":"CAS"},{"$f":"OFFSET('Dashboard Scroll Data'!D192, Calculation!$D$13, 0, 1, 1)","v":"E104 Chemistry MED"},null,{"$f":"OFFSET('Dashboard Scroll Data'!E192, Calculation!$D$13, 0, 1, 1)","v":2},{"$f":"OFFSET('Dashboard Scroll Data'!F192, Calculation!$D$13, 0, 1, 1)","v":2},{"$f":"OFFSET('Dashboard Scroll Data'!G192, Calculation!$D$13, 0, 1, 1)","v":1},{"$f":"OFFSET('Dashboard Scroll Data'!H192, Calculation!$D$13, 0, 1, 1)","v":0},{"$f":"OFFSET('Dashboard Scroll Data'!I192, Calculation!$D$13, 0, 1, 1)","v":0},{"$f":"OFFSET('Dashboard Scroll Data'!J192, Calculation!$D$13, 0, 1, 1)","v":0},{"$f":"OFFSET('Dashboard Scroll Data'!K192, Calculation!$D$13, 0, 1, 1)","v":0}]
[null,null,{"$f":"OFFSET('Dashboard Scroll Data'!C193, Calculation!$D$13, 0, 1, 1)","v":"CAS"},{"$f":"OFFSET('Dashboard Scroll Data'!D193, Calculation!$D$13, 0, 1, 1)","v":"PG03 Chemistry PROF-GRW"},null,{"$f":"OFFSET('Dashboard Scroll Data'!E193, Calculation!$D$13, 0, 1, 1)","v":1},{"$f":"OFFSET('Dashboard Scroll Data'!F193, Calculation!$D$13, 0, 1, 1)","v":0},{"$f":"OFFSET('Dashboard Scroll Data'!G193, Calculation!$D$13, 0, 1, 1)","v":0},{"$f":"OFFSET('Dashboard Scroll Data'!H193, Calculation!$D$13, 0, 1, 1)","v":0},{"$f":"OFFSET('Dashboard Scroll Data'!I193, Calculation!$D$13, 0, 1, 1)","v":0},{"$f":"OFFSET('Dashboard Scroll Data'!J193, Calculation!$D$13, 0, 1, 1)","v":0},{"$f":"OFFSET('Dashboard Scroll Data'!K193, Calculation!$D$13, 0, 1, 1)","v":0}]
[]
[]
[]
[]
[]
[]
[]
[]
[]
[]
[null,null,"Level","College","Academic Plan","Fall 02","Fall 03","Fall 04","Fall 05","Fall 06","Fall 07","Fall 08"]
[null,null,"Undergrad","CAS","A102 Anthropology BA",33,33,29,29,31,42,39]
[null,null,"Undergrad","CAS","A103 Anthropology-Sociology BA",10,4,2,1,0,0,0]
[null,null,"Undergrad","CAS","A185 Sociology BA",99,97,81,77,94,92,92]
[null,null,"Undergrad","CAS","E174 Social Studies: Anthropol BSED",3,0,0,0,0,0,0]
[null,null,"Undergrad","CAS","E182 Social Studies: Sociology BSED",3,1,1,0,0,0,0]
[null,null,"Undergrad","CAS","A104 Studio Arts BA",31,32,0,0,0,0,0]
[null,null,"Undergrad","CAS","F190 Studio Arts BFA",194,192,0,0,0,0,0]
[null,null,"Undergrad","CAS","A106 Biology BA",16,15,19,18,23,21,17]
[null,null,"Undergrad","CAS","E106 Biology BSED",40,28,28,37,48,37,36]
[null,null,"Undergrad","CAS","S106 Biology BS",120,117,106,121,135,170,200]
[null,null,"Undergrad","CAS","S107 Biology: Microbiology BS",22,13,15,14,19,25,26]
[null,null,"Undergrad","CAS","S108 Biology: Ecology BS",24,29,26,23,14,12,23]
[null,null,"Undergrad","CAS","S109 Biology: Medical Technology BS",9,11,18,21,26,19,19]
[null,null,"Undergrad","CAS","S115 Biology: Cell & Molecular BS",48,49,50,35,31,32,33]
[null,null,"Undergrad","CAS","T193 Biology TCHGCERT",2,2,3,2,3,0,1]
[null,null,"Undergrad","CAS","E112 Chemistry BSED",8,10,14,14,18,19,20]
[null,null,"Undergrad","CAS","S111 Chemistry-Biology * BS",31,33,37,64,70,75,81]
[null,null,"Undergrad","CAS","S112 Chemistry BS",25,29,35,42,39,41,32]
[null,null,"Undergrad","CAS","S114 Biochemistry BS",5,14,21,23,24,21,26]
[null,null,"Undergrad","CAS","S129 Foren & Toxicol Chemistry BS",83,101,103,109,92,86,73]
[null,null,"Undergrad","CAS","T194 Chemistry TCHGCERT",2,3,4,3,1,1,2]
[null,null,"Undergrad","CAS","A188 Communication Studies BA",311,339,363,365,335,328,330]
[null,null,"Undergrad","CAS","E115 Communication-Comm/Tha BSED",12,16,13,15,8,8,3]
[null,null,"Undergrad","CAS","E118 Communication-Theatre/Med BSED",1,1,0,0,0,0,0]
[null,null,"Undergrad","CAS","E119 Communication - Media/Com BSED",1,0,1,0,0,1,1]
[null,null,"Undergrad","CAS","T195 Communication TCHGCERT",1,2,1,0,0,0,0]
[null,null,"Undergrad","CAS","T195 Communications TCHGCERT",0,0,0,0,0,0,1]
[null,null,"Undergrad","CAS","S118 Computer Science BS",188,175,138,113,107,107,110]
[null,null,"Undergrad","CAS","S311 Computer Science - Comp Sys BS",1,1,0,0,0,0,0]
[null,null,"Undergrad","CAS","A117 Comparative Literature BA",10,11,9,7,6,0,0]
[null,null,"Undergrad","CAS","A142 Literature BA",138,166,179,217,211,0,0]
[null,null,"Undergrad","CAS","A146 English BA",0,0,0,0,0,219,256]
[null,null,"Undergrad","CAS","E128 English BSED",128,138,148,179,180,196,203]
[null,null,"Undergrad","CAS","T199 English TCHGCERT",12,9,12,8,2,1,2]
[null,null,"Undergrad","CAS","E122 Earth-Space Science - Env BSED",4,2,0,0,0,0,0]
[null,null,"Undergrad","CAS","E123 Earth-Space Science BSED",15,20,33,34,29,25,21]
[null,null,"Undergrad","CAS","E124 Earth-Space Sci - Geology BSED",16,23,8,2,0,0,0]
[null,null,"Undergrad","CAS","E125 Earth-Space Science BSED",1,0,0,0,0,0,0]
[null,null,"Undergrad","CAS","S122 Geoscience - Earth Systems BS",10,11,11,10,13,11,14]
[null,null,"Undergrad","CAS","S124 Geoscience: Geology BS",9,12,18,23,24,17,16]
[null,null,"Undergrad","CAS","S125 Geoscience: Environ Geosci  BS",15,10,2,2,0,0,0]
[null,null,"Undergrad","CAS","T200 General Science TCHGCERT",2,5,6,0,0,0,1]
[null,null,"Undergrad","CAS","T201 Earth Sciences TCHGCERT",1,4,3,0,1,0,0]
[null,null,"Undergrad","CAS","T201 Earth-Space Science TCHGCERT",0,0,0,1,0,0,1]
[null,null,"Undergrad","CAS","A130 French BA",11,13,21,20,22,25,26]
[null,null,"Undergrad","CAS","A134 German BA",1,5,5,9,16,18,16]
[null,null,"Undergrad","CAS","A140 Latin BA",0,2,6,9,7,8,6]
[null,null,"Undergrad","CAS","A171 Russian BA",4,4,1,4,3,8,4]
[null,null,"Undergrad","CAS","A186 Spanish BA",23,36,46,69,71,72,76]
[null,null,"Undergrad","CAS","E130 French BSED",7,6,2,0,0,0,0]
[null,null,"Undergrad","CAS","E134 German BSED",1,3,1,0,0,0,0]
[null,null,"Undergrad","CAS","E140 Latin BSED",1,1,1,1,0,1,0]
[null,null,"Undergrad","CAS","E186 Spanish BSED",38,27,15,8,2,0,0]
[null,null,"Undergrad","CAS","T203 German TCHGCERT",2,1,2,1,0,0,0]
[null,null,"Undergrad","CAS","T204 French TCHGCERT",2,2,1,1,0,0,1]
[null,null,"Undergrad","CAS","T205 Spanish TCHGCERT",4,2,4,5,2,0,1]
[null,null,"Undergrad","CAS","A101 American Studies BA",7,10,9,5,3,6,4]
[null,null,"Undergrad","CAS","A137 History BA",209,279,348,387,404,431,422]
[null,null,"Undergrad","CAS","E177 Social Studies: History BSED",128,66,28,9,3,0,0]
[null,null,"Undergrad","CAS","T207 Social Studies TCHGCERT",0,11,3,0,0,0,0]
[null,null,"Undergrad","CAS","T210 History TCHGCERT",21,0,0,0,0,0,0]
[null,null,"Undergrad","CAS","T210 Soc Studies - History TCHGCERT",0,0,0,1,0,0,0]
[null,null,"Undergrad","CAS","A141 Liberal Studies: Arts & Sci BA",7,48,64,89,76,82,85]
[null,null,"Undergrad","CAS","A143 Liberal Studies: Career Pre BA",123,51,14,7,3,4,3]
[null,null,"Undergrad","CAS","S100 Pharmaceutical Product Dev BS",41,42,38,42,47,43,47]
[null,null,"Undergrad","CAS","S141 Liberal Studies: Sci/Math BS",26,13,25,15,22,24,15]
[null,null,"Undergrad","CAS","S322 Liberal Studies: Profession BS",111,222,222,265,295,294,300]
[null,null,"Undergrad","CAS","A144 Mathematics BA",22,27,30,35,39,31,27]
[null,null,"Undergrad","CAS","A145 Mathematics-Computer Sci BA",6,1,0,0,0,0,0]
[null,null,"Undergrad","CAS","A518 Mathematics BS",0,0,0,0,2,23,34]
[null,null,"Undergrad","CAS","E144 Mathematics BSED",91,116,121,139,134,131,122]
[null,null,"Undergrad","CAS","T213 Mathematics TCHGCERT",1,2,3,1,1,0,3]
[null,null,"Undergrad","CAS","A157 Philosophy BA",27,31,33,35,24,30,46]
[null,null,"Undergrad","CAS","A158 Philosophy-Religious Studie BA",11,8,1,1,0,0,0]
[null,null,"Undergrad","CAS","A245 Philosophy-Religious Studie BA",0,0,0,0,0,4,6]
[null,null,"Undergrad","CAS","E159 Physics BSED",5,8,11,18,16,12,17]
[null,null,"Undergrad","CAS","S159 Physics BS",9,12,13,12,14,18,24]
[null,null,"Undergrad","CAS","S160 Physics-Engineering BS",14,15,13,17,13,19,18]
[null,null,"Undergrad","CAS","T215 Physics TCHGCERT",3,3,1,0,0,0,2]
[null,null,"Undergrad","CAS","A168 Psychology BA",472,455,454,469,480,461,476]
[null,null,"Undergrad","CAS","E181 Social Studies: Psycholog BSED",4,1,1,0,0,0,0]
[null,null,"Undergrad","CAS","A190 Theatre Arts: Acting BA",1,0,0,0,0,0,0]
[null,null,"Undergrad","CAS","A191 Theatre Arts: Performance BA",34,27,0,0,0,0,0]
[null,null,"Undergrad","CAS","A194 Theatre Arts: Mus Theatre BA",29,30,0,0,0,0,0]
[null,null,"Undergrad","CAS","A195 Theatre Arts: Tech Producti BA",19,13,0,0,0,0,0]
[null,null,"Undergrad","CAS","A888 Theatre Arts: General BA",13,13,0,0,0,0,0]
[null,null,"Undergrad","CAS","A230 Women's Studies BA",16,20,15,12,8,9,8]
[null,null,"Undergrad","CBPA","S232 Accounting BS",227,256,265,272,309,318,364]
[null,null,"Undergrad","CBPA","S119 Criminal Justice BS",385,362,350,329,329,350,365]
[null,null,"Undergrad","CBPA","A126 Economics-Business BA",1,0,0,0,0,0,0]
[null,null,"Undergrad","CBPA","F455 Pre-Business Eco-Finance  BS",50,81,58,57,68,100,128]
[null,null,"Undergrad","CBPA","S126 Economics BS",27,16,21,15,12,9,6]
[null,null,"Undergrad","CBPA","S128 Finance BS",137,107,91,83,81,91,87]
[null,null,"Undergrad","CBPA","S312 Business BS",0,0,0,0,0,1,0]
[null,null,"Undergrad","CBPA","A133 Geography BA",25,22,25,27,24,27,23]
[null,null,"Undergrad","CBPA","A237 Geography-Urban/Regional Pl BA",6,5,5,3,5,8,5]
[null,null,"Undergrad","CBPA","A238 Geography-Geographic Analys BA",11,9,8,6,7,3,3]
[null,null,"Undergrad","CBPA","A162 Poli Sci-Applied Pub Policy BA",8,8,8,9,16,26,32]
[null,null,"Undergrad","CBPA","A163 Polit Sci - Int'l Relations BA",56,61,46,56,68,67,79]
[null,null,"Undergrad","CBPA","A164 Political Science BA",133,158,162,176,142,131,128]
[null,null,"Undergrad","CBPA","E176 Social Studies: Geography BSED",2,1,1,0,0,0,0]
[null,null,"Undergrad","CBPA","E180 Social Studies: Polit Sci BSED",6,1,0,0,0,0,0]
[null,null,"Undergrad","CBPA","T207 Social Studies TCHGCERT",1,0,0,0,0,0,0]
[null,null,"Undergrad","CBPA","M455 Pre-Business-Management BS",97,169,178,213,219,223,255]
[null,null,"Undergrad","CBPA","S233 Business Management BS",385,278,239,211,201,190,174]
[null,null,"Undergrad","CBPA","K455 Pre-Business-Marketing BS",74,109,131,140,165,164,166]
[null,null,"Undergrad","CBPA","S143 Marketing BS",266,205,157,159,132,134,145]
[null,null,"Undergrad","CBPA","A184 Social Work BSW",108,138,165,175,150,142,134]
[null,null,"Undergrad","EDS","A143 Liberal Studies: Career Pre BA",0,0,1,0,0,0,0]
[null,null,"Undergrad","EDS","A196 Undeclared General UNDECL",1643,1550,1535,1561,1540,1688,1743]
[null,null,"Undergrad","EDS","A197 Undeclared Business UNDECL",27,56,96,56,20,7,1]
[null,null,"Undergrad","EDS","Z107 NON-DEGR General",329,297,306,198,205,176,88]
[null,null,"Undergrad","EDS","Z108 NON-DEGR Professnl Development",6,2,3,3,2,0,0]
[null,null,"Undergrad","EDS","Z109 NON-DEGR Commun Disord Interes",1,0,0,1,18,21,20]
[null,null,"Undergrad","EDS","Z110 NON-DEGR ESL Program",3,1,2,1,0,4,0]
[null,null,"Undergrad","EDS","Z111 NON-DEGR Nat Student Exchange",14,9,4,7,9,5,8]
[null,null,"Undergrad","EDS","Z112 NON-DEGR Post Baccalaur: WCU",29,36,31,27,28,38,25]
[null,null,"Undergrad","EDS","Z113 NON-DEGR Post Baccal: Non-WCU",77,92,64,79,67,93,70]
[null,null,"Undergrad","EDS","Z115 NON-DEGR Cheyney University",2,4,3,2,1,1,2]
[null,null,"Undergrad","EDS","Z116 NON-DEGR Senior Citizen",42,36,29,33,29,40,38]
[null,null,"Undergrad","EDS","Z117 NON-DEGR Post Associate: WCU",1,1,0,1,0,0,0]
[null,null,"Undergrad","EDS","Z119 NON-DEGR Qualifier",18,21,20,20,4,0,0]
[null,null,"Undergrad","EDS","Z121 NON-DEGR SSHE Visiting Student",0,1,2,0,1,6,6]
[null,null,"Undergrad","EDS","Z140 NON-DEGR High School Student",0,0,0,0,0,0,61]
[null,null,"Undergrad","COE","E121 Early Childhood Educ BSED",230,256,259,303,340,331,295]
[null,null,"Undergrad","COE","E187 Special Education BSED",261,231,253,254,263,282,260]
[null,null,"Undergrad","COE","T196 Special Education TCHGCERT",1,0,0,0,0,0,0]
[null,null,"Undergrad","COE","T197 Early Childhood Educ TCHGCERT",0,1,1,1,0,0,1]
[null,null,"Undergrad","COE","E127 Elementary Education BSED",920,896,896,871,844,787,814]
[null,null,"Undergrad","COE","T198 Elementary Education TCHGCERT",0,0,0,0,0,0,1]
[null,null,"Undergrad","CHS","S136 Health Education BS",1,0,0,0,0,0,0]
[null,null,"Undergrad","CHS","S169 Public Health:Health Promot BS",40,42,66,40,56,50,55]
[null,null,"Undergrad","CHS","S170 Public Health:Environmental BS",11,10,10,11,9,18,28]
[null,null,"Undergrad","CHS","S171 Nutrition and Dietetics BS",61,86,94,162,197,197,239]
[null,null,"Undergrad","CHS","S301 Health Sci: General BS",15,16,15,13,16,24,16]
[null,null,"Undergrad","CHS","S302 Health Sci: Dental Hygiene BS",2,1,0,0,0,0,0]
[null,null,"Undergrad","CHS","S303 Hlth Sci: Respiratory Care BS",26,33,51,63,64,73,75]
[null,null,"Undergrad","CHS","S135 Health & Physical Educ  BS",373,393,435,428,463,456,455]
[null,null,"Undergrad","CHS","S138 Exercise Science Specialist BS",180,190,182,185,175,217,277]
[null,null,"Undergrad","CHS","T212 Health & Phys Educ TCHGCERT",0,0,0,40,0,0,20]
[null,null,"Undergrad","CHS","T212 Physical Education TCHGCERT",35,26,35,0,24,9,0]
[null,null,"Undergrad","CHS","S156 Nursing BSN",291,324,332,292,262,264,286]
[null,null,"Undergrad","CHS","S166 RN to BSN",0,0,0,0,28,51,69]
[null,null,"Undergrad","CHS","S105 Athletic Training BS",100,101,111,112,120,115,135]
[null,null,"Undergrad","CHS","A116 Communicative Disorders BA",63,58,79,88,100,111,106]
[null,null,"Undergrad","CVPA","M175 Music: Keybrd Perf - Pedago BM",0,1,0,0,0,0,0]
[null,null,"Undergrad","CVPA","M188 Music - Performance BM",0,45,38,41,41,42,54]
[null,null,"Undergrad","CVPA","A104 Studio Arts BA",0,0,25,30,36,33,38]
[null,null,"Undergrad","CVPA","F190 Studio Arts BFA",0,0,192,197,147,144,139]
[null,null,"Undergrad","CVPA","M151 Music: Instrumental Perform BM",14,0,0,0,0,0,0]
[null,null,"Undergrad","CVPA","M188 Music - Performance BM",27,0,0,0,0,0,0]
[null,null,"Undergrad","CVPA","M152 Music: Keyboard Performance BM",2,0,0,0,0,0,0]
[null,null,"Undergrad","CVPA","M175 Music: Keybrd Perf - Pedago BM",1,0,0,0,0,0,0]
[null,null,"Undergrad","CVPA","M145 Music: Elective Studies BM",35,30,32,34,34,25,27]
[null,null,"Undergrad","CVPA","M150 Music: Composition BM",8,5,2,1,0,0,0]
[null,null,"Undergrad","CVPA","M153 Music: Theory BM",10,3,0,0,0,0,0]
[null,null,"Undergrad","CVPA","M190 Music: Theory & Composition BM",2,6,8,10,11,14,14]
[null,null,"Undergrad","CVPA","M147 Music Educ: Instrument BM",179,195,211,186,213,225,225]
[null,null,"Undergrad","CVPA","M148 Music Educ: Voice BM",87,101,98,95,94,94,94]
[null,null,"Undergrad","CVPA","M149 Music Educ: Keyboard BM",42,35,25,25,33,33,34]
[null,null,"Undergrad","CVPA","S147 Music Educ: General-Instrum BS",10,0,0,0,0,0,0]
[null,null,"Undergrad","CVPA","S149 Music Ed: Vocal/Choral-Voic BS",3,0,0,0,0,0,0]
[null,null,"Undergrad","CVPA","S314 Music Educ: General-Voice BS",2,0,0,0,0,0,0]
[null,null,"Undergrad","CVPA","T214 Music Education TCHGCERT",3,3,2,2,2,0,1]
[null,null,"Undergrad","CVPA","A191 Theatre and Dance: Perfmnce BA",0,0,0,27,0,0,9]
[null,null,"Undergrad","CVPA","A191 Theatre Arts: Performance BA",0,0,0,0,13,14,0]
[null,null,"Undergrad","CVPA","A194 Theatre and Dnce: Mus Thtre BA",0,0,39,22,0,0,15]
[null,null,"Undergrad","CVPA","A194 Theatre Arts: Mus Theatre BA",0,0,30,0,17,13,0]
[null,null,"Undergrad","CVPA","A195 Theatre and Dnce: Tech Prod BA",0,0,0,9,0,0,10]
[null,null,"Undergrad","CVPA","A195 Theatre Arts: Tech Producti BA",0,0,15,0,9,4,0]
[null,null,"Undergrad","CVPA","A888 Theatre and Dance: General BA",0,0,0,50,0,0,68]
[null,null,"Undergrad","CVPA","A888 Theatre Arts: General BA",0,0,14,0,67,64,0]
[null,null,"Undergrad","CVPA","M155 Music: Vocal Performance BM",7,0,0,0,0,0,0]
[null,null,"Graduate","CAS","C204 Gerontology CERTIF",1,2,2,0,0,0,1]
[null,null,"Graduate","CAS","S175 Long-Term Hlth Care MSA",2,5,5,4,2,0,0]
[null,null,"Graduate","CAS","PG02 Biology PROF-GRW",0,0,3,3,0,1,2]
[null,null,"Graduate","CAS","S173 Biology MS",9,16,15,17,18,14,9]
[null,null,"Graduate","CAS","S174 Biology - Thesis MS",11,7,8,6,8,18,17]
[null,null,"Graduate","CAS","S561 Biology - Natural Science MS",1,0,0,0,0,0,0]
[null,null,"Graduate","CAS","T181 Biology TCHGCERT",0,0,0,0,0,0,2]
[null,null,"Graduate","CAS","A105 Physical Science: Chemistry MA",1,0,0,0,0,0,0]
[null,null,"Graduate","CAS","E104 Chemistry MED",2,2,1,0,0,0,0]
[null,null,"Graduate","CAS","PG03 Chemistry PROF-GRW",1,0,0,0,0,0,0]
[null,null,"Graduate","CAS","S102 Chemistry MS",4,2,1,2,0,0,0]
[null,null,"Graduate","CAS","S103 Clinical Chemistry MS",10,5,3,2,1,0,0]
[null,null,"Graduate","CAS","A506 Communication Studies MA",14,22,17,17,18,22,19]
[null,null,"Graduate","CAS","C206 Computer Science Cert PROF-GRW",4,1,2,0,0,3,1]
[null,null,"Graduate","CAS","PG05 Computer Science PROF-GRW",1,1,0,0,0,0,1]
[null,null,"Graduate","CAS","S518 Computer Science MS",37,30,24,28,23,24,18]
[null,null,"Graduate","CAS","A107 English MA",42,60,69,45,47,61,52]
[null,null,"Graduate","CAS","A124 Writing, Tching & Criticism MA",0,0,5,13,13,2,0]
[null,null,"Graduate","CAS","A173 TESL MA",32,46,51,44,36,27,28]
[null,null,"Graduate","CAS","A232 English - Non-Thesis Option MA",0,1,0,0,0,0,0]
[null,null,"Graduate","CAS","C220 TESL CERTIF",0,2,4,4,4,8,6]
[null,null,"Graduate","CAS","PG31 TESL PROF-GRW",7,5,5,0,0,0,0]
[null,null,"Graduate","CAS","T182 English TCHGCERT",0,0,0,0,0,0,7]
[null,null,"Graduate","CAS","A114 Physical Science: Earth Sci MA",12,12,8,13,8,6,22]
[null,null,"Graduate","CAS","T100 General Science TCHGCERT",0,0,0,0,0,0,1]
[null,null,"Graduate","CAS","T184 Earth-Space Science TCHGCERT",0,0,0,0,0,0,1]
[null,null,"Graduate","CAS","A108 French MA",3,3,2,3,2,7,5]
[null,null,"Graduate","CAS","A112 Spanish MA",5,7,4,3,1,5,4]
[null,null,"Graduate","CAS","E109 French MED",7,5,3,2,5,8,6]
[null,null,"Graduate","CAS","E113 Spanish MED",9,4,4,5,6,5,5]
[null,null,"Graduate","CAS","PG12 Frgn Lang (Spanish) PROF-GRW",0,0,1,0,0,0,0]
[null,null,"Graduate","CAS","T177 French TCHGCERT",0,0,0,0,0,0,1]
[null,null,"Graduate","CAS","T178 Spanish TCHGCERT",3,2,0,0,0,0,0]
[null,null,"Graduate","CAS","A115 History MA",25,27,27,20,20,23,29]
[null,null,"Graduate","CAS","A200 Holocaust & Genocide Studie MA",9,9,12,10,18,13,20]
[null,null,"Graduate","CAS","C201 Holocaust & Genocide St CERTIF",0,0,0,0,1,1,0]
[null,null,"Graduate","CAS","E116 History MED",8,5,7,10,6,3,5]
[null,null,"Graduate","CAS","A517 Mathematics MA",14,17,12,11,9,15,17]
[null,null,"Graduate","CAS","C218 Applied Statistics CERTIF",0,0,2,3,4,1,4]
[null,null,"Graduate","CAS","PG19 Mathematics PROF-GRW",0,0,0,0,0,1,0]
[null,null,"Graduate","CAS","S563 Applied Statistics MS",0,11,22,41,44,46,61]
[null,null,"Graduate","CAS","T185 Mathematics TCHGCERT",0,0,0,0,0,1,2]
[null,null,"Graduate","CAS","A119 Philosophy MA",16,25,17,13,16,21,27]
[null,null,"Graduate","CAS","C234 Certificate in Business Ethics",0,0,0,0,0,0,1]
[null,null,"Graduate","CAS","PG21 Philosophy PROF-GRW",0,0,1,0,0,1,1]
[null,null,"Graduate","CAS","A120 Psychology: Clinical MA",42,42,51,50,49,54,58]
[null,null,"Graduate","CAS","A121 Psychology: General MA",4,2,5,6,4,7,5]
[null,null,"Graduate","CAS","A122 Psychology: Industrial MA",23,21,24,21,21,24,24]
[null,null,"Graduate","CAS","C210 Clinical Mental Health CERTIF",6,4,2,4,2,5,4]
[null,null,"Graduate","CAS","PG25 Psych: General PROF-GRW",2,1,1,0,0,1,0]
[null,null,"Graduate","CAS","C202 Leadership for Women CERTIF",1,0,1,1,0,1,0]
[null,null,"Graduate","CAS","S525 Leadership for Women MSA",1,2,3,0,0,0,2]
[null,null,"Graduate","CBPA","PG07 Criminal Justice PROF-GRW",0,1,0,0,0,0,0]
[null,null,"Graduate","CBPA","S182 Criminal Justice - Thesis MS",7,4,2,0,0,0,0]
[null,null,"Graduate","CBPA","S536 Criminal Justice MS",35,32,32,26,25,22,32]
[null,null,"Graduate","CBPA","B133 Bus Admin: Economics-Finan MBA",25,21,26,23,22,25,8]
[null,null,"Graduate","CBPA","A537 Geography MA",16,16,13,16,18,24,22]
[null,null,"Graduate","CBPA","C233 Geographic Technology CERTIF",0,0,0,0,0,0,2]
[null,null,"Graduate","CBPA","PG13 Geography PROF-GRW",1,1,2,0,0,0,1]
[null,null,"Graduate","CBPA","S130 Regional Planning MSA",5,4,2,1,0,3,4]
[null,null,"Graduate","CBPA","S127 Human Resource Mgmt. MSA",24,18,19,14,12,0,0]
[null,null,"Graduate","CBPA","S131 Individualized Program MSA",13,7,12,4,8,8,4]
[null,null,"Graduate","CBPA","S140 Human Resource Mgmt. MSA",0,0,0,0,0,14,17]
[null,null,"Graduate","CBPA","S526 Public Administration MSA",9,6,9,12,7,5,3]
[null,null,"Graduate","CBPA","S528 Training & Developmt MSA",6,2,2,4,1,2,8]
[null,null,"Graduate","CBPA","S530 Nonprofit Administration MSA",0,0,0,0,0,0,3]
[null,null,"Graduate","CBPA","B134 Bus Admin: General MBA",13,15,22,23,17,23,52]
[null,null,"Graduate","CBPA","B135 Bus Admin: Management MBA",32,26,31,26,17,13,4]
[null,null,"Graduate","CBPA","B181 Bus Admin: Executive MBA",23,20,4,0,0,0,1]
[null,null,"Graduate","CBPA","C241 Graduate Business Certificate",0,0,0,0,0,0,3]
[null,null,"Graduate","CBPA","B190 Bus Admin: Tech-Electronic MBA",51,42,19,16,14,7,4]
[null,null,"Graduate","CBPA","S176 Social Work MSW",46,54,67,68,74,84,71]
[null,null,"Graduate","EDS","Z100 NON-DEGR (Post Masters)",3,1,0,1,3,2,2]
[null,null,"Graduate","EDS","Z101 NON-DEGR General",394,317,345,359,382,316,309]
[null,null,"Graduate","EDS","Z102 NON-DEGR Post Master's: WCU",0,0,1,4,4,1,0]
[null,null,"Graduate","EDS","Z103 NON-DEGR Senior Citizen",2,2,2,4,4,6,2]
[null,null,"Graduate","COE","C211 Prof Couns Licens Prep CERTIF",9,13,13,14,3,8,13]
[null,null,"Graduate","COE","E142 Counseling: Elementary MED",58,57,63,59,66,67,60]
[null,null,"Graduate","COE","E143 Counseling: Secondary MED",70,72,81,88,92,98,90]
[null,null,"Graduate","COE","PG06 Counseling PROF-GRW",2,0,0,1,1,0,0]
[null,null,"Graduate","COE","S144 Couns: Higher Ed/Stu Aff  MS",73,67,70,71,59,58,46]
[null,null,"Graduate","COE","T145 Counseling TCHGCERT",11,9,8,6,2,3,5]
[null,null,"Graduate","COE","C243 Grad Certificate in Autism",0,0,0,0,0,0,10]
[null,null,"Graduate","COE","E152 Special Education MED",20,22,25,26,24,34,31]
[null,null,"Graduate","COE","E203 Early Childhood Education MED",0,0,1,8,8,43,60]
[null,null,"Graduate","COE","PG30 Special Education PROF-GRW",0,1,1,0,0,0,0]
[null,null,"Graduate","COE","T153 Special Education TCHGCERT",37,47,49,38,47,40,33]
[null,null,"Graduate","COE","T221 Early Childhood Educ TCHGCERT",0,0,0,0,0,0,4]
[null,null,"Graduate","COE","E138 Elementary Education MED",103,92,88,87,86,87,72]
[null,null,"Graduate","COE","PG35 Certif of Adv Graduat PROF-GRW",0,0,0,0,1,0,0]
[null,null,"Graduate","COE","T141 Elementary Education TCHGCERT",135,166,136,137,120,101,87]
[null,null,"Graduate","COE","C219 Literacy CERTIF",0,0,0,0,1,2,1]
[null,null,"Graduate","COE","E139 Reading MED",160,154,139,150,134,160,170]
[null,null,"Graduate","COE","PG27 Reading PROF-GRW",1,0,0,0,0,0,0]
[null,null,"Graduate","COE","T140 Reading TCHGCERT",7,12,14,7,8,9,20]
[null,null,"Graduate","COE","C203 Teaching-Learning W/Tec CERTIF",0,3,2,0,0,0,0]
[null,null,"Graduate","COE","E146 Secondary Education MED",33,30,28,20,27,34,26]
[null,null,"Graduate","COE","PG28 Secondary Education PROF-GRW",0,0,0,0,0,0,1]
[null,null,"Graduate","COE","S548 Educational Research MS",4,6,4,3,1,0,0]
[null,null,"Graduate","COE","T147 Secondary Education TCHGCERT",30,72,71,52,44,43,23]
[null,null,"Graduate","CHS","C207 Health: Integrative Hea CERTIF",0,2,5,5,3,0,3]
[null,null,"Graduate","CHS","E158 Health: School Health MED",22,21,30,19,18,22,33]
[null,null,"Graduate","CHS","M191 Public Health MPH",19,60,77,75,79,90,103]
[null,null,"Graduate","CHS","PG15 Health PROF-GRW",0,1,1,0,0,0,0]
[null,null,"Graduate","CHS","S309 Health: Gerontology MS",1,1,0,0,0,0,0]
[null,null,"Graduate","CHS","S524 Health Services MSA",5,3,1,0,0,0,0]
[null,null,"Graduate","CHS","S556 Health: Public Health MS",23,2,2,0,0,0,0]
[null,null,"Graduate","CHS","T189 Health TCHGCERT",0,0,0,0,0,1,0]
[null,null,"Graduate","CHS","PG22 Physical Education PROF-GRW",1,0,0,0,0,0,0]
[null,null,"Graduate","CHS","S161 Hlth&Phys Ed: Exercise Phys MS",15,18,16,16,10,19,16]
[null,null,"Graduate","CHS","S529 Sport & Athletic Admin MSA",33,40,33,37,28,21,24]
[null,null,"Graduate","CHS","S560 MS in Physical Education",4,1,3,2,1,1,2]
[null,null,"Graduate","CHS","PG32 Nursing PROF-GRW",2,0,0,0,0,0,0]
[null,null,"Graduate","CHS","S310 Nursing - Education MSN",5,8,11,15,20,17,11]
[null,null,"Graduate","CHS","S559 Nursing MSN",20,27,23,25,22,25,17]
[null,null,"Graduate","CHS","T220 School Nursing CERTIF",1,5,5,0,8,2,0]
[null,null,"Graduate","CHS","T220 School Nursing TCHGCERT",0,0,0,2,0,0,2]
[null,null,"Graduate","CHS","A154 Communicative Disorders MA",93,88,95,99,97,77,85]
[null,null,"Graduate","CHS","PG04 Communicativ Disorder PROF-GRW",0,0,0,0,0,0,1]
[null,null,"Graduate","CVPA","M165 Music: Piano Pedagogy MM",0,4,3,4,5,8,7]
[null,null,"Graduate","CVPA","M166 Music Performance MM",0,8,15,16,8,14,16]
[null,null,"Graduate","CVPA","M166 Music Performance MM",4,0,0,0,0,0,0]
[null,null,"Graduate","CVPA","M176 Music Performance - Instrum MM",1,0,0,0,0,0,0]
[null,null,"Graduate","CVPA","M165 Music: Piano Pedagogy MM",4,0,0,0,0,0,0]
[null,null,"Graduate","CVPA","A563 Music History MA",2,4,4,3,5,6,4]
[null,null,"Graduate","CVPA","PG20 Music: General PROF-GRW",0,1,0,1,0,0,0]
[null,null,"Graduate","CVPA","M167 Music: Composition MM",3,0,0,2,3,2,2]
[null,null,"Graduate","CVPA","M169 Music: Music Theory MM",0,0,1,6,3,1,0]
[null,null,"Graduate","CVPA","M192 Music: Theory & Composition MM",0,0,0,0,0,0,3]
[null,null,"Graduate","CVPA","C226 Certificate in Orff-Schulwerk",0,0,0,0,0,1,0]
[null,null,"Graduate","CVPA","M168 Music Education MM",32,21,23,23,29,29,28]
[null,null,"Graduate","CVPA","M189 Music Education-Technology",0,0,3,3,4,3,7]
[null,null,"Graduate","CVPA","T190 Music Education TCHGCERT",0,0,0,0,0,0,1]

{"sheet":"Calculation","index":4,"n_rows":13,"n_cols":4,"rows_kept":13,"cut":false,"hidden":true,"merged":[[2,2,2,3],[9,2,9,3]]}
[]
[]
[null,null,"Calculation"]
[]
[null,null,"Actual Start Position",1]
[null,null,"Maximum Position",1]
[]
[]
[]
[null,null,"Calculation"]
[]
[null,null,"Actual Start Position",124]
[null,null,"Maximum Position",1]

{"sheet":"Dashboard Scroll Data","index":5,"n_rows":317,"n_cols":15,"rows_kept":317,"cut":false,"hidden":true,"merged":[[2,3,2,10],[181,3,181,10],[1,13,2,13]]}
[]
[null,null,null,null,null,null,null,null,null,null,null,null,null,"Difference from 07 to 08"]
[]
[]
[null,null,"College","Descrip","Fall 02","Fall 03","Fall 04","Fall 05","Fall 06","Fall 07","Fall 08"]
[null,null,"CAS","A102 Anthropology BA",33,33,29,29,31,42,39,null,null,{"$f":"K6-J6","v":-3},{"$f":"N6/J6","v":-7.1428571428571425E-2}]
[null,null,"CAS","A103 Anthropology-Sociology BA",10,4,2,1,0,0,0,null,null,{"$f":"K7-J7","v":0},{"$f":"N7/J7","v":{"$error":"#DIV/0!"}}]
[null,null,"CAS","A185 Sociology BA",99,97,81,77,94,92,92,null,null,0,0]
[null,null,"CAS","E174 Social Studies: Anthropol BSED",3,0,0,0,0,0,0,null,null,0,{"$error":"#DIV/0!"}]
[null,null,"CAS","E182 Social Studies: Sociology BSED",3,1,1,0,0,0,0,null,null,0,{"$error":"#DIV/0!"}]
[null,null,"CAS","A104 Studio Arts BA",31,32,null,null,null,null,null,null,null,0,{"$error":"#DIV/0!"}]
[null,null,"CAS","F190 Studio Arts BFA",194,192,null,null,null,null,null,null,null,0,{"$error":"#DIV/0!"}]
[null,null,"CAS","A106 Biology BA",16,15,19,18,23,21,17,null,null,-4,-0.19047619047619047]
[null,null,"CAS","E106 Biology BSED",40,28,28,37,48,37,36,null,null,-1,-2.7027027027027029E-2]
[null,null,"CAS","S106 Biology BS",120,117,106,121,135,170,200,null,null,30,0.17647058823529413]
[null,null,"CAS","S107 Biology: Microbiology BS",22,13,15,14,19,25,26,null,null,1,0.04]
[null,null,"CAS","S108 Biology: Ecology BS",24,29,26,23,14,12,23,null,null,11,0.91666666666666663]
[null,null,"CAS","S109 Biology: Medical Technology BS",9,11,18,21,26,19,19,null,null,0,0]
[null,null,"CAS","S115 Biology: Cell & Molecular BS",48,49,50,35,31,32,33,null,null,1,3.125E-2]
[null,null,"CAS","T193 Biology TCHGCERT",2,2,3,2,3,0,1,null,null,1,{"$error":"#DIV/0!"}]
[null,null,"CAS","E112 Chemistry BSED",8,10,14,14,18,19,20,null,null,1,5.2631578947368418E-2]
[null,null,"CAS","S111 Chemistry-Biology * BS",31,33,37,64,70,75,81,null,null,6,0.08]
[null,null,"CAS","S112 Chemistry BS",25,29,35,42,39,41,32,null,null,-9,-0.21951219512195122]
[null,null,"CAS","S114 Biochemistry BS",5,14,21,23,24,21,26,null,null,5,0.23809523809523808]
[null,null,"CAS","S129 Foren & Toxicol Chemistry BS",83,101,103,109,92,86,73,null,null,-13,-0.15116279069767441]
[null,null,"CAS","T194 Chemistry TCHGCERT",2,3,4,3,1,1,2,null,null,1,1]
[null,null,"CAS","A188 Communication Studies BA",311,339,363,365,335,328,330,null,null,2,6.0975609756097563E-3]
[null,null,"CAS","E115 Communication-Comm/Tha BSED",12,16,13,15,8,8,3,null,null,-5,-0.625]
[null,null,"CAS","E118 Communication-Theatre/Med BSED",1,1,0,0,0,0,0,null,null,0,{"$error":"#DIV/0!"}]
[null,null,"CAS","E119 Communication - Media/Com BSED",1,0,1,0,0,1,1,null,null,0,0]
[null,null,"CAS","T195 Communication TCHGCERT",1,2,1,0,0,0,0,null,null,0,{"$error":"#DIV/0!"}]
[null,null,"CAS","T195 Communications TCHGCERT",0,0,0,0,0,0,1,null,null,1,{"$error":"#DIV/0!"}]
[null,null,"CAS","S118 Computer Science BS",188,175,138,113,107,107,110,null,null,3,2.8037383177570093E-2]
[null,null,"CAS","S311 Computer Science - Comp Sys BS",1,1,0,0,0,0,0,null,null,0,{"$error":"#DIV/0!"}]
[null,null,"CAS","A117 Comparative Literature BA",10,11,9,7,6,0,0,null,null,0,{"$error":"#DIV/0!"}]
[null,null,"CAS","A142 Literature BA",138,166,179,217,211,0,0,null,null,0,{"$error":"#DIV/0!"}]
[null,null,"CAS","A146 English BA",0,0,0,0,0,219,256,null,null,37,0.16894977168949771]
[null,null,"CAS","E128 English BSED",128,138,148,179,180,196,203,null,null,7,3.5714285714285712E-2]
[null,null,"CAS","T199 English TCHGCERT",12,9,12,8,2,1,2,null,null,1,1]
[null,null,"CAS","E122 Earth-Space Science - Env BSED",4,2,0,0,0,0,0,null,null,0,{"$error":"#DIV/0!"}]
[null,null,"CAS","E123 Earth-Space Science BSED",15,20,33,34,29,25,21,null,null,-4,-0.16]
[null,null,"CAS","E124 Earth-Space Sci - Geology BSED",16,23,8,2,0,0,0,null,null,0,{"$error":"#DIV/0!"}]
[null,null,"CAS","E125 Earth-Space Science BSED",1,0,0,0,0,0,0,null,null,0,{"$error":"#DIV/0!"}]
[null,null,"CAS","S122 Geoscience - Earth Systems BS",10,11,11,10,13,11,14,null,null,3,0.27272727272727271]
[null,null,"CAS","S124 Geoscience: Geology BS",9,12,18,23,24,17,16,null,null,-1,-5.8823529411764705E-2]
[null,null,"CAS","S125 Geoscience: Environ Geosci  BS",15,10,2,2,0,0,0,null,null,0,{"$error":"#DIV/0!"}]
[null,null,"CAS","T200 General Science TCHGCERT",2,5,6,0,0,0,1,null,null,1,{"$error":"#DIV/0!"}]
[null,null,"CAS","T201 Earth Sciences TCHGCERT",1,4,3,0,1,0,0,null,null,0,{"$error":"#DIV/0!"}]
[null,null,"CAS","T201 Earth-Space Science TCHGCERT",0,0,0,1,0,0,1,null,null,1,{"$error":"#DIV/0!"}]
[null,null,"CAS","A130 French BA",11,13,21,20,22,25,26,null,null,1,0.04]
[null,null,"CAS","A134 German BA",1,5,5,9,16,18,16,null,null,-2,-0.1111111111111111]
[null,null,"CAS","A140 Latin BA",0,2,6,9,7,8,6,null,null,-2,-0.25]
[null,null,"CAS","A171 Russian BA",4,4,1,4,3,8,4,null,null,-4,-0.5]
[null,null,"CAS","A186 Spanish BA",23,36,46,69,71,72,76,null,null,4,5.5555555555555552E-2]
[null,null,"CAS","E130 French BSED",7,6,2,0,0,0,0,null,null,0,{"$error":"#DIV/0!"}]
[null,null,"CAS","E134 German BSED",1,3,1,0,0,0,0,null,null,0,{"$error":"#DIV/0!"}]
[null,null,"CAS","E140 Latin BSED",1,1,1,1,0,1,0,null,null,-1,-1]
[null,null,"CAS","E186 Spanish BSED",38,27,15,8,2,0,0,null,null,0,{"$error":"#DIV/0!"}]
[null,null,"CAS","T203 German TCHGCERT",2,1,2,1,0,0,0,null,null,0,{"$error":"#DIV/0!"}]
[null,null,"CAS","T204 French TCHGCERT",2,2,1,1,0,0,1,null,null,1,{"$error":"#DIV/0!"}]
[null,null,"CAS","T205 Spanish TCHGCERT",4,2,4,5,2,0,1,null,null,1,{"$error":"#DIV/0!"}]
[null,null,"CAS","A101 American Studies BA",7,10,9,5,3,6,4,null,null,-2,-0.33333333333333331]
[null,null,"CAS","A137 History BA",209,279,348,387,404,431,422,null,null,-9,-2.0881670533642691E-2]
[null,null,"CAS","E177 Social Studies: History BSED",128,66,28,9,3,0,0,null,null,0,{"$error":"#DIV/0!"}]
[null,null,"CAS","T207 Social Studies TCHGCERT",0,11,3,0,0,0,0,null,null,0,{"$error":"#DIV/0!"}]
[null,null,"CAS","T210 History TCHGCERT",21,0,0,0,0,0,0,null,null,0,{"$error":"#DIV/0!"}]
[null,null,"CAS","T210 Soc Studies - History TCHGCERT",0,0,0,1,0,0,0,null,null,0,{"$error":"#DIV/0!"}]
[null,null,"CAS","A141 Liberal Studies: Arts & Sci BA",7,48,64,89,76,82,85,null,null,3,3.6585365853658534E-2]
[null,null,"CAS","A143 Liberal Studies: Career Pre BA",123,51,14,7,3,4,3,null,null,-1,-0.25]
[null,null,"CAS","S100 Pharmaceutical Product Dev BS",41,42,38,42,47,43,47,null,null,4,9.3023255813953487E-2]
[null,null,"CAS","S141 Liberal Studies: Sci/Math BS",26,13,25,15,22,24,15,null,null,{"$f":"K71-J71","v":-9},{"$f":"N71/J71","v":-0.375}]
[null,null,"CAS","S322 Liberal Studies: Profession BS",111,222,222,265,295,294,300,null,null,6,2.0408163265306121E-2]
[null,null,"CAS","A144 Mathematics BA",22,27,30,35,39,31,27,null,null,-4,-0.12903225806451613]
[null,null,"CAS","A145 Mathematics-Computer Sci BA",6,1,0,0,0,0,0,null,null,0,{"$error":"#DIV/0!"}]
[null,null,"CAS","A518 Mathematics BS",0,0,0,0,2,23,34,null,null,11,0.47826086956521741]
[null,null,"CAS","E144 Mathematics BSED",91,116,121,139,134,131,122,null,null,-9,-6.8702290076335881E-2]
[null,null,"CAS","T213 Mathematics TCHGCERT",1,2,3,1,1,0,3,null,null,3,{"$error":"#DIV/0!"}]
[null,null,"CAS","A157 Philosophy BA",27,31,33,35,24,30,46,null,null,16,0.53333333333333333]
[null,null,"CAS","A158 Philosophy-Religious Studie BA",11,8,1,1,0,0,0,null,null,0,{"$error":"#DIV/0!"}]
[null,null,"CAS","A245 Philosophy-Religious Studie BA",0,0,0,0,0,4,6,null,null,2,0.5]
[null,null,"CAS","E159 Physics BSED",5,8,11,18,16,12,17,null,null,5,0.41666666666666669]
[null,null,"CAS","S159 Physics BS",9,12,13,12,14,18,24,null,null,6,0.33333333333333331]
[null,null,"CAS","S160 Physics-Engineering BS",14,15,13,17,13,19,18,null,null,-1,-5.2631578947368418E-2]
[null,null,"CAS","T215 Physics TCHGCERT",3,3,1,0,0,0,2,null,null,2,{"$error":"#DIV/0!"}]
[null,null,"CAS","A168 Psychology BA",472,455,454,469,480,461,476,null,null,15,3.2537960954446853E-2]
[null,null,"CAS","E181 Social Studies: Psycholog BSED",4,1,1,0,0,0,0,null,null,0,{"$error":"#DIV/0!"}]
[null,null,"CAS","A190 Theatre Arts: Acting BA",1,0,null,null,null,null,null,null,null,0,{"$error":"#DIV/0!"}]
[null,null,"CAS","A191 Theatre Arts: Performance BA",34,27,null,null,null,null,null,null,null,0,{"$error":"#DIV/0!"}]
[null,null,"CAS","A194 Theatre Arts: Mus Theatre BA",29,30,null,null,null,null,null,null,null,0,{"$error":"#DIV/0!"}]
[null,null,"CAS","A195 Theatre Arts: Tech Producti BA",19,13,null,null,null,null,null,null,null,0,{"$error":"#DIV/0!"}]
[null,null,"CAS","A888 Theatre Arts: General BA",13,13,null,null,null,null,null,null,null,0,{"$error":"#DIV/0!"}]
[null,null,"CAS","A230 Women's Studies BA",16,20,15,12,8,9,8,null,null,-1,-0.1111111111111111]
[null,null,"CBPA","S232 Accounting BS",227,256,265,272,309,318,364,null,null,46,0.14465408805031446]
[null,null,"CBPA","S119 Criminal Justice BS",385,362,350,329,329,350,365,null,null,15,4.2857142857142858E-2]
[null,null,"CBPA","A126 Economics-Business BA",1,0,0,0,0,0,0,null,null,0,{"$error":"#DIV/0!"}]
[null,null,"CBPA","F455 Pre-Business Eco-Finance  BS",50,81,58,57,68,100,128,null,null,28,0.28000000000000003]
[null,null,"CBPA","S126 Economics BS",27,16,21,15,12,9,6,null,null,-3,-0.33333333333333331]
[null,null,"CBPA","S128 Finance BS",137,107,91,83,81,91,87,null,null,-4,-4.3956043956043959E-2]
[null,null,"CBPA","S312 Business BS",0,0,0,0,0,1,0,null,null,-1,-1]
[null,null,"CBPA","A133 Geography BA",25,22,25,27,24,27,23,null,null,-4,-0.14814814814814814]
[null,null,"CBPA","A237 Geography-Urban/Regional Pl BA",6,5,5,3,5,8,5,null,null,-3,-0.375]
[null,null,"CBPA","A238 Geography-Geographic Analys BA",11,9,8,6,7,3,3,null,null,0,0]
[null,null,"CBPA","A162 Poli Sci-Applied Pub Policy BA",8,8,8,9,16,26,32,null,null,6,0.23076923076923078]
[null,null,"CBPA","A163 Polit Sci - Int'l Relations BA",56,61,46,56,68,67,79,null,null,12,0.17910447761194029]
[null,null,"CBPA","A164 Political Science BA",133,158,162,176,142,131,128,null,null,-3,-2.2900763358778626E-2]
[null,null,"CBPA","E176 Social Studies: Geography BSED",2,1,1,0,0,0,0,null,null,0,{"$error":"#DIV/0!"}]
[null,null,"CBPA","E180 Social Studies: Polit Sci BSED",6,1,0,0,0,0,0,null,null,0,{"$error":"#DIV/0!"}]
[null,null,"CBPA","T207 Social Studies TCHGCERT",1,0,0,0,0,0,0,null,null,0,{"$error":"#DIV/0!"}]
[null,null,"CBPA","M455 Pre-Business-Management BS",97,169,178,213,219,223,255,null,null,32,0.14349775784753363]
[null,null,"CBPA","S233 Business Management BS",385,278,239,211,201,190,174,null,null,-16,-8.4210526315789472E-2]
[null,null,"CBPA","K455 Pre-Business-Marketing BS",74,109,131,140,165,164,166,null,null,2,1.2195121951219513E-2]
[null,null,"CBPA","S143 Marketing BS",266,205,157,159,132,134,145,null,null,11,8.2089552238805971E-2]
[null,null,"CBPA","A184 Social Work BSW",108,138,165,175,150,142,134,null,null,-8,-5.6338028169014086E-2]
[null,null,"EDS","A143 Liberal Studies: Career Pre BA",0,0,1,0,0,0,0,null,null,0,{"$error":"#DIV/0!"}]
[null,null,"EDS","A196 Undeclared General UNDECL",1643,1550,1535,1561,1540,1688,1743,null,null,55,3.2582938388625596E-2]
[null,null,"EDS","A197 Undeclared Business UNDECL",27,56,96,56,20,7,1,null,null,-6,-0.8571428571428571]
[null,null,"EDS","Z107 NON-DEGR General",329,297,306,198,205,176,88,null,null,-88,-0.5]
[null,null,"EDS","Z108 NON-DEGR Professnl Development",6,2,3,3,2,0,0,null,null,0,{"$error":"#DIV/0!"}]
[null,null,"EDS","Z109 NON-DEGR Commun Disord Interes",1,0,0,1,18,21,20,null,null,-1,-4.7619047619047616E-2]
[null,null,"EDS","Z110 NON-DEGR ESL Program",3,1,2,1,0,4,0,null,null,-4,-1]
[null,null,"EDS","Z111 NON-DEGR Nat Student Exchange",14,9,4,7,9,5,8,null,null,3,0.6]
[null,null,"EDS","Z112 NON-DEGR Post Baccalaur: WCU",29,36,31,27,28,38,25,null,null,-13,-0.34210526315789475]
[null,null,"EDS","Z113 NON-DEGR Post Baccal: Non-WCU",77,92,64,79,67,93,70,null,null,-23,-0.24731182795698925]
[null,null,"EDS","Z115 NON-DEGR Cheyney University",2,4,3,2,1,1,2,null,null,1,1]
[null,null,"EDS","Z116 NON-DEGR Senior Citizen",42,36,29,33,29,40,38,null,null,-2,-0.05]
[null,null,"EDS","Z117 NON-DEGR Post Associate: WCU",1,1,0,1,0,0,0,null,null,0,{"$error":"#DIV/0!"}]
[null,null,"EDS","Z119 NON-DEGR Qualifier",18,21,20,20,4,0,0,null,null,0,{"$error":"#DIV/0!"}]
[null,null,"EDS","Z121 NON-DEGR SSHE Visiting Student",0,1,2,0,1,6,6,null,null,0,0]
[null,null,"EDS","Z140 NON-DEGR High School Student",0,0,0,0,0,0,61,null,null,61,{"$error":"#DIV/0!"}]
[null,null,"COE","E121 Early Childhood Educ BSED",230,256,259,303,340,331,295,null,null,-36,-0.10876132930513595]
[null,null,"COE","E187 Special Education BSED",261,231,253,254,263,282,260,null,null,-22,-7.8014184397163122E-2]
[null,null,"COE","T196 Special Education TCHGCERT",1,0,0,0,0,0,0,null,null,0,{"$error":"#DIV/0!"}]
[null,null,"COE","T197 Early Childhood Educ TCHGCERT",0,1,1,1,0,"",1,null,null,{"$error":"#VALUE!"},{"$error":"#VALUE!"}]
[null,null,"COE","E127 Elementary Education BSED",920,896,896,871,844,787,814,null,null,27,3.4307496823379927E-2]
[null,null,"COE","T198 Elementary Education TCHGCERT",0,0,0,0,0,0,1,null,null,{"$f":"K135-J135","v":1},{"$f":"N135/J135","v":{"$error":"#DIV/0!"}}]
[null,null,"CHS","S136 Health Education BS",1,0,0,0,0,0,0,null,null,0,{"$error":"#DIV/0!"}]
[null,null,"CHS","S169 Public Health:Health Promot BS",40,42,66,40,56,50,55,null,null,5,0.1]
[null,null,"CHS","S170 Public Health:Environmental BS",11,10,10,11,9,18,28,null,null,10,0.55555555555555558]
[null,null,"CHS","S171 Nutrition and Dietetics BS",61,86,94,162,197,197,239,null,null,42,0.21319796954314721]
[null,null,"CHS","S301 Health Sci: General BS",15,16,15,13,16,24,16,null,null,-8,-0.33333333333333331]
[null,null,"CHS","S302 Health Sci: Dental Hygiene BS",2,1,0,0,0,0,0,null,null,0,{"$error":"#DIV/0!"}]
[null,null,"CHS","S303 Hlth Sci: Respiratory Care BS",26,33,51,63,64,73,75,null,null,2,2.7397260273972601E-2]
[null,null,"CHS","S135 Health & Physical Educ  BS",373,393,435,428,463,456,455,null,null,-1,-2.1929824561403508E-3]
[null,null,"CHS","S138 Exercise Science Specialist BS",180,190,182,185,175,217,277,null,null,60,0.27649769585253459]
[null,null,"CHS","T212 Health & Phys Educ TCHGCERT",0,0,0,40,0,0,20,null,null,20,{"$error":"#DIV/0!"}]
[null,null,"CHS","T212 Physical Education TCHGCERT",35,26,35,"",24,9,"",null,null,{"$error":"#VALUE!"},{"$error":"#VALUE!"}]
[null,null,"CHS","S156 Nursing BSN",291,324,332,292,262,264,286,null,null,22,8.3333333333333329E-2]
[null,null,"CHS","S166 RN to BSN",0,0,0,0,28,51,69,null,null,18,0.35294117647058826]
[null,null,"CHS","S105 Athletic Training BS",100,101,111,112,120,115,135,null,null,20,0.17391304347826086]
[null,null,"CHS","A116 Communicative Disorders BA",63,58,79,88,100,111,106,null,null,-5,-4.5045045045045043E-2]
[null,null,"CVPA","M175 Music: Keybrd Perf - Pedago BM",0,1,0,0,0,0,0,null,null,0,{"$error":"#DIV/0!"}]
[null,null,"CVPA","M188 Music - Performance BM",0,45,38,41,41,42,54,null,null,12,0.2857142857142857]
[null,null,"CVPA","A104 Studio Arts BA",null,null,25,30,36,33,38,null,null,5,0.15151515151515152]
[null,null,"CVPA","F190 Studio Arts BFA",null,null,192,197,147,144,139,null,null,-5,-3.4722222222222224E-2]
[null,null,"CVPA","M151 Music: Instrumental Perform BM",14,null,null,null,null,null,null,null,null,0,{"$error":"#DIV/0!"}]
[null,null,"CVPA","M188 Music - Performance BM",27,null,null,null,null,null,null,null,null,0,{"$error":"#DIV/0!"}]
[null,null,"CVPA","M152 Music: Keyboard Performance BM",2,null,null,null,null,null,null,null,null,0,{"$error":"#DIV/0!"}]
[null,null,"CVPA","M175 Music: Keybrd Perf - Pedago BM",1,null,null,null,null,null,null,null,null,0,{"$error":"#DIV/0!"}]
[null,null,"CVPA","M145 Music: Elective Studies BM",35,30,32,34,34,25,27,null,null,2,0.08]
[null,null,"CVPA","M150 Music: Composition BM",8,5,2,1,0,0,0,null,null,0,{"$error":"#DIV/0!"}]
[null,null,"CVPA","M153 Music: Theory BM",10,3,0,0,0,0,0,null,null,0,{"$error":"#DIV/0!"}]
[null,null,"CVPA","M190 Music: Theory & Composition BM",2,6,8,10,11,14,14,null,null,0,0]
[null,null,"CVPA","M147 Music Educ: Instrument BM",179,195,211,186,213,225,225,null,null,0,0]
[null,null,"CVPA","M148 Music Educ: Voice BM",87,101,98,95,94,94,94,null,null,0,0]
[null,null,"CVPA","M149 Music Educ: Keyboard BM",42,35,25,25,33,33,34,null,null,1,3.0303030303030304E-2]
[null,null,"CVPA","S147 Music Educ: General-Instrum BS",10,0,0,0,0,0,0,null,null,0,{"$error":"#DIV/0!"}]
[null,null,"CVPA","S149 Music Ed: Vocal/Choral-Voic BS",3,0,0,0,0,0,0,null,null,0,{"$error":"#DIV/0!"}]
[null,null,"CVPA","S314 Music Educ: General-Voice BS",2,0,0,0,0,0,0,null,null,0,{"$error":"#DIV/0!"}]
[null,null,"CVPA","T214 Music Education TCHGCERT",3,3,2,2,2,"",1,null,null,{"$error":"#VALUE!"},{"$error":"#VALUE!"}]
[null,null,"CVPA","A191 Theatre and Dance: Perfmnce BA","","",0,27,0,0,9,null,null,9,{"$error":"#DIV/0!"}]
[null,null,"CVPA","A191 Theatre Arts: Performance BA","","",0,0,13,14,0,null,null,-14,-1]
[null,null,"CVPA","A194 Theatre and Dnce: Mus Thtre BA","","",39,22,0,0,15,null,null,15,{"$error":"#DIV/0!"}]
[null,null,"CVPA","A194 Theatre Arts: Mus Theatre BA","","",30,0,17,13,0,null,null,-13,-1]
[null,null,"CVPA","A195 Theatre and Dnce: Tech Prod BA","","",0,9,0,0,10,null,null,10,{"$error":"#DIV/0!"}]
[null,null,"CVPA","A195 Theatre Arts: Tech Producti BA","","",15,0,9,4,0,null,null,-4,-1]
[null,null,"CVPA","A888 Theatre and Dance: General BA","","",0,50,0,0,68,null,null,68,{"$error":"#DIV/0!"}]
[null,null,"CVPA","A888 Theatre Arts: General BA","","",14,0,67,64,0,null,null,-64,-1]
[null,null,"CVPA","M155 Music: Vocal Performance BM",7,null,null,null,null,null,null,null,null,0,{"$error":"#DIV/0!"}]
[]
[]
[]
[]
[]
[null,null,"College","Descrip","Fall 02","Fall 03","Fall 04","Fall 05","Fall 06","Fall 07","Fall 08"]
[null,null,"CAS","C204 Gerontology CERTIF",1,2,2,0,0,0,1]
[null,null,"CAS","S175 Long-Term Hlth Care MSA",2,5,5,4,2,0,0]
[null,null,"CAS","PG02 Biology PROF-GRW",0,0,3,3,0,1,2]
[null,null,"CAS","S173 Biology MS",9,16,15,17,18,14,9]
[null,null,"CAS","S174 Biology - Thesis MS",11,7,8,6,8,18,17]
[null,null,"CAS","S561 Biology - Natural Science MS",1,0,0,0,0,0,0]
[null,null,"CAS","T181 Biology TCHGCERT",0,0,0,0,0,0,2]
[null,null,"CAS","A105 Physical Science: Chemistry MA",1,0,0,0,0,0,0]
[null,null,"CAS","E104 Chemistry MED",2,2,1,0,0,0,0]
[null,null,"CAS","PG03 Chemistry PROF-GRW",1,0,0,0,0,0,0]
[null,null,"CAS","S102 Chemistry MS",4,2,1,2,0,0,0]
[null,null,"CAS","S103 Clinical Chemistry MS",10,5,3,2,1,0,0]
[null,null,"CAS","A506 Communication Studies MA",14,22,17,17,18,22,19]
[null,null,"CAS","C206 Computer Science Cert PROF-GRW",4,1,2,0,0,3,1]
[null,null,"CAS","PG05 Computer Science PROF-GRW",1,1,0,0,0,0,1]
[null,null,"CAS","S518 Computer Science MS",37,30,24,28,23,24,18]
[null,null,"CAS","A107 English MA",42,60,69,45,47,61,52]
[null,null,"CAS","A124 Writing, Tching & Criticism MA",0,0,5,13,13,2,0]
[null,null,"CAS","A173 TESL MA",32,46,51,44,36,27,28]
[null,null,"CAS","A232 English - Non-Thesis Option MA",0,1,0,0,0,0,0]
[null,null,"CAS","C220 TESL CERTIF",0,2,4,4,4,8,6]
[null,null,"CAS","PG31 TESL PROF-GRW",7,5,5,0,0,0,0]
[null,null,"CAS","T182 English TCHGCERT",0,0,0,0,0,0,7]
[null,null,"CAS","A114 Physical Science: Earth Sci MA",12,12,8,13,8,6,22]
[null,null,"CAS","T100 General Science TCHGCERT",0,0,0,0,0,0,1]
[null,null,"CAS","T184 Earth-Space Science TCHGCERT",0,0,0,0,0,0,1]
[null,null,"CAS","A108 French MA",3,3,2,3,2,7,5]
[null,null,"CAS","A112 Spanish MA",5,7,4,3,1,5,4]
[null,null,"CAS","E109 French MED",7,5,3,2,5,8,6]
[null,null,"CAS","E113 Spanish MED",9,4,4,5,6,5,5]
[null,null,"CAS","PG12 Frgn Lang (Spanish) PROF-GRW",0,0,1,0,0,0,0]
[null,null,"CAS","T177 French TCHGCERT",0,0,0,0,0,0,1]
[null,null,"CAS","T178 Spanish TCHGCERT",3,2,0,0,0,0,0]
[null,null,"CAS","A115 History MA",25,27,27,20,20,23,29]
[null,null,"CAS","A200 Holocaust & Genocide Studie MA",9,9,12,10,18,13,20]
[null,null,"CAS","C201 Holocaust & Genocide St CERTIF",0,0,0,0,1,1,0]
[null,null,"CAS","E116 History MED",8,5,7,10,6,3,5]
[null,null,"CAS","A517 Mathematics MA",14,17,12,11,9,15,17]
[null,null,"CAS","C218 Applied Statistics CERTIF",0,0,2,3,4,1,4]
[null,null,"CAS","PG19 Mathematics PROF-GRW",0,0,0,0,0,1,0]
[null,null,"CAS","S563 Applied Statistics MS",0,11,22,41,44,46,61]
[null,null,"CAS","T185 Mathematics TCHGCERT",0,0,0,0,0,1,2]
[null,null,"CAS","A119 Philosophy MA",16,25,17,13,16,21,27]
[null,null,"CAS","C234 Certificate in Business Ethics",0,0,0,0,0,0,1]
[null,null,"CAS","PG21 Philosophy PROF-GRW",0,0,1,0,0,1,1]
[null,null,"CAS","A120 Psychology: Clinical MA",42,42,51,50,49,54,58]
[null,null,"CAS","A121 Psychology: General MA",4,2,5,6,4,7,5]
[null,null,"CAS","A122 Psychology: Industrial MA",23,21,24,21,21,24,24]
[null,null,"CAS","C210 Clinical Mental Health CERTIF",6,4,2,4,2,5,4]
[null,null,"CAS","PG25 Psych: General PROF-GRW",2,1,1,0,0,1,0]
[null,null,"CAS","C202 Leadership for Women CERTIF",1,0,1,1,0,1,0]
[null,null,"CAS","S525 Leadership for Women MSA",1,2,3,0,0,0,2]
[null,null,"CBPA","PG07 Criminal Justice PROF-GRW",0,1,0,0,0,0,0]
[null,null,"CBPA","S182 Criminal Justice - Thesis MS",7,4,2,0,0,0,0]
[null,null,"CBPA","S536 Criminal Justice MS",35,32,32,26,25,22,32]
[null,null,"CBPA","B133 Bus Admin: Economics-Finan MBA",25,21,26,23,22,25,8]
[null,null,"CBPA","A537 Geography MA",16,16,13,16,18,24,22]
[null,null,"CBPA","C233 Geographic Technology CERTIF",0,0,0,0,0,0,2]
[null,null,"CBPA","PG13 Geography PROF-GRW",1,1,2,0,0,0,1]
[null,null,"CBPA","S130 Regional Planning MSA",5,4,2,1,0,3,4]
[null,null,"CBPA","S127 Human Resource Mgmt. MSA",24,18,19,14,12,0,0]
[null,null,"CBPA","S131 Individualized Program MSA",13,7,12,4,8,8,4]
[null,null,"CBPA","S140 Human Resource Mgmt. MSA",0,0,0,0,0,14,17]
[null,null,"CBPA","S526 Public Administration MSA",9,6,9,12,7,5,3]
[null,null,"CBPA","S528 Training & Developmt MSA",6,2,2,4,1,2,8]
[null,null,"CBPA","S530 Nonprofit Administration MSA",0,0,0,0,0,0,3]
[null,null,"CBPA","B134 Bus Admin: General MBA",13,15,22,23,17,23,52]
[null,null,"CBPA","B135 Bus Admin: Management MBA",32,26,31,26,17,13,4]
[null,null,"CBPA","B181 Bus Admin: Executive MBA",23,20,4,0,0,0,1]
[null,null,"CBPA","C241 Graduate Business Certificate",0,0,0,0,0,0,3]
[null,null,"CBPA","B190 Bus Admin: Tech-Electronic MBA",51,42,19,16,14,7,4]
[null,null,"CBPA","S176 Social Work MSW",46,54,67,68,74,84,71]
[null,null,"EDS","Z100 NON-DEGR (Post Masters)",3,1,0,1,3,2,2]
[null,null,"EDS","Z101 NON-DEGR General",394,317,345,359,382,316,309]
[null,null,"EDS","Z102 NON-DEGR Post Master's: WCU",0,0,1,4,4,1,0]
[null,null,"EDS","Z103 NON-DEGR Senior Citizen",2,2,2,4,4,6,2]
[null,null,"COE","C211 Prof Couns Licens Prep CERTIF",9,13,13,14,3,8,13]
[null,null,"COE","E142 Counseling: Elementary MED",58,57,63,59,66,67,60]
[null,null,"COE","E143 Counseling: Secondary MED",70,72,81,88,92,98,90]
[null,null,"COE","PG06 Counseling PROF-GRW",2,0,0,1,1,0,0]
[null,null,"COE","S144 Couns: Higher Ed/Stu Aff  MS",73,67,70,71,59,58,46]
[null,null,"COE","T145 Counseling TCHGCERT",11,9,8,6,2,3,5]
[null,null,"COE","C243 Grad Certificate in Autism",0,0,0,0,0,0,10]
[null,null,"COE","E152 Special Education MED",20,22,25,26,24,34,31]
[null,null,"COE","E203 Early Childhood Education MED",0,0,1,8,8,43,60]
[null,null,"COE","PG30 Special Education PROF-GRW",0,1,1,0,0,0,0]
[null,null,"COE","T153 Special Education TCHGCERT",37,47,49,38,47,40,33]
[null,null,"COE","T221 Early Childhood Educ TCHGCERT",0,0,0,0,0,0,4]
[null,null,"COE","E138 Elementary Education MED",103,92,88,87,86,87,72]
[null,null,"COE","PG35 Certif of Adv Graduat PROF-GRW",0,0,0,0,1,0,0]
[null,null,"COE","T141 Elementary Education TCHGCERT",135,166,136,137,120,101,87]
[null,null,"COE","C219 Literacy CERTIF",0,0,0,0,1,2,1]
[null,null,"COE","E139 Reading MED",160,154,139,150,134,160,170]
[null,null,"COE","PG27 Reading PROF-GRW",1,0,0,0,0,0,0]
[null,null,"COE","T140 Reading TCHGCERT",7,12,14,7,8,9,20]
[null,null,"COE","C203 Teaching-Learning W/Tec CERTIF",0,3,2,0,0,0,0]
[null,null,"COE","E146 Secondary Education MED",33,30,28,20,27,34,26]
[null,null,"COE","PG28 Secondary Education PROF-GRW",0,0,0,0,0,0,1]
[null,null,"COE","S548 Educational Research MS",4,6,4,3,1,0,0]
[null,null,"COE","T147 Secondary Education TCHGCERT",30,72,71,52,44,43,23]
[null,null,"CHS","C207 Health: Integrative Hea CERTIF",0,2,5,5,3,0,3]
[null,null,"CHS","E158 Health: School Health MED",22,21,30,19,18,22,33]
[null,null,"CHS","M191 Public Health MPH",19,60,77,75,79,90,103]
[null,null,"CHS","PG15 Health PROF-GRW",0,1,1,0,0,0,0]
[null,null,"CHS","S309 Health: Gerontology MS",1,1,0,0,0,0,0]
[null,null,"CHS","S524 Health Services MSA",5,3,1,0,0,0,0]
[null,null,"CHS","S556 Health: Public Health MS",23,2,2,0,0,0,0]
[null,null,"CHS","T189 Health TCHGCERT",0,0,0,0,0,1,0]
[null,null,"CHS","PG22 Physical Education PROF-GRW",1,0,0,0,0,0,0]
[null,null,"CHS","S161 Hlth&Phys Ed: Exercise Phys MS",15,18,16,16,10,19,16]
[null,null,"CHS","S529 Sport & Athletic Admin MSA",33,40,33,37,28,21,24]
[null,null,"CHS","S560 MS in Physical Education",4,1,3,2,1,1,2]
[null,null,"CHS","PG32 Nursing PROF-GRW",2,0,0,0,0,0,0]
[null,null,"CHS","S310 Nursing - Education MSN",5,8,11,15,20,17,11]
[null,null,"CHS","S559 Nursing MSN",20,27,23,25,22,25,17]
[null,null,"CHS","T220 School Nursing CERTIF",1,5,5,0,8,2,0]
[null,null,"CHS","T220 School Nursing TCHGCERT",0,0,0,2,0,0,2]
[null,null,"CHS","A154 Communicative Disorders MA",93,88,95,99,97,77,85]
[null,null,"CHS","PG04 Communicativ Disorder PROF-GRW",0,0,0,0,0,0,1]
[null,null,"CVPA","M165 Music: Piano Pedagogy MM",0,4,3,4,5,8,7]
[null,null,"CVPA","M166 Music Performance MM",0,8,15,16,8,14,16]
[null,null,"CVPA","M166 Music Performance MM",4]
[null,null,"CVPA","M176 Music Performance - Instrum MM",1]
[null,null,"CVPA","M165 Music: Piano Pedagogy MM",4]
[null,null,"CVPA","A563 Music History MA",2,4,4,3,5,6,4]
[null,null,"CVPA","PG20 Music: General PROF-GRW",0,1,0,1,0,0,0]
[null,null,"CVPA","M167 Music: Composition MM",3,0,0,2,3,2,2]
[null,null,"CVPA","M169 Music: Music Theory MM",0,0,1,6,3,1,0]
[null,null,"CVPA","M192 Music: Theory & Composition MM",0,0,0,0,0,0,3]
[null,null,"CVPA","C226 Certificate in Orff-Schulwerk",0,0,0,0,0,1,0]
[null,null,"CVPA","M168 Music Education MM",32,21,23,23,29,29,28]
[null,null,"CVPA","M189 Music Education-Technology",0,0,3,3,4,3,7]
[null,null,"CVPA","T190 Music Education TCHGCERT",0,0,0,0,0,0,1]

{"sheet":"Historic Deg Counts 2003 - 07","index":6,"n_rows":52,"n_cols":13,"rows_kept":52,"cut":false,"hidden":true,"merged":[[50,1,50,2],[51,1,51,2],[33,1,34,2],[35,1,35,2],[36,1,36,2],[37,1,37,2],[38,1,38,2],[39,1,39,2],[47,1,47,2],[42,1,42,2],[43,1,43,2],[48,1,48,2],[49,1,49,2],[40,1,40,2],[41,1,41,2],[44,1,44,2],[45,1,45,2],[46,1,46,2],[49,8,49,9],[50,3,50,4],[35,8,35,9],[36,8,36,9],[37,8,37,9],[47,3,47,4],[48,3,48,4],[46,8,46,9],[47,8,47,9],[48,8,48,9],[45,8,45,9],[44,3,44,4],[44,5,44,6],[42,3,42,4],[51,3,51,4],[49,3,49,4],[50,10,50,11],[46,5,46,6],[47,5,47,6],[48,5,48,6],[49,5,49,6],[50,5,50,6],[51,5,51,6],[50,8,50,9],[45,10,45,11],[46,10,46,11],[47,10,47,11],[48,10,48,11],[49,10,49,11],[43,7,43,11],[36,5,36,6],[37,5,37,6],[38,5,38,6],[39,5,39,6],[40,5,40,6],[41,8,41,9],[42,8,42,9],[41,3,41,4],[35,5,35,6],[46,3,46,4],[35,10,35,11],[36,10,36,11],[37,10,37,11],[38,10,38,11],[39,10,39,11],[40,10,40,11],[41,10,41,11],[42,10,42,11],[35,3,35,4],[43,5,43,6],[41,5,41,6],[42,5,42,6],[43,3,43,4],[40,3,40,4],[33,10,34,11],[38,8,38,9],[39,8,39,9],[40,8,40,9],[33,5,34,6],[33,3,34,4],[33,7,34,7],[33,8,34,9],[0,0,1,13],[36,3,36,4],[37,3,37,4],[38,3,38,4],[39,3,39,4],[7,12,8,12],[5,1,5,12],[20,1,20,12],[30,1,30,12],[3,1,3,6],[3,7,3,12],[7,1,8,1],[7,2,7,5],[7,6,8,6],[7,7,8,7],[7,8,7,11]]}
["West Chester University's Historic Degree Counts 2003 - 2007"]
[]
[]
[null,"Graduate Level",null,null,null,null,null,"Undergraduate Level"]
[]
[null,"Degree Type"]
[]
[null,"Degree Type","Degree Year",null,null,null,"Total","Degree Type","Degree Year",null,null,null,"Total"]
[null,null,"2003-04","2004-05","2005-06","2006-07",null,null,"2003-04","2004-05","2005-06","2006-07"]
[null,"MA",131,123,125,142,{"$f":"SUM(C10:F10)","v":521},"BA",445,524,550,526,{"$f":"SUM(I10:L10)","v":2045}]
[null,"MBA",53,55,41,32,{"$f":"SUM(C11:F11)","v":181},"BFA",47,48,63,62,{"$f":"SUM(I11:L11)","v":220}]
[null,"MED",157,172,162,188,679,"BM",57,82,69,66,274]
[null,"MM",29,8,12,26,75,"BS",820,819,958,953,3550]
[null,"MPH",20,16,21,44,101,"BSED",439,416,406,422,1683]
[null,"MS",102,96,80,74,352,"BSN",68,83,82,89,322]
[null,"MSA",0,0,33,29,62,"BSW",25,48,38,42,153]
[null,"MSN",12,7,12,12,43,"Total",{"$f":"SUM(I10:I16)","v":1901},{"$f":"SUM(J10:J16)","v":2020},{"$f":"SUM(K10:K16)","v":2166},{"$f":"SUM(L10:L16)","v":2160},{"$f":"SUM(M10:M16)","v":8247}]
[null,"MSW",17,28,37,32,114]
[null,"Total",{"$f":"SUM(C10:C18)","v":521},{"$f":"SUM(D10:D18)","v":505},{"$f":"SUM(E10:E18)","v":523},{"$f":"SUM(F10:F18)","v":579},2128]
[]
[null,"College"]
[]
[null," College  ","2003-04","2004-05","2005-06","2006-07","Total"," College  ","2003-04","2004-05","2005-06","2006-07","Total"]
[null," College of Arts & Sciences  ",110,126,131,150,{"$f":"SUM(C24:F24)","v":517}," College of Arts & Sciences  ",711,723,795,782,{"$f":"SUM(I24:L24)","v":3011}]
[null," College of Business & Public Affairs  ",110,113,111,95,{"$f":"SUM(C25:F25)","v":429}," College of Business & Public Affairs  ",555,552,566,509,{"$f":"SUM(I25:L25)","v":2182}]
[null," College of Education  ",184,189,173,197,{"$f":"SUM(C26:F26)","v":743}," College of Education  ",360,351,333,357,{"$f":"SUM(I26:L26)","v":1401}]
[null," College of Health Sciences  ",87,69,94,110,{"$f":"SUM(C27:F27)","v":360}," College of Health Sciences  ",218,247,319,366,{"$f":"SUM(I27:L27)","v":1150}]
[null," College of Visual & Performing Arts  ",30,8,14,27,{"$f":"SUM(C28:F28)","v":79}," College of Visual & Performing Arts  ",57,147,153,146,{"$f":"SUM(I28:L28)","v":503}]
[null," Total  ",{"$f":"SUM(C24:C28)","v":521},{"$f":"SUM(D24:D28)","v":505},{"$f":"SUM(E24:E28)","v":523},{"$f":"SUM(F24:F28)","v":579},{"$f":"SUM(G24:G28)","v":2128}," Total  ",{"$f":"SUM(I24:I28)","v":1901},{"$f":"SUM(J24:J28)","v":2020},{"$f":"SUM(K24:K28)","v":2166},{"$f":"SUM(L24:L28)","v":2160},{"$f":"SUM(M24:M28)","v":8247}]
[]
[null,"% Change in Historic Degree Counts"]
[]
[]
[null," Degree Type  ",null,"% change from 2004-05 to 2005-06",null,"% change from 2005-06 to 2006-07",null," Degree Type  ","% change from 2004-05 to 2005-06",null,"% change from 2005-06 to 2006-07"]
[]
[null,"MA",null,1.6000000000000014E-2,null,0.11971830985915488,null,"BA",4.7272727272727244E-2,null,-4.5627376425855459E-2]
[null,"MBA",null,-0.34146341463414642,null,-0.28125,null,"BFA",0.23809523809523814,null,-1.6129032258064502E-2]
[null,"MED",null,-6.1728395061728447E-2,null,0.13829787234042556,null,"BM",-0.18840579710144922,null,-4.5454545454545414E-2]
[null,"MM",null,0.33333333333333337,null,0.53846153846153844,null,"BS",0.14509394572025047,null,-5.2465897166842357E-3]
[null,"MPH",null,0.23809523809523814,null,0.52272727272727271,null,"BSED",-2.4630541871921263E-2,null,3.7914691943127909E-2]
[null,"MS",null,-0.19999999999999996,null,-8.1081081081081141E-2,null,"BSN",-1.2195121951219523E-2,null,7.8651685393258397E-2]
[null,"MSA",null,1,null,-0.13793103448275867,null,"BSW",-0.26315789473684204,null,9.5238095238095233E-2]
[null,"MSN",null,0.41666666666666663,null,0,null," Total  ",6.7405355493998176E-2,null,-2.7777777777777679E-3]
[null,"MSW",null,0.2432432432432432,null,-0.15625]
[null," Total  ",null,3.4416826003824119E-2,null,9.6718480138169305E-2,null," College  "]
[null," College  ",null,null,null,null,null," College of Arts & Sciences  ",9.0566037735849036E-2,null,-1.6624040920716121E-2]
[null," College of Arts & Sciences  ",null,3.8167938931297662E-2,null,0.12666666666666671,null," College of Business & Public Affairs  ",2.4734982332155431E-2,null,-0.11198428290766205]
[null," College of Business & Public Affairs  ",null,-1.8018018018018056E-2,null,-0.16842105263157903,null," College of Education  ",-5.4054054054053946E-2,null,6.7226890756302504E-2]
[null," College of Education  ",null,-9.2485549132947931E-2,null,0.12182741116751272,null," College of Health Sciences  ",0.22570532915360497,null,0.12841530054644812]
[null," College of Health Sciences  ",null,0.26595744680851063,null,0.1454545454545455,null," College of Visual & Performing Arts  ",3.9215686274509776E-2,null,-4.7945205479452024E-2]
[null," College of Visual & Performing Arts  ",null,0.4285714285714286,null,0.48148148148148151,null," Total  ",6.7405355493998204E-2,null,-2.7777777777777679E-3]
[null," Total  ",null,3.4416826003824119E-2,null,9.6718480138169305E-2]

{"sheet":"Scrap work","index":7,"n_rows":27,"n_cols":25,"rows_kept":27,"cut":false,"hidden":true,"merged":[[13,0,13,20],[0,0,1,0],[0,11,1,11],[0,13,1,13]]}
["Degree Type","Degree Year",null,null,null,null,null,null,null,null,null,"Total",null,"Degree Type","Degree Year",null,null,null,null,null,null,null,null,null,"Total"]
[null,"2003-04","2004-05","N","%","% CHANGE","2005-06","N","%","% CHANGE","2006-07",null,null,null,"2003-04","2004-05","N","%","% CHANGE","2005-06","N","%","% CHANGE","2006-07"]
["MA",131,123,{"$f":"G3-C3","v":2},{"$f":"C3/G3","v":0.98399999999999999},{"$f":"100%-E3","v":1.6000000000000014E-2},125,{"$f":"K3-G3","v":17},{"$f":"G3/K3","v":0.88028169014084512},{"$f":"100%-I3","v":0.11971830985915488},142,{"$f":"SUM(B3:K3)","v":542},null,"BA",445,524,{"$f":"T3-P3","v":26},{"$f":"P3/T3","v":0.95272727272727276},{"$f":"100%-R3","v":4.7272727272727244E-2},550,{"$f":"X3-T3","v":-24},{"$f":"T3/X3","v":1.0456273764258555},{"$f":"100%-V3","v":-4.5627376425855459E-2},526,{"$f":"SUM(O3:X3)","v":2049}]
["MBA",53,55,-14,{"$f":"C4/G4","v":1.3414634146341464},-0.34146341463414642,41,{"$f":"K4-G4","v":-9},{"$f":"G4/K4","v":1.28125},{"$f":"100%-I4","v":-0.28125},32,160,null,"BFA",47,48,{"$f":"T4-P4","v":15},{"$f":"P4/T4","v":0.76190476190476186},{"$f":"100%-R4","v":0.23809523809523814},63,{"$f":"X4-T4","v":-1},{"$f":"T4/X4","v":1.0161290322580645},{"$f":"100%-V4","v":-1.6129032258064502E-2},62,236]
["MED",157,172,-10,1.0617283950617284,-6.1728395061728447E-2,162,26,0.86170212765957444,0.13829787234042556,188,697,null,"BM",57,82,-13,1.1884057971014492,-0.18840579710144922,69,-3,1.0454545454545454,-4.5454545454545414E-2,66,260]
["MM",29,8,4,0.66666666666666663,0.33333333333333337,12,14,0.46153846153846156,0.53846153846153844,26,95,null,"BS",820,819,139,0.85490605427974953,0.14509394572025047,958,-5,1.0052465897166842,-5.2465897166842357E-3,953,3686]
["MPH",20,16,5,0.76190476190476186,0.23809523809523814,21,23,0.47727272727272729,0.52272727272727271,44,131,null,"BSED",439,416,-10,1.0246305418719213,-2.4630541871921263E-2,406,16,0.96208530805687209,3.7914691943127909E-2,422,1691]
["MS",102,96,-16,1.2,-0.19999999999999996,80,-6,1.0810810810810811,-8.1081081081081141E-2,74,332,null,"BSN",68,83,-1,1.0121951219512195,-1.2195121951219523E-2,82,7,0.9213483146067416,7.8651685393258397E-2,89,330]
["MSA",0,0,33,0,1,33,-4,1.1379310344827587,-0.13793103448275867,29,93,null,"BSW",25,48,-10,1.263157894736842,-0.26315789473684204,38,4,0.90476190476190477,9.5238095238095233E-2,42,149]
["MSN",12,7,5,0.58333333333333337,0.41666666666666663,12,0,1,0,12,50,null,"Total",{"$f":"SUM(O3:O9)","v":1901},{"$f":"SUM(P3:P9)","v":2020},146,0.93259464450600182,6.7405355493998176E-2,{"$f":"SUM(T3:T9)","v":2166},-6,1.0027777777777778,-2.7777777777777679E-3,{"$f":"SUM(X3:X9)","v":2160},{"$f":"SUM(Y3:Y9)","v":8401}]
["MSW",17,28,9,0.7567567567567568,0.2432432432432432,37,-5,1.15625,-0.15625,32,120]
["Total",{"$f":"SUM(B3:B11)","v":521},{"$f":"SUM(C3:C11)","v":505},18,0.96558317399617588,3.4416826003824119E-2,{"$f":"SUM(G3:G11)","v":523},56,{"$f":"G12/K12","v":0.9032815198618307},9.6718480138169305E-2,{"$f":"SUM(K3:K11)","v":579},2204]
[]
["College"]
[]
[" College  ","2003-04","2004-05","N","%","% CHANGE","2005-06","N","%","% CHANGE","2006-07","Total",null," College  ","2003-04","2004-05","N","%","% CHANGE","2005-06","N","%","% CHANGE","2006-07","Total"]
[" College of Arts & Sciences  ",110,126,{"$f":"G17-C17","v":5},{"$f":"C17/G17","v":0.96183206106870234},{"$f":"100%-E17","v":3.8167938931297662E-2},131,{"$f":"K17-G17","v":19},{"$f":"G17/K17","v":0.87333333333333329},{"$f":"100%-I17","v":0.12666666666666671},150,{"$f":"SUM(B17:K17)","v":543},null," College of Arts & Sciences  ",711,723,{"$f":"T17-P17","v":72},{"$f":"P17/T17","v":0.90943396226415096},{"$f":"100%-R17","v":9.0566037735849036E-2},795,{"$f":"X17-T17","v":-13},{"$f":"T17/X17","v":1.0166240409207161},{"$f":"100%-V17","v":-1.6624040920716121E-2},782,{"$f":"SUM(O17:X17)","v":3072}]
[" College of Business & Public Affairs  ",110,113,-2,1.0180180180180181,-1.8018018018018056E-2,111,-16,1.168421052631579,-0.16842105263157903,95,{"$f":"SUM(B18:K18)","v":413},null," College of Business & Public Affairs  ",555,552,14,0.97526501766784457,2.4734982332155431E-2,566,-57,1.111984282907662,-0.11198428290766205,509,{"$f":"SUM(O18:X18)","v":2141}]
[" College of Education  ",184,189,-16,1.0924855491329479,-9.2485549132947931E-2,173,24,0.87817258883248728,0.12182741116751272,197,{"$f":"SUM(B19:K19)","v":753},null," College of Education  ",360,351,-18,1.0540540540540539,-5.4054054054053946E-2,333,24,0.9327731092436975,6.7226890756302504E-2,357,{"$f":"SUM(O19:X19)","v":1409}]
[" College of Health Sciences  ",87,69,25,0.73404255319148937,0.26595744680851063,94,16,0.8545454545454545,0.1454545454545455,110,{"$f":"SUM(B20:K20)","v":403},null," College of Health Sciences  ",218,247,72,0.77429467084639503,0.22570532915360497,319,47,0.87158469945355188,0.12841530054644812,366,{"$f":"SUM(O20:X20)","v":1271}]
[" College of Visual & Performing Arts  ",30,8,6,0.5714285714285714,0.4285714285714286,14,13,0.51851851851851849,0.48148148148148151,27,{"$f":"SUM(B21:K21)","v":100},null," College of Visual & Performing Arts  ",57,147,6,0.96078431372549022,3.9215686274509776E-2,153,-7,1.047945205479452,-4.7945205479452024E-2,146,{"$f":"SUM(O21:X21)","v":504}]
[" Total  ",{"$f":"SUM(B17:B21)","v":521},{"$f":"SUM(C17:C21)","v":505},18,0.96558317399617588,3.4416826003824119E-2,{"$f":"SUM(G17:G21)","v":523},56,0.9032815198618307,9.6718480138169305E-2,{"$f":"SUM(K17:K21)","v":579},{"$f":"SUM(L17:L21)","v":2212},null," Total  ",{"$f":"SUM(O17:O21)","v":1901},{"$f":"SUM(P17:P21)","v":2020},146,0.93259464450600182,6.7405355493998176E-2,{"$f":"SUM(T17:T21)","v":2166},-6,1.0027777777777778,-2.7777777777777679E-3,{"$f":"SUM(X17:X21)","v":2160},{"$f":"SUM(Y17:Y21)","v":8397}]
[]
[]
["Location of files"]
[]
["F/Research/Internal/ProgramReview/ProgramReview08_09"]

{"sheet":"Fall 2008 Staff Totals","index":8,"n_rows":76,"n_cols":19,"rows_kept":76,"cut":false,"hidden":true,"merged":[[5,16,6,17],[6,8,6,9],[6,10,6,11],[6,12,6,13],[5,10,5,11],[6,14,6,15],[5,12,5,13],[5,14,5,15],[5,1,7,1],[5,2,5,3],[5,4,5,5],[5,6,5,7],[5,8,5,9],[6,2,6,3],[6,4,6,5],[13,6,13,7],[13,8,13,9],[13,10,13,11],[14,2,14,3],[14,4,14,5],[14,6,14,7],[14,8,14,9],[13,2,13,3],[13,4,13,5],[74,14,74,16],[75,13,75,16],[69,14,69,16],[70,14,70,16],[71,14,71,16],[72,14,72,16],[1,0,1,19],[0,0,0,19],[14,12,14,13],[65,17,66,18],[73,14,73,16],[3,0,3,19],[13,12,13,13],[13,14,13,15],[13,16,14,17],[14,14,14,15],[61,13,63,18],[13,1,15,1],[6,6,6,7],[68,14,68,16],[65,13,67,16],[14,10,14,11]]}
["West Chester University's Staff Gender and Race/Ethnicity Totals"]
["Fall 2008"]
[]
["University Summary"]
[]
[null,"Gender","H10",null,"H20",null,"H30",null,"H40",null,"H50",null,"H60",null,"H70",null,"Total"]
[null,null,"Executive",null,"Faculty",null,"Other Prof.",null,"Clerical",null,"Technical",null,"Skilled Crafts",null,"Service"]
[null,null,"N","%","N","%","N","%","N","%","N","%","N","%","N","%","N","%"]
[null,"Female",19,{"$f":"C9/C$11","v":0.38775510204081631},474,{"$f":"E9/E$11","v":0.53802497162315555},149,{"$f":"G9/G$11","v":0.60323886639676116},170,{"$f":"I9/I$11","v":0.87628865979381443},30,{"$f":"K9/K$11","v":0.73170731707317072},0,{"$f":"M9/M$11","v":0},55,{"$f":"O9/O$11","v":0.3125},897,{"$f":"Q9/Q$11","v":0.54462659380692169}]
[null,"Male",30,{"$f":"C10/C$11","v":0.61224489795918369},407,{"$f":"E10/E$11","v":0.46197502837684451},98,{"$f":"G10/G$11","v":0.39676113360323889},24,{"$f":"I10/I$11","v":0.12371134020618557},11,{"$f":"K10/K$11","v":0.26829268292682928},59,{"$f":"M10/M$11","v":1},121,{"$f":"O10/O$11","v":0.6875},750,{"$f":"Q10/Q$11","v":0.45537340619307831}]
[null,"Total",{"$f":"SUM(C9:C10)","v":49},{"$f":"C11/C$11","v":1},{"$f":"SUM(E9:E10)","v":881},{"$f":"E11/E$11","v":1},{"$f":"SUM(G9:G10)","v":247},{"$f":"G11/G$11","v":1},{"$f":"SUM(I9:I10)","v":194},{"$f":"I11/I$11","v":1},{"$f":"SUM(K9:K10)","v":41},{"$f":"K11/K$11","v":1},{"$f":"SUM(M9:M10)","v":59},{"$f":"M11/M$11","v":1},{"$f":"SUM(O9:O10)","v":176},{"$f":"O11/O$11","v":1},{"$f":"SUM(Q9:Q10)","v":1647},{"$f":"Q11/Q$11","v":1}]
[]
[]
[null,"Race/Ethnicity","H10",null,"H20",null,"H30",null,"H40",null,"H50",null,"H60",null,"H70",null,"Total"]
[null,null,"Executive",null,"Faculty",null,"Other Prof.",null,"Clerical",null,"Technical",null,"Skilled Crafts",null,"Service"]
[null,null,"N","%","N","%","N","%","N","%","N","%","N","%","N","%","N","%"]
[null,"Black/Not Hispanic origin               ",3,{"$f":"C17/C$22","v":6.1224489795918366E-2},44,{"$f":"E17/E$22","v":4.9943246311010214E-2},20,{"$f":"G17/G$22","v":8.0971659919028341E-2},25,{"$f":"I17/I$22","v":0.12886597938144329},4,{"$f":"K17/K$22","v":9.7560975609756101E-2},4,{"$f":"M17/M$22","v":6.7796610169491525E-2},82,{"$f":"O17/O$22","v":0.46590909090909088},182,{"$f":"Q17/Q$22","v":0.11050394656952034}]
[null,"American Indian/Alaskan                 ",0,0,2,2.2701475595913734E-3,0,0,0,0,0,0,0,0,0,0,2,1.2143290831815423E-3]
[null,"Asian/Pacific Islander/Hawaiian         ",3,6.1224489795918366E-2,43,4.8808172531214528E-2,6,2.4291497975708502E-2,1,5.1546391752577319E-3,1,2.4390243902439025E-2,1,1.6949152542372881E-2,6,3.4090909090909088E-2,61,3.7037037037037035E-2]
[null,"Hispanic                                ",0,0,19,2.1566401816118047E-2,2,8.0971659919028341E-3,4,2.0618556701030927E-2,1,2.4390243902439025E-2,1,1.6949152542372881E-2,8,4.5454545454545456E-2,35,2.1250758955676987E-2]
[null,"White/Not Hispanic origin               ",43,0.87755102040816324,773,0.87741203178206584,219,0.88663967611336036,164,0.84536082474226804,35,0.85365853658536583,53,0.89830508474576276,80,0.45454545454545453,1367,0.82999392835458408]
[null,"Total",{"$f":"SUM(C17:C21)","v":49},1,{"$f":"SUM(E17:E21)","v":881},1,{"$f":"SUM(G17:G21)","v":247},1,{"$f":"SUM(I17:I21)","v":194},1,{"$f":"SUM(K17:K21)","v":41},1,{"$f":"SUM(M17:M21)","v":59},1,{"$f":"SUM(O17:O21)","v":176},1,{"$f":"SUM(Q17:Q21)","v":1647},1]
[]
[]
[]
[]
[]
[]
[]
[]
[]
[]
[]
[]
[]
[]
[]
[]
[]
[]
[]
[]
[]
[]
[]
[]
[]
[]
[]
[]
[]
[]
[]
[]
[]
[]
[]
[]
[]
[]
[]
[]
[]
[]
[]
[null,null,null,null,null,null,null,null,null,null,null,null,null,"EEO Category",null,null,null,"University Total"]
[]
[null,null,null,null,null,null,null,null,null,null,null,null,null,null,null,null,null,"N","%"]
[null,null,null,null,null,null,null,null,null,null,null,null,null,"H10","Executive",null,null,49,2.9751062537947785E-2]
[null,null,null,null,null,null,null,null,null,null,null,null,null,"H20","Faculty",null,null,881,0.53491196114146933]
[null,null,null,null,null,null,null,null,null,null,null,null,null,"H30","Other",null,null,247,0.14996964177292046]
[null,null,null,null,null,null,null,null,null,null,null,null,null,"H40","Clerical",null,null,194,0.1177899210686096]
[null,null,null,null,null,null,null,null,null,null,null,null,null,"H50","Technical",null,null,41,2.4893746205221615E-2]
[null,null,null,null,null,null,null,null,null,null,null,null,null,"H60","Skill Crafts",null,null,59,3.5822707953855497E-2]
[null,null,null,null,null,null,null,null,null,null,null,null,null,"H70","Service",null,null,176,0.10686095931997572]
[null,null,null,null,null,null,null,null,null,null,null,null,null,"Total",null,null,null,1647,1]

{"sheet":"Dynamic Charts","index":9,"n_rows":175,"n_cols":10,"rows_kept":175,"cut":false,"hidden":true,"merged":[[0,0,0,9]]}
[]
["Student Level","College","Descrip","Fall 02","Fall 03","Fall 04","Fall 05","Fall 06","Fall 07","Fall 08"]
["Undergrad","CAS","A102 Anthropology BA",33,33,29,29,31,42,39]
["Undergrad","CAS","A103 Anthropology-Sociology BA",10,4,2,1,0,0,0]
["Undergrad","CAS","A185 Sociology BA",99,97,81,77,94,92,92]
["Undergrad","CAS","E174 Social Studies: Anthropol BSED",3,0,0,0,0,0,0]
["Undergrad","CAS","E182 Social Studies: Sociology BSED",3,1,1,0,0,0,0]
["Undergrad","CAS","A104 Studio Arts BA",31,32,0,0,0,0,0]
["Undergrad","CAS","F190 Studio Arts BFA",194,192,0,0,0,0,0]
["Undergrad","CAS","A106 Biology BA",16,15,19,18,23,21,17]
["Undergrad","CAS","E106 Biology BSED",40,28,28,37,48,37,36]
["Undergrad","CAS","S106 Biology BS",120,117,106,121,135,170,200]
["Undergrad","CAS","S107 Biology: Microbiology BS",22,13,15,14,19,25,26]
["Undergrad","CAS","S108 Biology: Ecology BS",24,29,26,23,14,12,23]
["Undergrad","CAS","S109 Biology: Medical Technology BS",9,11,18,21,26,19,19]
["Undergrad","CAS","S115 Biology: Cell & Molecular BS",48,49,50,35,31,32,33]
["Undergrad","CAS","T193 Biology TCHGCERT",2,2,3,2,3,0,1]
["Undergrad","CAS","E112 Chemistry BSED",8,10,14,14,18,19,20]
["Undergrad","CAS","S111 Chemistry-Biology * BS",31,33,37,64,70,75,81]
["Undergrad","CAS","S112 Chemistry BS",25,29,35,42,39,41,32]
["Undergrad","CAS","S114 Biochemistry BS",5,14,21,23,24,21,26]
["Undergrad","CAS","S129 Foren & Toxicol Chemistry BS",83,101,103,109,92,86,73]
["Undergrad","CAS","T194 Chemistry TCHGCERT",2,3,4,3,1,1,2]
["Undergrad","CAS","A188 Communication Studies BA",311,339,363,365,335,328,330]
["Undergrad","CAS","E115 Communication-Comm/Tha BSED",12,16,13,15,8,8,3]
["Undergrad","CAS","E118 Communication-Theatre/Med BSED",1,1,0,0,0,0,0]
["Undergrad","CAS","E119 Communication - Media/Com BSED",1,0,1,0,0,1,1]
["Undergrad","CAS","T195 Communication TCHGCERT",1,2,1,0,0,0,0]
["Undergrad","CAS","T195 Communications TCHGCERT",0,0,0,0,0,0,1]
["Undergrad","CAS","S118 Computer Science BS",188,175,138,113,107,107,110]
["Undergrad","CAS","S311 Computer Science - Comp Sys BS",1,1,0,0,0,0,0]
["Undergrad","CAS","A117 Comparative Literature BA",10,11,9,7,6,0,0]
["Undergrad","CAS","A142 Literature BA",138,166,179,217,211,0,0]
["Undergrad","CAS","A146 English BA",0,0,0,0,0,219,256]
["Undergrad","CAS","E128 English BSED",128,138,148,179,180,196,203]
["Undergrad","CAS","T199 English TCHGCERT",12,9,12,8,2,1,2]
["Undergrad","CAS","E122 Earth-Space Science - Env BSED",4,2,0,0,0,0,0]
["Undergrad","CAS","E123 Earth-Space Science BSED",15,20,33,34,29,25,21]
["Undergrad","CAS","E124 Earth-Space Sci - Geology BSED",16,23,8,2,0,0,0]
["Undergrad","CAS","E125 Earth-Space Science BSED",1,0,0,0,0,0,0]
["Undergrad","CAS","S122 Geoscience - Earth Systems BS",10,11,11,10,13,11,14]
["Undergrad","CAS","S124 Geoscience: Geology BS",9,12,18,23,24,17,16]
["Undergrad","CAS","S125 Geoscience: Environ Geosci  BS",15,10,2,2,0,0,0]
["Undergrad","CAS","T200 General Science TCHGCERT",2,5,6,0,0,0,1]
["Undergrad","CAS","T201 Earth Sciences TCHGCERT",1,4,3,0,1,0,0]
["Undergrad","CAS","T201 Earth-Space Science TCHGCERT",0,0,0,1,0,0,1]
["Undergrad","CAS","A130 French BA",11,13,21,20,22,25,26]
["Undergrad","CAS","A134 German BA",1,5,5,9,16,18,16]
["Undergrad","CAS","A140 Latin BA",0,2,6,9,7,8,6]
["Undergrad","CAS","A171 Russian BA",4,4,1,4,3,8,4]
["Undergrad","CAS","A186 Spanish BA",23,36,46,69,71,72,76]
["Undergrad","CAS","E130 French BSED",7,6,2,0,0,0,0]
["Undergrad","CAS","E134 German BSED",1,3,1,0,0,0,0]
["Undergrad","CAS","E140 Latin BSED",1,1,1,1,0,1,0]
["Undergrad","CAS","E186 Spanish BSED",38,27,15,8,2,0,0]
["Undergrad","CAS","T203 German TCHGCERT",2,1,2,1,0,0,0]
["Undergrad","CAS","T204 French TCHGCERT",2,2,1,1,0,0,1]
["Undergrad","CAS","T205 Spanish TCHGCERT",4,2,4,5,2,0,1]
["Undergrad","CAS","A101 American Studies BA",7,10,9,5,3,6,4]
["Undergrad","CAS","A137 History BA",209,279,348,387,404,431,422]
["Undergrad","CAS","E177 Social Studies: History BSED",128,66,28,9,3,0,0]
["Undergrad","CAS","T207 Social Studies TCHGCERT",0,11,3,0,0,0,0]
["Undergrad","CAS","T210 History TCHGCERT",21,0,0,0,0,0,0]
["Undergrad","CAS","T210 Soc Studies - History TCHGCERT",0,0,0,1,0,0,0]
["Undergrad","CAS","A141 Liberal Studies: Arts & Sci BA",7,48,64,89,76,82,85]
["Undergrad","CAS","A143 Liberal Studies: Career Pre BA",123,51,14,7,3,4,3]
["Undergrad","CAS","S100 Pharmaceutical Product Dev BS",41,42,38,42,47,43,47]
["Undergrad","CAS","S141 Liberal Studies: Sci/Math BS",26,13,25,15,22,24,15]
["Undergrad","CAS","S322 Liberal Studies: Profession BS",111,222,222,265,295,294,300]
["Undergrad","CAS","A144 Mathematics BA",22,27,30,35,39,31,27]
["Undergrad","CAS","A145 Mathematics-Computer Sci BA",6,1,0,0,0,0,0]
["Undergrad","CAS","A518 Mathematics BS",0,0,0,0,2,23,34]
["Undergrad","CAS","E144 Mathematics BSED",91,116,121,139,134,131,122]
["Undergrad","CAS","T213 Mathematics TCHGCERT",1,2,3,1,1,0,3]
["Undergrad","CAS","A157 Philosophy BA",27,31,33,35,24,30,46]
["Undergrad","CAS","A158 Philosophy-Religious Studie BA",11,8,1,1,0,0,0]
["Undergrad","CAS","A245 Philosophy-Religious Studie BA",0,0,0,0,0,4,6]
["Undergrad","CAS","E159 Physics BSED",5,8,11,18,16,12,17]
["Undergrad","CAS","S159 Physics BS",9,12,13,12,14,18,24]
["Undergrad","CAS","S160 Physics-Engineering BS",14,15,13,17,13,19,18]
["Undergrad","CAS","T215 Physics TCHGCERT",3,3,1,0,0,0,2]
["Undergrad","CAS","A168 Psychology BA",472,455,454,469,480,461,476]
["Undergrad","CAS","E181 Social Studies: Psycholog BSED",4,1,1,0,0,0,0]
["Undergrad","CAS","A190 Theatre Arts: Acting BA",1,0,0,0,0,0,0]
["Undergrad","CAS","A191 Theatre Arts: Performance BA",34,27,0,0,0,0,0]
["Undergrad","CAS","A194 Theatre Arts: Mus Theatre BA",29,30,0,0,0,0,0]
["Undergrad","CAS","A195 Theatre Arts: Tech Producti BA",19,13,0,0,0,0,0]
["Undergrad","CAS","A888 Theatre Arts: General BA",13,13,0,0,0,0,0]
["Undergrad","CAS","A230 Women's Studies BA",16,20,15,12,8,9,8]
["Undergrad","CBPA","S232 Accounting BS",227,256,265,272,309,318,364]
["Undergrad","CBPA","S119 Criminal Justice BS",385,362,350,329,329,350,365]
["Undergrad","CBPA","A126 Economics-Business BA",1,0,0,0,0,0,0]
["Undergrad","CBPA","F455 Pre-Business Eco-Finance  BS",50,81,58,57,68,100,128]
["Undergrad","CBPA","S126 Economics BS",27,16,21,15,12,9,6]
["Undergrad","CBPA","S128 Finance BS",137,107,91,83,81,91,87]
["Undergrad","CBPA","S312 Business BS",0,0,0,0,0,1,0]
["Undergrad","CBPA","A133 Geography BA",25,22,25,27,24,27,23]
["Undergrad","CBPA","A237 Geography-Urban/Regional Pl BA",6,5,5,3,5,8,5]
["Undergrad","CBPA","A238 Geography-Geographic Analys BA",11,9,8,6,7,3,3]
["Undergrad","CBPA","A162 Poli Sci-Applied Pub Policy BA",8,8,8,9,16,26,32]
["Undergrad","CBPA","A163 Polit Sci - Int'l Relations BA",56,61,46,56,68,67,79]
["Undergrad","CBPA","A164 Political Science BA",133,158,162,176,142,131,128]
["Undergrad","CBPA","E176 Social Studies: Geography BSED",2,1,1,0,0,0,0]
["Undergrad","CBPA","E180 Social Studies: Polit Sci BSED",6,1,0,0,0,0,0]
["Undergrad","CBPA","T207 Social Studies TCHGCERT",1,0,0,0,0,0,0]
["Undergrad","CBPA","M455 Pre-Business-Management BS",97,169,178,213,219,223,255]
["Undergrad","CBPA","S233 Business Management BS",385,278,239,211,201,190,174]
["Undergrad","CBPA","K455 Pre-Business-Marketing BS",74,109,131,140,165,164,166]
["Undergrad","CBPA","S143 Marketing BS",266,205,157,159,132,134,145]
["Undergrad","CBPA","A184 Social Work BSW",108,138,165,175,150,142,134]
["Undergrad","EDS","A143 Liberal Studies: Career Pre BA",0,0,1,0,0,0,0]
["Undergrad","EDS","A196 Undeclared General UNDECL",1643,1550,1535,1561,1540,1688,1743]
["Undergrad","EDS","A197 Undeclared Business UNDECL",27,56,96,56,20,7,1]
["Undergrad","EDS","Z107 NON-DEGR General",329,297,306,198,205,176,88]
["Undergrad","EDS","Z108 NON-DEGR Professnl Development",6,2,3,3,2,0,0]
["Undergrad","EDS","Z109 NON-DEGR Commun Disord Interes",1,0,0,1,18,21,20]
["Undergrad","EDS","Z110 NON-DEGR ESL Program",3,1,2,1,0,4,0]
["Undergrad","EDS","Z111 NON-DEGR Nat Student Exchange",14,9,4,7,9,5,8]
["Undergrad","EDS","Z112 NON-DEGR Post Baccalaur: WCU",29,36,31,27,28,38,25]
["Undergrad","EDS","Z113 NON-DEGR Post Baccal: Non-WCU",77,92,64,79,67,93,70]
["Undergrad","EDS","Z115 NON-DEGR Cheyney University",2,4,3,2,1,1,2]
["Undergrad","EDS","Z116 NON-DEGR Senior Citizen",42,36,29,33,29,40,38]
["Undergrad","EDS","Z117 NON-DEGR Post Associate: WCU",1,1,0,1,0,0,0]
["Undergrad","EDS","Z119 NON-DEGR Qualifier",18,21,20,20,4,0,0]
["Undergrad","EDS","Z121 NON-DEGR SSHE Visiting Student",0,1,2,0,1,6,6]
["Undergrad","EDS","Z140 NON-DEGR High School Student",0,0,0,0,0,0,61]
["Undergrad","COE","E121 Early Childhood Educ BSED",230,256,259,303,340,331,295]
["Undergrad","COE","E187 Special Education BSED",261,231,253,254,263,282,260]
["Undergrad","COE","T196 Special Education TCHGCERT",1,0,0,0,0,0,0]
["Undergrad","COE","T197 Early Childhood Educ TCHGCERT",0,1,1,1,0,"",1]
["Undergrad","COE","E127 Elementary Education BSED",920,896,896,871,844,787,814]
["Undergrad","COE","T198 Elementary Education TCHGCERT",0,0,0,0,0,0,1]
["Undergrad","CHS","S136 Health Education BS",1,0,0,0,0,0,0]
["Undergrad","CHS","S169 Public Health:Health Promot BS",40,42,66,40,56,50,55]
["Undergrad","CHS","S170 Public Health:Environmental BS",11,10,10,11,9,18,28]
["Undergrad","CHS","S171 Nutrition and Dietetics BS",61,86,94,162,197,197,239]
["Undergrad","CHS","S301 Health Sci: General BS",15,16,15,13,16,24,16]
["Undergrad","CHS","S302 Health Sci: Dental Hygiene BS",2,1,0,0,0,0,0]
["Undergrad","CHS","S303 Hlth Sci: Respiratory Care BS",26,33,51,63,64,73,75]
["Undergrad","CHS","S135 Health & Physical Educ  BS",373,393,435,428,463,456,455]
["Undergrad","CHS","S138 Exercise Science Specialist BS",180,190,182,185,175,217,277]
["Undergrad","CHS","T212 Health & Phys Educ TCHGCERT",0,0,0,40,0,0,20]
["Undergrad","CHS","T212 Physical Education TCHGCERT",35,26,35,0,24,9,0]
["Undergrad","CHS","S156 Nursing BSN",291,324,332,292,262,264,286]
["Undergrad","CHS","S166 RN to BSN",0,0,0,0,28,51,69]
["Undergrad","CHS","S105 Athletic Training BS",100,101,111,112,120,115,135]
["Undergrad","CHS","A116 Communicative Disorders BA",63,58,79,88,100,111,106]
["Undergrad","CVPA","M175 Music: Keybrd Perf - Pedago BM",0,1,0,0,0,0,0]
["Undergrad","CVPA","M188 Music - Performance BM",0,45,38,41,41,42,54]
["Undergrad","CVPA","A104 Studio Arts BA",0,0,25,30,36,33,38]
["Undergrad","CVPA","F190 Studio Arts BFA",0,0,192,197,147,144,139]
["Undergrad","CVPA","M151 Music: Instrumental Perform BM",14,0,0,0,0,0,0]
["Undergrad","CVPA","M188 Music - Performance BM",27,0,0,0,0,0,0]
["Undergrad","CVPA","M152 Music: Keyboard Performance BM",2,0,0,0,0,0,0]
["Undergrad","CVPA","M175 Music: Keybrd Perf - Pedago BM",1,0,0,0,0,0,0]
["Undergrad","CVPA","M145 Music: Elective Studies BM",35,30,32,34,34,25,27]
["Undergrad","CVPA","M150 Music: Composition BM",8,5,2,1,0,0,0]
["Undergrad","CVPA","M153 Music: Theory BM",10,3,0,0,0,0,0]
["Undergrad","CVPA","M190 Music: Theory & Composition BM",2,6,8,10,11,14,14]
["Undergrad","CVPA","M147 Music Educ: Instrument BM",179,195,211,186,213,225,225]
["Undergrad","CVPA","M148 Music Educ: Voice BM",87,101,98,95,94,94,94]
["Undergrad","CVPA","M149 Music Educ: Keyboard BM",42,35,25,25,33,33,34]
["Undergrad","CVPA","S147 Music Educ: General-Instrum BS",10,0,0,0,0,0,0]
["Undergrad","CVPA","S149 Music Ed: Vocal/Choral-Voic BS",3,0,0,0,0,0,0]
["Undergrad","CVPA","S314 Music Educ: General-Voice BS",2,0,0,0,0,0,0]
["Undergrad","CVPA","T214 Music Education TCHGCERT",3,3,2,2,2,0,1]
["Undergrad","CVPA","A191 Theatre and Dance: Perfmnce BA",0,0,0,27,0,0,9]
["Undergrad","CVPA","A191 Theatre Arts: Performance BA",0,0,0,0,13,14,0]
["Undergrad","CVPA","A194 Theatre and Dnce: Mus Thtre BA",0,0,39,22,0,0,15]
["Undergrad","CVPA","A194 Theatre Arts: Mus Theatre BA",0,0,30,0,17,13,0]
["Undergrad","CVPA","A195 Theatre and Dnce: Tech Prod BA",0,0,0,9,0,0,10]
["Undergrad","CVPA","A195 Theatre Arts: Tech Producti BA",0,0,15,0,9,4,0]
["Undergrad","CVPA","A888 Theatre and Dance: General BA",0,0,0,50,0,0,68]
["Undergrad","CVPA","A888 Theatre Arts: General BA",0,0,14,0,67,64,0]
["Undergrad","CVPA","M155 Music: Vocal Performance BM",7,0,0,0,0,0,0]

{"sheet":"NEEDS WORK - Retention","index":10,"n_rows":230,"n_cols":23,"rows_kept":230,"cut":false,"hidden":true,"merged":[[229,1,236,9],[62,11,62,14],[62,15,62,18],[62,19,62,22],[63,5,63,6],[63,7,63,8],[63,9,63,10],[63,11,63,14],[63,15,63,18],[63,19,63,22],[62,9,62,10],[62,1,64,1],[62,2,64,2],[62,3,64,3],[62,4,64,4],[62,5,62,6],[0,1,1,18],[5,1,7,1],[5,2,7,2],[5,3,7,3],[5,4,7,4],[5,5,5,6],[5,7,5,8],[5,9,5,10],[5,11,5,14],[3,0,3,23],[62,7,62,8],[5,15,5,18],[5,19,5,22],[6,5,6,6],[6,7,6,8],[6,9,6,10],[6,11,6,14],[6,15,6,18],[6,19,6,22],[58,0,58,23],[85,7,85,8],[85,9,85,10],[85,11,85,14],[85,15,85,18],[85,19,85,22],[84,7,84,8],[84,9,84,10],[84,11,84,14],[84,15,84,18],[84,19,84,22],[84,1,86,1],[84,2,86,2],[84,3,86,3],[84,4,86,4],[84,5,84,6],[85,5,85,6],[106,2,108,2],[106,1,108,1],[124,1,125,1],[106,3,108,3],[152,2,152,5],[128,1,130,1],[128,2,130,2],[128,3,130,3],[146,1,147,1],[152,1,155,1],[149,0,149,23],[153,18,153,19],[153,20,153,21],[154,18,154,19],[154,20,154,21],[179,2,179,3],[179,4,179,5],[154,14,154,15],[154,16,154,17],[153,6,153,7],[153,8,153,9],[154,6,154,7],[154,8,154,9],[153,10,153,11],[153,14,153,15],[178,1,181,1],[152,6,152,9],[152,10,152,13],[152,14,152,17],[152,18,152,21],[153,16,153,17],[180,2,180,3],[180,4,180,5],[153,12,153,13],[154,10,154,11],[154,12,154,13],[154,2,154,3],[154,4,154,5],[153,2,153,3],[153,4,153,5],[178,2,178,5]]}
[null,"West Chester University's Retention and Graduation Rates 1992 - 2008"]
[]
[]
["University Summary"]
[]
[null,"Fall Cohort","1st Fall","Cohort after IPEDS Exclusion","AVG SATC","2nd Fall",null,"3rd Fall",null,"4th Fall",null,"5th Fall",null,null,null,"6th Fall",null,null,null,"7th Fall"]
[null,null,null,null,null,"Cohort Retained",null,"Cohort Retained",null,"Cohort Retained",null,"Cohort Retained",null,null,null,"Cohort Retained",null,null,null,"Cohort Retained"]
[null,null,null,null,null,"N","%1F","N","%1F","N","%1F","N","%1F","N","%1F","N","%1F","N","%1F","N","%1F","N","%1F"]
[null,1992,1372,1372,947,1134,82.7,989,72.099999999999994,953,69.5,373,27.2,497,36.200000000000003,728,53.1,89,6.5,781,56.9,30,2.2000000000000002]
[null,1993,1380,1380,946,1140,82.6,958,69.400000000000006,877,63.6,367,26.6,461,33.4,711,51.5,101,7.3,771,55.9,42,3]
[null,1994,1364,1364,943,1084,79.5,906,66.400000000000006,823,60.3,319,23.4,473,34.700000000000003,666,48.8,109,8,741,54.3,30,2.2000000000000002]
[null,1995,1384,1384,936,1129,81.599999999999994,985,71.2,902,65.2,363,26.2,512,37,761,55,89,6.4,816,59,33,2.4]
[null,1996,1454,1454,1026,1170,80.5,1003,69,945,65,376,25.9,527,36.200000000000003,771,53,103,7.1,833,57.3,35,2.4]
[null,1997,1577,1576,1030,1298,82.4,1116,70.8,1055,66.900000000000006,409,26,605,38.4,861,54.6,109,6.9,932,59.1,30,1.9]
[null,1998,1629,1627,1038,1353,83.2,1173,72.099999999999994,1070,65.8,474,29.1,577,35.5,898,55.2,108,6.6,964,59.3,34,2.1]
[null,1999,1715,1710,1035,1413,82.6,1219,71.3,1150,67.3,444,26,653,38.200000000000003,943,55.1,91,5.3,1023,59.8,24,1.4]
[null,2000,1721,1715,1032,1412,82.3,1275,74.3,1166,68,536,31.3,569,33.200000000000003,961,56,103,6,1037,60.5,35,2]
[null,2001,1631,1625,1046,1384,85.2,1222,75.2,1149,70.7,571,35.1,520,32,996,61.3,79,4.9000000000000004,1050,64.599999999999994,29,1.8]
[null,2002,1768,1766,1045,1461,82.7,1290,73,1236,70,636,36,536,30.4,1041,58.9,97,5.5,1113,63,25,1.4]
[null,2003,1726,1724,1058,1467,85.1,1299,75.3,1208,70.099999999999994,685,39.700000000000003,481,27.9,1048,60.8,89,5.2]
[null,2004,1874,1871,1061,1571,84,1362,72.8,1306,69.8,733,39.200000000000003,535,28.6]
[null,2005,1897,1894,1067,1607,84.8,1442,76.099999999999994,1378,72.8]
[null,2006,1885,1884,1062,1617,85.8,1468,77.900000000000006]
[null,2007,1957,1955,1059,1650,84.4]
[null,2008,1993,1993,1059]
[]
[]
[]
[]
[]
[]
[]
[]
[]
[]
[]
[]
[]
[]
[]
[]
[]
[]
[]
[]
[]
[]
[]
[]
[]
[]
[]
[]
[]
[]
[]
[]
[]
["Gender"]
[]
[]
[]
[null,"Fall Cohort","1st Fall","Cohort after IPEDS Exclusion","AVG SATC","2nd Fall",null,"3rd Fall",null,"4th Fall",null,"5th Fall",null,null,null,"6th Fall",null,null,null,"7th Fall"]
[null,null,null,null,null,"Cohort Retained",null,"Cohort Retained",null,"Cohort Retained",null,"Cohort Retained",null,null,null,"Cohort Retained",null,null,null,"Cohort Retained"]
[null,null,null,null,null,"N","%1F","N","%1F","N","%1F","N","%1F","N","%1F","N","%1F","N","%1F","N","%1F","N","%1F"]
[null,1992," 879 "," 879 "," 937 "," 720 "," 81.9 "," 632 "," 71.9 "," 608 "," 69.2 "," 278 "," 31.6 "," 281 "," 32.0 "," 501 "," 57.0 "," 45 "," 5.1 "," 527 "," 60.0 "," 15 "," 1.7 "]
[null,1993," 873 "," 873 "," 934 "," 741 "," 84.9 "," 634 "," 72.6 "," 580 "," 66.4 "," 291 "," 33.3 "," 265 "," 30.4 "," 506 "," 58.0 "," 43 "," 4.9 "," 534 "," 61.2 "," 17 "," 1.9 "]
[null,1994," 806 "," 806 "," 925 "," 656 "," 81.4 "," 555 "," 68.9 "," 507 "," 62.9 "," 229 "," 28.4 "," 260 "," 32.3 "," 438 "," 54.3 "," 48 "," 6.0 "," 476 "," 59.1 "," 11 "," 1.4 "]
[null,1995," 873 "," 873 "," 921 "," 725 "," 83.0 "," 636 "," 72.9 "," 609 "," 69.8 "," 278 "," 31.8 "," 300 "," 34.4 "," 541 "," 62.0 "," 34 "," 3.9 "," 562 "," 64.4 "," 14 "," 1.6 "]
[null,1996," 943 "," 943 "," 1014 "," 778 "," 82.5 "," 674 "," 71.5 "," 639 "," 67.8 "," 288 "," 30.5 "," 333 "," 35.3 "," 552 "," 58.5 "," 52 "," 5.5 "," 585 "," 62.0 "," 18 "," 1.9 "]
[null,1997," 1021 "," 1020 "," 1021 "," 840 "," 82.4 "," 718 "," 70.4 "," 684 "," 67.1 "," 316 "," 31.0 "," 349 "," 34.2 "," 585 "," 57.4 "," 59 "," 5.8 "," 621 "," 60.9 "," 17 "," 1.7 "]
[null,1998," 1029 "," 1029 "," 1025 "," 858 "," 83.4 "," 748 "," 72.7 "," 687 "," 66.8 "," 350 "," 34.0 "," 335 "," 32.6 "," 604 "," 58.7 "," 59 "," 5.7 "," 639 "," 62.1 "," 18 "," 1.7 "]
[null,1999," 1070 "," 1069 "," 1024 "," 886 "," 82.9 "," 754 "," 70.5 "," 721 "," 67.4 "," 322 "," 30.1 "," 382 "," 35.7 "," 638 "," 59.7 "," 43 "," 4.0 "," 676 "," 63.2 "," 11 "," 1.0 "]
[null,2000," 1085 "," 1085 "," 1022 "," 900 "," 82.9 "," 821 "," 75.7 "," 751 "," 69.2 "," 409 "," 37.7 "," 313 "," 28.8 "," 673 "," 62.0 "," 43 "," 4.0 "," 705 "," 65.0 "," 10 "," 0.9 "]
[null,2001," 1023 "," 1019 "," 1037 "," 888 "," 87.1 "," 792 "," 77.7 "," 748 "," 73.4 "," 427 "," 41.9 "," 295 "," 28.9 "," 687 "," 67.4 "," 32 "," 3.1 "," 706 "," 69.3 "," 13 "," 1.3 "]
[null,2002," 1106 "," 1104 "," 1029 "," 933 "," 84.5 "," 829 "," 75.1 "," 808 "," 73.2 "," 471 "," 42.7 "," 304 "," 27.5 "," 718 "," 65.0 "," 47 "," 4.3 "," 757 "," 68.6 "," 11 "," 1.0 "]
[null,2003," 1120 "," 1119 "," 1045 "," 963 "," 86.1 "," 859 "," 76.8 "," 805 "," 71.9 "," 533 "," 47.6 "," 252 "," 22.5 "," 730 "," 65.2 "," 45 "," 4.0 "]
[null,2004," 1216 "," 1214 "," 1048 "," 1027 "," 84.6 "," 903 "," 74.4 "," 871 "," 71.7 "," 557 "," 45.9 "," 299 "," 24.6 "]
[null,2005," 1219 "," 1217 "," 1054 "," 1051 "," 86.4 "," 943 "," 77.5 "," 914 "," 75.1 "]
[null,2006," 1201 "," 1201 "," 1047 "," 1059 "," 88.2 "," 984 "," 81.9 "]
[null,2007," 1216 "," 1215 "," 1043 "," 1038 "," 85.4 "]
[null,2008," 1231 "," 1231 "," 1047 "]
[]
[null,"Male"]
[null,"Fall Cohort","1st Fall","Cohort after IPEDS Exclusion","AVG SATC","2nd Fall",null,"3rd Fall",null,"4th Fall",null,"5th Fall",null,null,null,"6th Fall",null,null,null,"7th Fall"]
[null,null,null,null,null,"Cohort Retained",null,"Cohort Retained",null,"Cohort Retained",null,"Cohort Retained",null,null,null,"Cohort Retained",null,null,null,"Cohort Retained"]
[null,null,null,null,null,"N","%1F","N","%1F","N","%1F","N","%1F","N","%1F","N","%1F","N","%1F","N","%1F","N","%1F"]
[null,1992," 493 "," 493 "," 964 "," 414 "," 84.0 "," 357 "," 72.4 "," 345 "," 70.0 "," 95 "," 19.3 "," 216 "," 43.8 "," 227 "," 46.0 "," 44 "," 8.9 "," 254 "," 51.5 "," 15 "," 3.0 "]
[null,1993," 507 "," 507 "," 967 "," 399 "," 78.7 "," 324 "," 63.9 "," 297 "," 58.6 "," 76 "," 15.0 "," 196 "," 38.7 "," 205 "," 40.4 "," 58 "," 11.4 "," 237 "," 46.7 "," 25 "," 4.9 "]
[null,1994," 558 "," 558 "," 969 "," 428 "," 76.7 "," 351 "," 62.9 "," 316 "," 56.6 "," 90 "," 16.1 "," 213 "," 38.2 "," 228 "," 40.9 "," 61 "," 10.9 "," 265 "," 47.5 "," 19 "," 3.4 "]
[null,1995," 511 "," 511 "," 961 "," 404 "," 79.1 "," 349 "," 68.3 "," 293 "," 57.3 "," 85 "," 16.6 "," 212 "," 41.5 "," 220 "," 43.1 "," 55 "," 10.8 "," 254 "," 49.7 "," 19 "," 3.7 "]
[null,1996," 511 "," 511 "," 1048 "," 392 "," 76.7 "," 329 "," 64.4 "," 306 "," 59.9 "," 88 "," 17.2 "," 194 "," 38.0 "," 219 "," 42.9 "," 51 "," 10.0 "," 248 "," 48.5 "," 17 "," 3.3 "]
[null,1997," 556 "," 556 "," 1047 "," 458 "," 82.4 "," 398 "," 71.6 "," 371 "," 66.7 "," 93 "," 16.7 "," 256 "," 46.0 "," 276 "," 49.6 "," 50 "," 9.0 "," 311 "," 55.9 "," 13 "," 2.3 "]
[null,1998," 600 "," 598 "," 1060 "," 495 "," 82.8 "," 425 "," 71.1 "," 383 "," 64.0 "," 124 "," 20.7 "," 242 "," 40.5 "," 294 "," 49.2 "," 49 "," 8.2 "," 325 "," 54.3 "," 16 "," 2.7 "]
[null,1999," 645 "," 641 "," 1055 "," 527 "," 82.2 "," 465 "," 72.5 "," 429 "," 66.9 "," 122 "," 19.0 "," 271 "," 42.3 "," 305 "," 47.6 "," 48 "," 7.5 "," 347 "," 54.1 "," 13 "," 2.0 "]
[null,2000," 636 "," 630 "," 1048 "," 512 "," 81.3 "," 454 "," 72.1 "," 415 "," 65.9 "," 127 "," 20.2 "," 256 "," 40.6 "," 288 "," 45.7 "," 60 "," 9.5 "," 332 "," 52.7 "," 25 "," 4.0 "]
[null,2001," 608 "," 606 "," 1062 "," 496 "," 81.8 "," 430 "," 71.0 "," 401 "," 66.2 "," 144 "," 23.8 "," 225 "," 37.1 "," 309 "," 51.0 "," 47 "," 7.8 "," 344 "," 56.8 "," 16 "," 2.6 "]
[null,2002," 662 "," 662 "," 1073 "," 528 "," 79.8 "," 461 "," 69.6 "," 428 "," 64.7 "," 165 "," 24.9 "," 232 "," 35.0 "," 323 "," 48.8 "," 50 "," 7.6 "," 356 "," 53.8 "," 14 "," 2.1 "]
[null,2003," 606 "," 605 "," 1081 "," 504 "," 83.3 "," 440 "," 72.7 "," 403 "," 66.6 "," 152 "," 25.1 "," 229 "," 37.9 "," 318 "," 52.6 "," 44 "," 7.3 "]
[null,2004," 658 "," 657 "," 1085 "," 544 "," 82.8 "," 459 "," 69.9 "," 435 "," 66.2 "," 176 "," 26.8 "," 236 "," 35.9 "]
[null,2005," 678 "," 677 "," 1091 "," 556 "," 82.1 "," 499 "," 73.7 "," 464 "," 68.5 "]
[null,2006," 684 "," 683 "," 1090 "," 558 "," 81.7 "," 484 "," 70.9 "]
[null,2007," 741 "," 740 "," 1085 "," 612 "," 82.7 "]
[null,2008," 762 "," 762 "," 1078 "]
[]
[null,"Female"]
[null,"Categories","Fall Cohort","Data"]
[]
[]
[null,"1st Fall",1992,493]
[null,"Cohort After IPEDS Excl.",1993,873]
[null,"AVG SATC",1994,493]
[null,"2nd Fall (N)",1995,873]
[null,"2nd Fall (%)",1996,806]
[null,"3rd Fall (N)",1997,873]
[null,"3rd Fall (%)",1998,943]
[null,"4th Fall (N)",1999,1020]
[null,"4th Fall (%)",2000,1029]
[null,"5th Fall (N)",2001,1069]
[null,"5th Fall (%)",2002,1085]
[null,"6th Fall (N)",2003,1019]
[null,"6th Fall (%)",2004,1104]
[null,"7th Fall (N)",2005,1119]
[null,"7th Fall (%)",2006,1214]
[null,null,2007,1217]
[null,null,2008,1201]
[null,null,null,1215]
[null,"Male",null,1231]
[null,"Categories","Fall Cohort","Data"]
[]
[]
[null,"1st Fall",1992,46]
[null,"Cohort After IPEDS Excl.",1993,507]
[null,"AVG SATC",1994,558]
[null,"2nd Fall (N)",1995,507]
[null,"2nd Fall (%)",1996,558]
[null,"3rd Fall (N)",1997,511]
[null,"3rd Fall (%)",1998,511]
[null,"4th Fall (N)",1999,556]
[null,"4th Fall (%)",2000,600]
[null,70,2001,645]
[null,"5th Fall (%)",2002,636]
[null,"6th Fall (N)",2003,608]
[null,"6th Fall (%)",2004,662]
[null,"7th Fall (N)",2005,606]
[null,"7th Fall (%)",2006,658]
[null,null,2007,678]
[null,null,2008,684]
[null,null,null,741]
[762]
[]
[]
[null,"Fall Cohort","African-American",null,null,null,"Native-American",null,null,null,"Asian",null,null,null,"Latino",null,null,null,"White"]
[null,null,"4th Fall",null,"6th Fall",null,"4th Fall",null,"6th Fall",null,"4th Fall",null,"6th Fall",null,"4th Fall",null,"6th Fall",null,"4th Fall",null,"6th Fall"]
[null,null,"Cohort Retained",null,"Cohort Retained",null,"Cohort Retained",null,"Cohort Retained",null,"Cohort Retained",null,"Cohort Retained",null,"Cohort Retained",null,"Cohort Retained",null,"Cohort Retained",null,"Cohort Retained"]
[null,null,"N","%1F","N","%1F","N","%1F","N","%1F","N","%1F","N","%1F","N","%1F","N","%1F","N","%1F","N","%1F"]
[null,1992,64,50,33,25.8,1,100,1,100,9,64.3,8,57.1,15,65.2,8,34.799999999999997,864,71.599999999999994,678,56.2]
[null,1993,65,40.9,35,22,4,57.1,3,42.9,11,34.4,9,28.1,9,50,5,27.8,788,67.7,659,56.6]
[null,1994,85,503,51,30.2,1,33.299999999999997,1,33.299999999999997,20,69,14,48.3,14,46.7,12,40,703,62,588,51.9]
[null,1995,81,56.3,53,36.799999999999997,1,16.7,1,16.7,13,54.2,9,37.5,20,71.400000000000006,13,46.4,787,66.599999999999994,685,58]
[null,1996,101,62.7,69,42.9,1,16.7,0,0,16,61.5,12,46.2,18,51.4,13,37.1,809,66,677,55.2]
[null,1997,83,59.3,58,41.4,3,60,3,60,16,64,14,56,19,57.6,12,36.4,934,68.099999999999994,774,56.5]
[null,1998,87,63,57,41.3,1,100,0,0,13,46.4,11,39.299999999999997,22,53.7,14,34.1,946,66.8,816,57.6]
[null,1999,99,69.2,67,46.9,1,25,1,25,16,53.3,15,50,12,70.599999999999994,8,47.1,1019,67.3,849,56.1]
[null,2000,94,65.7,72,50.3,3,60,3,60,17,70.8,13,54.2,21,67.7,17,54.8,1028,68.3,853,56.6]
[null,2001,96,70.099999999999994,66,48.2,5,71.400000000000006,3,42.9,22,59.5,16,43.2,35,72.900000000000006,29,60.4,987,71,879,63.2]
[null,2002,96,67.599999999999994,65,45.8,4,50,2,25,23,62.2,17,45.9,24,57.1,20,47.6,1088,70.900000000000006,942,61.4]
[null,2003,122,67.400000000000006,82,45.3,0,0,0,0,14,56,12,48,36,61,32,54.2,1028,71.3,916,63.5]
[null,2004,104,63,null,null,3,75,null,null,22,62.9,null,null,40,69,null,null,1136,70.7]
[null,2005,112,66.3,null,null,1,33.299999999999997,null,null,23,60.5,null,null,44,66.7,null,null,1198,74.2]
[null,2006]
[null,2007]
[null,2008]
[]
[]
[]
[]
[]
[null,"Fall Cohort","White"]
[null,null,"4th Fall",null,"6th Fall"]
[null,null,"Cohort Retained",null,"Cohort Retained"]
[null,null,"N","%1F","N","%1F"]
[null,1992,864,71.599999999999994,678,56.2]
[null,1993,"Latino",67.7,659,56.6]
[null,1994,703,62,588,51.9]
[null,1995,787,66.599999999999994,685,58]
[null,1996,809,66,677,55.2]
[null,1997,19,57.6,12,36.4]
[null,1998,22,53.7,14,34.1]
[null,1999,12,70.599999999999994,8,47.1]
[null,2000,21,67.7,17,54.8]
[null,2001,35,72.900000000000006,29,60.4]
[null,2002,24,57.1,20,47.6]
[null,2003,36,61,32,54.2]
[null,2004,40,69]
[null,2005,44,66.7]
[null,2006]
[null,2007]
[null,2008]
[]
[]
[]
[]
[]
[]
[]
[]
[]
[]
[]
[]
[]
[]
[]
[]
[]
[]
[]
[]
[]
[]
[]
[]
[]
[]
[]
[]
[]
[]
[null,"Race & Ethnicity - 6 Year Graduation Rates"]

{"sheet":"Combo boxes","index":11,"n_rows":43,"n_cols":22,"rows_kept":43,"cut":false,"hidden":true,"merged":[[23,0,25,0],[23,1,25,1],[23,2,25,2],[23,3,25,3],[23,4,23,5],[23,8,23,9],[23,10,23,13],[23,14,23,17],[23,18,23,21],[24,4,24,5],[24,6,24,7],[24,8,24,9],[24,10,24,13],[24,14,24,17],[24,18,24,21],[23,6,23,7]]}
["Jan",9]
["Feb"]
["Mar"]
["Apr"]
["May"]
["Jun"]
["Jul"]
["Aug"]
["Sep"]
["Oct"]
["Nov"]
["Dec"]
[]
[]
[]
[]
[]
[]
[]
[]
[]
[]
[]
["Fall Cohort","1st Fall","Cohort after IPEDS Exclusion","AVG SATC","2nd Fall",null,"3rd Fall",null,"4th Fall",null,"5th Fall",null,null,null,"6th Fall",null,null,null,"7th Fall"]
[null,null,null,null,"Cohort Retained",null,"Cohort Retained",null,"Cohort Retained",null,"Cohort Retained",null,null,null,"Cohort Retained",null,null,null,"Cohort Retained"]
[null,null,null,null,"N","%1F","N","%1F","N","%1F","N","%1F","N","%1F","N","%1F","N","%1F","N","%1F","N","%1F"]
[1992,1372,1372,947,1134,82.7,989,72.099999999999994,953,69.5,373,27.2,497,36.200000000000003,728,53.1,89,6.5,781,56.9,30,2.2000000000000002]
[1993,1380,1380,946,1140,82.6,958,69.400000000000006,877,63.6,367,26.6,461,33.4,711,51.5,101,7.3,771,55.9,42,3]
[1994,1364,1364,943,1084,79.5,906,66.400000000000006,823,60.3,319,23.4,473,34.700000000000003,666,48.8,109,8,741,54.3,30,2.2000000000000002]
[1995,1384,1384,936,1129,81.599999999999994,985,71.2,902,65.2,363,26.2,512,37,761,55,89,6.4,816,59,33,2.4]
[1996,1454,1454,1026,1170,80.5,1003,69,945,65,376,25.9,527,36.200000000000003,771,53,103,7.1,833,57.3,35,2.4]
[1997,1577,1576,1030,1298,82.4,1116,70.8,1055,66.900000000000006,409,26,605,38.4,861,54.6,109,6.9,932,59.1,30,1.9]
[1998,1629,1627,1038,1353,83.2,1173,72.099999999999994,1070,65.8,474,29.1,577,35.5,898,55.2,108,6.6,964,59.3,34,2.1]
[1999,1715,1710,135,1413,82.6,1219,71.3,1150,67.3,444,26,653,38.200000000000003,943,55.1,91,5.3,1023,59.8,24,1.4]
[2000,1721,1715,132,1412,82.3,1275,74.3,1166,68,536,31.3,569,33.200000000000003,961,56,103,6,1037,60.5,35,2]
[2001,1631,1625,1046,1384,85.2,1222,75.2,1149,70.7,571,35.1,520,32,996,61.3,79,4.9000000000000004,1050,64.599999999999994,29,1.8]
[2002,1768,1766,1045,1461,82.7,1290,73,1236,70,636,36,536,30.4,1041,58.9,97,5.5,1113,63,25,1.4]
[2003,1726,1724,1058,1467,85.1,1299,75.3,1208,70.099999999999994,685,39.700000000000003,481,27.9,1048,60.8,89,5.2]
[2004,1874,1871,1061,1571,84,1362,72.8,1306,69.8,733,39.200000000000003,535,28.6]
[2005,1897,1894,1067,1607,84.8,1442,76.099999999999994,1378,72.8]
[2006,1885,1884,1062,1617,85.8,1468,77.900000000000006]
[2007,1957,1955,1059,1650,84.4]
[2008,1993,1993,1059]

{"sheet":"Retention & Grad ScrapWork","index":12,"n_rows":0,"n_cols":0,"rows_kept":0,"cut":false,"hidden":true,"merged":[]}

{"sheet":"Macro Scrapwork","index":13,"n_rows":17,"n_cols":6,"rows_kept":17,"cut":false,"hidden":true,"merged":[]}
[1992,null,null,947]
[946]
[943]
[936]
[1026]
[1030,null,null,null,null,947]
[1038]
[135,null,null,null,null,947]
[132]
[1046]
[1045]
[1058]
[1061]
[1067]
[1062]
[1059]
[1059]

{"sheet":"Common Data Set 0809","index":14,"n_rows":659,"n_cols":13,"rows_kept":659,"cut":false,"hidden":false,"merged":[[206,7,206,8],[456,1,456,5],[465,1,465,5],[442,10,442,11],[443,10,443,11],[341,4,341,5],[342,4,342,5],[343,4,343,5],[446,7,446,11],[449,10,449,11],[413,4,414,4],[445,7,445,8],[440,10,440,11],[429,4,430,4],[393,4,394,4],[364,3,365,8],[372,7,372,8],[392,6,392,10],[405,7,405,8],[411,4,412,4],[407,3,408,3],[519,7,519,10],[544,9,544,10],[513,7,513,8],[488,1,488,4],[483,4,483,6],[511,7,511,8],[502,7,502,11],[531,7,531,10],[450,10,450,11],[451,10,451,11],[453,10,453,11],[451,7,451,8],[487,1,487,4],[509,1,509,5],[517,7,517,11],[518,7,518,11],[527,1,527,5],[520,7,520,10],[522,7,522,10],[521,7,521,10],[537,4,537,6],[529,7,529,10],[454,1,454,3],[452,7,452,11],[569,1,569,3],[489,1,489,4],[471,1,471,3],[490,1,490,4],[549,9,549,10],[549,5,549,6],[545,9,545,10],[533,4,533,7],[534,4,534,6],[535,4,535,6],[536,4,536,6],[547,9,547,10],[543,5,543,6],[544,5,544,6],[482,4,482,6],[515,7,515,11],[480,4,480,8],[564,1,564,3],[568,1,568,3],[542,1,542,3],[564,9,564,10],[542,5,542,7],[543,9,543,10],[557,9,557,12],[548,9,548,10],[547,5,547,6],[548,5,548,6],[558,9,558,10],[542,9,542,11],[562,9,562,11],[553,9,553,10],[545,5,545,6],[546,5,546,6],[560,9,560,10],[547,1,547,3],[546,9,546,10],[617,4,617,8],[616,4,616,8],[603,8,604,8],[603,9,604,9],[610,1,610,3],[555,9,555,10],[559,1,559,3],[560,1,560,3],[561,1,561,3],[562,1,562,3],[563,1,563,3],[551,9,552,11],[554,9,554,10],[557,1,557,5],[608,2,609,3],[596,2,596,8],[597,2,597,8],[583,2,583,11],[584,2,584,11],[585,2,585,11],[586,2,586,11],[587,2,587,11],[409,3,410,3],[411,3,412,3],[393,3,394,3],[395,3,396,3],[399,6,399,8],[419,4,420,4],[26,3,26,4],[49,1,49,3],[27,6,28,6],[27,4,28,4],[334,1,334,3],[305,1,305,4],[203,1,204,3],[197,7,197,12],[190,7,190,12],[294,1,295,3],[257,1,257,3],[258,1,258,3],[248,6,248,7],[407,4,408,4],[409,4,410,4],[231,3,231,8],[254,6,254,9],[177,7,177,8],[330,12,330,13],[330,10,330,11],[331,7,331,9],[334,12,334,13],[281,6,281,10],[277,6,277,10],[275,6,275,7],[333,7,333,13],[332,10,332,11],[331,10,331,11],[325,5,325,6],[331,4,331,5],[290,6,290,8],[287,9,287,10],[284,6,284,8],[445,10,445,11],[392,3,392,4],[447,10,447,11],[443,7,443,8],[444,10,444,11],[394,6,394,8],[329,1,330,5],[331,1,331,3],[372,3,372,4],[433,3,434,3],[406,10,406,11],[401,3,402,3],[401,6,401,8],[400,6,400,8],[403,3,404,3],[406,7,406,8],[333,1,333,3],[336,1,336,3],[417,4,418,4],[413,3,414,3],[415,3,416,3],[417,3,418,3],[444,7,444,8],[425,3,426,3],[25,1,25,7],[26,7,28,7],[27,3,28,3],[410,6,410,7],[527,7,527,10],[26,5,26,6],[65,5,65,6],[66,5,66,6],[67,5,67,6],[63,5,63,6],[48,1,48,6],[449,7,449,8],[399,4,400,4],[401,4,402,4],[403,4,404,4],[329,7,329,13],[316,5,316,7],[317,5,317,6],[318,5,318,6],[404,6,404,11],[306,1,306,4],[68,5,68,6],[503,7,503,8],[504,7,504,8],[188,1,188,5],[305,8,305,12],[304,1,304,6],[188,7,188,12],[364,9,365,10],[182,7,182,8],[292,6,292,9],[293,6,293,7],[336,10,336,13],[340,4,340,5],[294,6,294,7],[296,8,296,9],[295,6,295,7],[296,6,296,7],[282,9,282,10],[283,9,283,10],[286,9,286,10],[289,6,289,8],[284,9,284,10],[285,9,285,10],[363,3,363,8],[323,5,323,7],[324,5,324,6],[331,12,331,13],[61,5,61,7],[567,1,567,3],[558,1,558,3],[395,6,395,8],[396,6,396,8],[397,6,397,8],[398,6,398,8],[448,7,448,11],[447,7,447,8],[170,7,170,10],[178,7,178,8],[371,3,371,4],[381,7,381,8],[565,1,565,3],[566,1,566,3],[538,4,538,6],[510,7,510,9],[204,7,204,8],[205,7,205,8],[419,3,420,3],[421,3,422,3],[393,6,393,8],[563,9,563,10],[559,9,559,10],[453,7,453,8],[450,7,450,8],[439,7,439,11],[441,10,441,11],[433,4,434,4],[431,4,432,4],[429,3,430,3],[385,3,385,4],[373,7,373,8],[388,3,388,4],[395,4,396,4],[397,4,398,4],[397,3,398,3],[399,3,400,3],[405,10,405,11],[405,4,406,4],[386,3,386,4],[374,7,374,8],[375,7,375,8],[405,3,406,3],[425,4,426,4],[382,3,382,4],[415,4,416,4],[421,4,422,4],[371,7,371,8],[339,4,339,8],[381,3,381,4],[373,3,373,4],[374,3,374,4],[355,3,355,8],[332,7,332,9],[335,7,335,9],[326,5,326,6],[327,5,327,6],[376,3,376,4],[377,3,377,4],[345,3,346,8],[334,7,334,9],[366,9,367,10],[362,9,362,10],[362,3,362,8],[375,3,375,4],[336,7,336,9],[183,7,183,8],[207,7,207,8],[208,7,208,8],[209,7,209,8],[229,3,229,7],[228,3,228,7],[272,6,272,9],[249,1,250,4],[238,3,238,6],[226,3,226,8],[261,1,261,3],[246,1,246,3],[247,1,247,3],[251,1,251,3],[210,7,210,8],[235,3,235,6],[236,3,236,6],[237,3,237,6],[255,1,255,3],[256,1,256,3],[216,4,216,5],[216,6,216,7],[200,1,200,3],[199,1,199,3],[161,3,161,7],[156,3,156,7],[153,3,153,7],[154,3,154,7],[162,3,162,7],[163,3,163,7],[179,7,179,8],[180,7,180,8],[181,7,181,8],[176,7,176,8],[152,3,152,7],[155,3,155,7],[160,3,160,8],[139,3,139,8],[144,3,144,7],[146,3,146,8],[147,3,147,6],[148,3,148,6],[151,3,151,7],[140,3,140,7],[141,3,141,7],[143,3,143,7],[150,3,150,8],[27,5,28,5],[84,3,84,7],[86,3,86,7],[101,3,101,8],[62,5,62,7],[80,3,80,7],[79,3,79,7],[115,3,115,7],[116,3,116,7],[88,3,88,8],[71,5,71,6],[89,3,89,8],[94,3,94,7],[95,3,95,7],[96,3,96,7],[97,3,97,7],[92,3,92,7],[70,5,70,6],[64,5,64,6],[69,5,69,6],[45,1,45,3],[44,1,44,2],[56,1,56,3],[57,1,57,3],[165,3,165,8],[166,3,166,7],[167,3,167,7],[175,7,175,8],[114,3,114,7],[110,3,110,7],[111,3,111,7],[82,3,82,7],[83,3,83,7],[103,3,103,7],[117,3,117,7],[174,7,174,8],[168,3,168,7],[90,3,90,7],[113,3,113,8],[123,3,123,7],[118,3,118,7],[120,3,120,7],[121,3,121,7],[122,3,122,7],[119,3,119,7],[91,3,91,7],[105,3,105,7],[107,3,107,7],[334,10,334,11],[335,10,335,11],[598,2,598,8],[507,7,507,8],[540,9,540,11],[252,1,252,3],[550,5,550,6],[332,12,332,13],[335,12,335,13],[309,8,309,10],[494,1,494,4],[440,7,440,8],[306,8,306,10],[310,1,310,4],[311,1,311,4],[253,1,253,3],[279,6,279,8],[283,6,283,8],[285,6,285,8],[286,6,286,8],[278,6,278,8],[427,3,428,3],[363,9,363,10],[423,4,424,4],[3,0,3,13],[196,1,197,5],[529,1,529,4],[530,1,530,4],[614,0,614,13],[571,0,571,13],[478,0,478,13],[436,0,436,13],[390,0,390,13],[369,0,369,13],[320,0,320,13],[130,0,130,13],[125,0,125,13],[73,0,73,13],[23,0,23,13],[75,4,75,7],[99,4,99,7],[158,4,158,7],[186,4,186,7],[213,4,213,7],[215,4,215,7],[505,7,505,8],[506,7,506,8],[493,1,493,4],[38,1,38,2],[40,1,40,2],[41,1,41,2],[42,1,42,2],[43,1,43,2],[241,3,241,7],[242,3,242,7],[205,1,205,2],[206,1,206,2],[207,1,207,2],[208,1,208,2],[209,1,209,2],[173,7,173,8],[172,7,172,8],[239,3,239,6],[171,7,171,8],[142,3,142,8],[77,3,77,8],[85,3,85,7],[102,3,102,7],[108,3,108,7],[109,3,109,7],[93,3,93,7],[104,3,104,7],[26,1,28,2],[29,1,29,2],[30,1,30,2],[31,1,31,2],[32,1,32,2],[33,1,33,2],[34,1,34,2],[36,1,36,2],[37,1,37,2],[35,1,35,2],[217,4,217,5],[217,6,217,7],[244,4,244,7],[287,6,287,8],[262,1,262,2],[263,1,263,2],[264,1,264,2],[252,6,252,7],[267,1,267,2],[268,1,268,2],[269,1,269,2],[275,1,275,2],[277,1,277,2],[227,3,227,7],[254,1,254,3],[274,6,274,7],[525,4,525,8],[540,1,540,7],[528,1,528,4],[278,1,278,2],[280,1,280,2],[281,1,281,2],[282,1,282,2],[288,1,288,2],[289,1,289,2],[379,3,379,4],[423,3,424,3],[384,3,384,4],[366,3,367,8],[310,8,310,10],[387,3,387,4],[378,3,378,4],[383,3,383,4],[377,7,377,8],[378,7,378,8],[379,7,379,8],[380,7,380,8],[380,3,380,4],[376,7,376,8],[335,1,335,3],[601,4,601,7],[606,4,606,7],[603,2,604,7],[302,4,302,7],[312,1,312,4],[512,7,512,8],[307,8,307,10],[308,8,308,10],[441,7,441,8],[442,7,442,8],[307,1,307,4],[313,1,313,4],[314,1,314,4],[495,1,495,4],[322,5,322,7],[308,1,308,4],[309,1,309,4],[431,3,432,3],[519,1,519,2],[520,1,520,2],[521,1,521,2],[522,1,522,2],[523,1,523,2],[543,1,543,2],[611,2,612,3],[573,2,573,11],[574,10,574,11],[575,10,575,11],[576,10,576,11],[577,10,577,11],[578,10,578,11],[579,10,579,11],[580,10,580,11],[581,10,581,11],[575,2,575,8],[576,2,576,8],[577,2,577,8],[578,2,578,8],[579,2,579,8],[580,2,580,8],[581,2,581,8],[589,2,589,8],[590,2,590,8],[591,2,591,8],[592,2,592,8],[593,2,593,8],[594,2,594,8],[595,2,595,8],[552,1,552,2],[553,1,553,2],[554,1,554,2],[555,1,555,2],[457,1,457,2],[458,1,458,2],[459,1,459,2],[460,1,460,2],[461,1,461,2],[462,1,462,2],[463,1,463,2],[472,1,472,2],[473,1,473,2],[474,1,474,2],[475,1,475,2],[476,1,476,2],[467,1,467,3],[469,1,469,3],[511,1,511,2],[512,1,512,2],[513,1,513,2],[514,1,514,2],[515,1,515,2],[516,1,516,2],[191,7,191,8],[192,7,192,8],[193,7,193,8],[194,7,194,8],[195,7,195,8],[196,7,196,8],[189,1,189,4],[190,1,190,4],[191,1,191,4],[192,1,192,4],[193,1,193,4],[189,7,189,8],[198,7,198,8],[199,7,199,8],[200,7,200,8],[201,7,201,8],[548,1,548,2],[549,1,549,2],[550,1,550,2],[551,1,551,2],[282,6,282,8],[498,1,498,4],[499,1,499,4],[500,1,500,4],[202,7,202,8],[203,7,203,8],[234,3,234,6],[233,3,233,6],[517,1,517,2],[518,1,518,2],[292,1,292,2],[290,1,290,2],[291,1,291,2],[287,1,287,2],[544,1,544,2],[545,1,545,2],[0,0,1,11],[249,6,249,7],[249,9,249,10],[246,6,247,11],[266,1,266,3],[285,1,285,2],[286,1,286,2],[272,1,272,2],[273,1,273,2],[274,1,274,2],[279,1,279,2],[284,1,284,2],[271,1,271,4],[50,1,50,3],[51,1,51,3],[210,1,210,2],[211,1,211,2],[248,9,248,10],[259,1,259,3],[251,6,251,7],[52,1,52,3],[53,1,53,3],[54,1,54,3],[55,1,55,3],[81,3,81,7],[106,3,106,7],[78,3,78,8],[128,3,128,7],[127,3,127,8],[133,3,133,8],[132,3,132,8],[134,3,134,7],[138,3,138,7],[135,3,135,7],[137,3,137,7],[136,3,136,8]]}
["West Chester University's Common Data Set 2008 - 2009"]
[]
[]
["General Information"]
[]
[]
[]
[null,null,null,"Public","√",null,null,"Coeducational college","√"]
[null,null,null,"Private (nonprofit)",null,null,null,"Men's college"]
[null,null,null,"Proprietary",null,null,null,"Women's college"]
[]
[null,null,null,null,"Semester","√",null,null,"Certificate","√"]
[null,null,null,null,"Quarter",null,null,null,"Diploma"]
[null,null,null,null,"Trimester",null,null,null,"Associate"]
[null,null,null,null,"4-1-4",null,null,null,"Transfer Associate"]
[null,null,null,null,"Continuous",null,null,null,"Terminal Associate"]
[null,null,null,null,"Differs by program (describe):",null,null,null,"Bachelor's","√"]
[null,null,null,null,"Other (describe):",null,null,null,"Postbachelor's certificate","√"]
[null,null,null,null,null,null,null,null,"Master's","√"]
[null,null,null,null,null,null,null,null,"Post-master's certificate"]
[null,null,null,null,null,null,null,null,"Doctoral"]
[null,null,null,null,null,null,null,null,"First professional"]
[]
["Enrollment Persistence"]
[]
[null,"Institutional Enrollment - Men and Women Provide numbers of students for each of the following categories as of the institution's official fall reporting date or as of October 15, 2008."]
[null,"Undergraduates",null,"FULL-TIME",null,"PART-TIME",null,"Totals"]
[null,null,null,"Men","Women","Men","Women"]
[]
[null,"Degree-seeking, First-time, First-year",null,762,1231,4,5,{"$f":"SUM(D30:G30)","v":2002}]
[null,"Other first-year, degree-seeking ",null,416,485,17,25,943]
[null,"All other degree-seeking",null,2840,4556,331,455,8182]
[null,"Total degree-seeking",null,{"$f":"SUM(D30:D32)","v":4018},{"$f":"SUM(E30:E32)","v":6272},{"$f":"SUM(F30:F32)","v":352},{"$f":"SUM(G30:G32)","v":485},11127]
[null,"All other undergraduates enrolled in credit courses",null,14,38,121,182,355]
[null,"Total undergraduates ",null,{"$f":"SUM(B33:B34)","v":0},{"$f":"SUM(D33:D34)","v":4032},{"$f":"SUM(E33:E34)","v":6310},{"$f":"SUM(F33:F34)","v":473},10815]
[null,"First-Professional"]
[null,"First-time, first-professional students"]
[null,"All other first-professionals"]
[null,"Total first-professional",null,{"$f":"SUM(D37,D38)","v":0},{"$f":"SUM(E37,E38)","v":0},{"$f":"SUM(F37,F38)","v":0},{"$f":"SUM(G37,G38)","v":0}]
[null,"Graduate"]
[null,"Degree-seeking, first-time",null,57,145,62,141,{"$f":"SUM(D41:G41)","v":405}]
[null,"All other degree-seeking",null,82,242,233,666,{"$f":"SUM(D42:G42)","v":1223}]
[null,"All other graduates enrolled in credit courses",null,21,68,131,289,{"$f":"SUM(D43:G43)","v":509}]
[null,"Total graduate",null,{"$f":"SUM(B41:B43)","v":0},{"$f":"SUM(D41:D43)","v":160},{"$f":"SUM(E41:E43)","v":455},{"$f":"SUM(F41:F43)","v":426},{"$f":"SUM(D44:G44)","v":1041}]
[null,"Total all undergraduates",null,null,null,null,null,11482]
[null,"Total all graduate and professional students",null,null,null,null,null,2137]
[null,"GRAND TOTAL ALL STUDENTS",null,null,null,null,null,13619]
[]
[null,"Enrollment by Racial/Ethnic Category. Provide numbers of undergraduate students for each of the following categories as of the institution's official fall reporting date or as of October 15, 2008. Include international students only in the category \"Nonresident aliens.\" Complete the \"Total Undergraduates\" column only if you cannot provide data for the first two columns."]
[null,null,null,null,"Degree-Seeking\nFirst-Time\nFirst Year","Degree-Seeking\nUndergraduates (include first-time first-year)","Total\nUndergraduates (both degree- and non-degree-seeking)"]
[null,"NRA",null,null,9,26,30]
[null,"Black",null,null,152,979,997]
[null,"American Indian",null,null,4,31,34]
[null,"Asian",null,null,51,223,230]
[null,"Hispanic",null,null,86,334,341]
[null,"White",null,null,1865,9512,9815]
[null,"Unknown",null,null,14,19,35]
[null,"TOTAL",null,null,{"$f":"SUM(E51:E57)","v":2181},{"$f":"SUM(F51:F57)","v":11124},{"$f":"SUM(G51:G57)","v":11482}]
[null,null,null,null,2002,11127]
[]
[]
[null,null,null,null,null,"Persistence"]
[null,null,null,null,null,"Number of degrees awarded from July 1, 2007 to June 30, 2008"]
[null,null,null,null,null,"Certificate/diploma"]
[null,null,null,null,null,"Associate degrees"]
[null,null,null,null,null,"Bachelor's degrees"]
[null,null,null,null,null,"Postbachelor's certificates"]
[null,null,null,null,null,"Master's degrees"]
[null,null,null,null,null,"Post-Master's certificates"]
[null,null,null,null,null,"Doctoral degrees"]
[null,null,null,null,null,"First professional degrees"]
[null,null,null,null,null,"First professional certificates"]
[]
["Graduation Rates"]
[]
[null,null,null,null,"For Bachelor's or Equivalent Programs"]
[]
[null,null,null,"Fall 2002 Cohort"]
[null,null,null,"Report for the cohort of full-time first-time bachelor's (or equivalent) degree-seeking undergraduate students who entered in fall 2002. Include in the cohort those who entered your institution during the summer term preceding fall 2002."]
[null,null,null,"Initial 2002 cohort of first-time, full-time bachelor's (or equivalent) degree-seeking undergraduate students; total all students:",null,null,null,null,1768]
[null,null,null,"Of the initial 2002 cohort, how many did not persist and did not graduate for the following reasons: death, permanent disability, service in the armed forces, foreign aid service of the federal government, or official church missions; total allowable exclusions: ",null,null,null,null,2]
[null,null,null,"Final 2002 cohort, after adjusting for allowable exclusions: (subtract question B5 from question B4)",null,null,null,null,{"$f":"I80-I81","v":1766}]
[null,null,null,"Of the initial 2002 cohort, how many completed the program in four years or less (by August 31, 2006): ",null,null,null,null,641]
[null,null,null,"Of the initial 2002 cohort, how many completed the program in more than four years but in five years or less (after August 31, 2006 and by August 31, 2007): ",null,null,null,null,407]
[null,null,null,"Of the initial 2002 cohort, how many completed the program in more than five years but in six years or less (after August 31, 2007 and by August 31, 2008): ",null,null,null,null,68]
[null,null,null,"Total graduating within six years (sum of questions B7, B8, and B9): ",null,null,null,null,{"$f":"SUM(I83:I85)","v":1116}]
[null,null,null,"Six-year graduation rate for 2002 cohort (question B10 divided by question B6): ",null,null,null,null,{"$f":"I86/I82","v":0.63193657984144957}]
[]
[null,null,null,"Fall 2001 Cohort"]
[null,null,null,"Report for the cohort of full-time first-time bachelor's (or equivalent) degree-seeking undergraduate students who entered in fall 2001. Include in the cohort those who entered your institution during the summer term preceding fall 2001."]
[null,null,null,"Initial 2001 cohort of first-time, full-time bachelor's (or equivalent) degree-seeking undergraduate students; total all students:",null,null,null,null,1631]
[null,null,null,"Of the initial 2001 cohort, how many did not persist and did not graduate for the following reasons: death, permanent disability, service in the armed forces, foreign aid service of the federal government, or official church missions; total allowable exclusions: ",null,null,null,null,6]
[null,null,null,"Final 2001 cohort, after adjusting for allowable exclusions: (subtract question B5 from question B4)",null,null,null,null,{"$f":"I91-I92","v":1625}]
[null,null,null,"Of the initial 2001 cohort, how many completed the program in four years or less (by August 31, 2005): ",null,null,null,null,571]
[null,null,null,"Of the initial 2001 cohort, how many completed the program in more than four years but in five years or less (after August 31, 2005 and by August 31, 2006): ",null,null,null,null,425]
[null,null,null,"Of the initial 2001 cohort, how many completed the program in more than five years but in six years or less (after August 31, 2006 and by August 31, 2007): ",null,null,null,null,54]
[null,null,null,"Total graduating within six years (sum of questions B7, B8, and B9): ",null,null,null,null,{"$f":"SUM(I94:I96)","v":1050}]
[null,null,null,"Six-year graduation rate for 2001 cohort (question B10 divided by question B6): ",null,null,null,null,{"$f":"I97/I93","v":0.64615384615384619}]
[]
[null,null,null,null,"For Two-Year Institutions"]
[]
[null,null,null,"2005 Cohort"]
[null,null,null,"Initial 2005 cohort, total of first-time, full-time degree/certificate-seeking students: "]
[null,null,null,"Of the initial 2005 cohort, how many did not persist and did not graduate for the following reasons: death, permanent disability, service in the armed forces, foreign aid service of the federal government, or official church missions; total allowable exclusions: "]
[null,null,null,"Final 2005 cohort, after adjusting for allowable exclusions (Subtract question B13 from question B12):",null,null,null,null,{"$f":"I103-I104","v":0}]
[null,null,null,"Completers of programs of less than two years duration (total): "]
[null,null,null,"Completers of programs of less than two years within 150 percent of normal time: "]
[null,null,null,"Completers of programs of at least two but less than four years (total): "]
[null,null,null,"Completers of programs of at least two but less than four-years within 150 percent of normal time: "]
[null,null,null,"Total transfers-out (within three years) to other institutions: "]
[null,null,null,"Total transfers to two-year institutions: "]
[null,null,null,"Total transfers to four-year institutions: "]
[]
[null,null,null,"2004 Cohort"]
[null,null,null,"Initial 2004 cohort, total of first-time, full-time degree/certificate-seeking students: "]
[null,null,null,"Of the initial 2004 cohort, how many did not persist and did not graduate for the following reasons: death, permanent disability, service in the armed forces, foreign aid service of the federal government, or official church missions; total allowable exclusions: "]
[null,null,null,"Final 2004 cohort, after adjusting for allowable exclusions (Subtract question B13 from question B12):",null,null,null,null,{"$f":"I115-I116","v":0}]
[null,null,null,"Completers of programs of less than two years duration (total): "]
[null,null,null,"Completers of programs of less than two years within 150 percent of normal time: "]
[null,null,null,"Completers of programs of at least two but less than four years (total): "]
[null,null,null,"Completers of programs of at least two but less than four-years within 150 percent of normal time: "]
[null,null,null,"Total transfers-out (within three years) to other institutions: "]
[null,null,null,"Total transfers to two-year institutions: "]
[null,null,null,"Total transfers to four-year institutions: "]
[]
["Retention Rates"]
[]
[null,null,null,"Report for the cohort of all full-time, first-time bachelor’s (or equivalent) degree-seeking undergraduate students who entered in fall 2007 (or the preceding summer term). The initial cohort may be adjusted for students who departed for the following reasons: death, permanent disability, service in the armed forces, foreign aid service of the federal government or official church missions. No other adjustments to the initial cohort should be made."]
[null,null,null,"For the cohort of all full-time bachelor’s (or equivalent) degree-seeking undergraduate students who entered your institution as freshmen in fall 2007 (or the preceding summer term), what percentage was enrolled at your institution as of the date your institution calculates its official enrollment in fall 2008? ",null,null,null,null,0.84399999999999997]
[]
["First-time, First-year (Freshman) Admission"]
[]
[null,null,null,"Applications"]
[null,null,null,"First-time, first-year, (freshmen) students: Provide the number of degree-seeking, first-time, first-year students who applied, were admitted, and enrolled (full- or part-time) in fall 2008. Include early decision, early action, and students who began studies during summer in this cohort. Applicants should include only those students who fulfilled the requirements for consideration for admission (i.e., who completed actionable applications) and who have been notified of one of the following actions: admission, nonadmission, placement on waiting list, or application withdrawn (by applicant or institution). Admitted applicants should include wait-listed students who were subsequently offered admission."]
[null,null,null,"Total first-time, first-year (freshman) men who applied",null,null,null,null,5016]
[null,null,null,"Total first-time, first-year (freshman) women who applied",null,null,null,null,8337]
[]
[null,null,null,"Total first-time, first-year (freshman) men who were admitted",null,null,null,null,2348]
[null,null,null,"Total first-time, first-year (freshman) women who were admitted",null,null,null,null,3969]
[]
[null,null,null,"Total full-time, first-time, first-year (freshman) men who enrolled",null,null,null,null,762]
[null,null,null,"Total part-time, first-time, first-year (freshman) men who enrolled",null,null,null,null,1]
[]
[null,null,null,"Total full-time, first-time, first-year (freshman) women who enrolled",null,null,null,null,1231]
[null,null,null,"Total part-time, first-time, first-year (freshman) women who enrolled",null,null,null,null,10]
[]
[null,null,null,"Freshman wait-listed students (students who met admission requirements but whose final admission was contingent on space availability)"]
[null,null,null,null,null,null,null,"Yes","No"]
[null,null,null,"Do you have a policy of placing students on a waiting list?",null,null,null,"√"]
[]
[null,null,null,"If yes, please answer the questions below for fall 2008 admissions:"]
[null,null,null,"Number of qualified applicants offered a place on waiting list",null,null,null,null,850]
[null,null,null,"Number accepting a place on the waiting list",null,null,null,null,319]
[null,null,null,"Number of wait-listed students admitted",null,null,null,null,35]
[null,null,null,"Is your waiting list ranked?"]
[null,null,null,"If yes, do you release that information to students?"]
[null,null,null,"Do you release that information to school counselors?"]
[]
[null,null,null,null,"Admission Requirements"]
[]
[null,null,null,"High school completion requirement"]
[null,null,null,"High school diploma is required and GED is accepted",null,null,null,null,"√"]
[null,null,null,"High school diploma is required and GED is not accepted"]
[null,null,null,"High school diploma or equivalent is not required"]
[]
[null,null,null,"Does your institution require or recommend a general college-preparatory program for degree-seeking students?"]
[null,null,null,"Require",null,null,null,null,"√"]
[null,null,null,"Recommend"]
[null,null,null,"Neither require nor recommend"]
[]
[null,null,null,null,null,null,null,"Distribution of high school units required and/or recommended. Specify the distribution of academic high school course units required and/or recommended of all or most degree-seeking students using Carnegie units (one unit equals one year of study or its equivalent). If you use a different system for calculating units, please convert."]
[null,null,null,null,763,null,null,null,null,"Units\nRequired","Units\nRecommended"]
[null,null,null,null,1241,null,null,"Total academic units",null,16,25]
[null,null,null,null,null,null,null,"English",null,4,4]
[null,null,null,null,null,null,null,"Mathematics",null,3,4]
[null,null,null,null,null,null,null,"Science",null,2,3]
[null,null,null,null,null,null,null,"    Of these, units that must be lab\n    lab",null,1,2]
[null,null,null,null,null,null,null,"Foreign language",null,null,2]
[null,null,null,null,null,null,null,"Social studies",null,2,2]
[null,null,null,null,null,null,null,"History",null,2,2]
[null,null,null,null,null,null,null,"Academic electives",null,1,2]
[null,null,null,null,null,null,null,"Computer Science",null,null,1]
[null,null,null,null,null,null,null,"Visual/Performing Arts",null,null,1]
[null,null,null,null,null,null,null,"Other (specify)"]
[]
[]
[null,null,null,null,"Basis for Selection"]
[]
[null,"Do you have an open admission policy, under which virtually all secondary school graduates or students with GED equivalency diplomas are admitted without regard to academic record, test scores, or other qualifications?  If so, check which applies:",null,null,null,null,null,"Relative importance of each of the following academic and nonacademic factors in first-time, first-year, degree-seeking (freshman) admission decisions."]
[null,"Open admission policy as described above for all students ",null,null,null,null,null,null,null,"Very Important","Important","Considered","Not Considered"]
[null,"Open admission policy as described above for most students, but--",null,null,null,null,null,"Academic"]
[null,"    selective admission for out-of-state students",null,null,null,null,null,"Rigor of secondary school record",null,"√"]
[null,"    selective admission to some programs",null,null,null,null,null,"Class rank",null,"√"]
[null,"other (explain) ",null,null,null,null,null,"   Academic GPA",null,"√"]
[null,null,null,null,null,null,null,"Standardized test scores",null,null,"√"]
[null,null,null,null,null,null,null,"Application Essay",null,null,null,"√"]
[null,"SAT and ACT Policies",null,null,null,null,null,"Recommendation(s)",null,null,null,null,"√"]
[null,null,null,null,null,null,null,"Nonacademic"]
[null,null,null,null,null,null,null,"Interview",null,null,null,null,"√"]
[null,null,null,null,"Yes","No",null,"Extracurricular activities",null,null,null,"√"]
[null,"Does your institution make use of SAT, ACT, or SAT Subject Test scores in admission decisions for first-time, first-year, degree-seeking applicants?   ",null,null,"√",null,null,"Talent/ability",null,null,null,"√"]
[null,null,null,null,null,null,null,"Character/personal qualities",null,null,null,"√"]
[null,null,null,null,null,null,null,"First generation ",null,null,null,null,"√"]
[null,"Please indicate which tests your institution uses for placement (e.g., state tests):",null,null,null,null,null,"Alumni/ae relation",null,null,null,null,"√"]
[null,null,null,null,null,null,null,"Geographical residence",null,null,null,null,"√"]
[null,"SAT",null,"√",null,null,null,"State residency",null,null,null,null,"√"]
[null,"ACT",null,null,null,null,null,"Religious affiliation/commitment",null,null,null,null,"√"]
[null,"SAT Subject Tests",null,null,null,null,null,"Racial/ethnic status",null,null,null,"√"]
[null,"AP",null,"√",null,null,null,"Volunteer work",null,null,null,"√"]
[null,"CLEP",null,"√",null,null,null,"Work experience",null,null,null,"√"]
[null,"Institutional Exam",null,"√",null,null,null,"Level of applicant’s interest",null,null,null,null,"√"]
[null,"State Exam (specify):"]
[]
[null,null,null,null,"Admissions"]
[]
[null,null,null,null,"Does your institution use applicants' test scores for academic advising?"]
[null,null,null,null,"Yes",null,"No"]
[null,null,null,null,null,null,"√"]
[]
[null,null,null,null,"Require","Recommend","Require for Some","Consider if Submitted","Not Used"]
[null,null,null,"SAT or ACT","√"]
[null,null,null,"ACT only"]
[null,null,null,"SAT only"]
[null,null,null,"SAT and SAT Subject Tests or ACT"]
[null,null,null,"SAT Subject Tests only"]
[]
[null,null,null,"If your institution will make use of the ACT in admission decisions for first-time, first-year, degree-seeking applicants for Fall 2010, please indicate which ONE of the following applies: (regardless of whether the writing score will be used in the admissions process):"]
[null,null,null,"ACT with Writing Component required",null,null,null,null,"√"]
[null,null,null,"ACT with Writing component recommended"]
[null,null,null,"ACT with or without Writing component accepted"]
[]
[null,null,null," Please indicate how your institution will use the SAT or ACT writing component; check all that apply:"]
[null,null,null,null,null,null,null,"SAT essay","ACT essay"]
[null,null,null,"For admission"]
[null,null,null,"For placement"]
[null,null,null,"For advising"]
[null,null,null,"In place of an application essay"]
[null,null,null,"As a validity check on the application essay"]
[null,null,null,"No college policy as of now"]
[null,null,null,"Not using essay component",null,null,null,"√"]
[]
[null,null,null,"Latest date by which SAT or ACT scores must be received for fall-term admission",null,null,null,null,"2009-02-01"]
[null,null,null,"Latest date by which SAT Subject Test scores must be received for fall-term admission"]
[]
[null,null,null,null,"Freshman Profile"]
[]
[null,"Average high school GPA of all degree-seeking, first-time, first-year (freshman) students who submitted GPA:  ",null,null,null,null,"Percent and number of first-time, first-year (freshman) students enrolled in fall 2008 who submitted national standardized (SAT/ACT) test scores.  Include information for ALL enrolled, degree-seeking, first-time, first-year (freshman) students who submitted test scores.  Do not include partial test scores (e.g., mathematics scores but not critical reading for a category of students) or combine other standardized test results (such as TOEFL) in this item. Do not convert SAT scores to ACT scores and vice versa. The 25th percentile is the score that 25 percent scored at or below; the 75th percentile score is the one that 25 percent scored at or above."]
[null,"Percent of total first-time, first-year (freshman) students who submitted high school GPA:  "]
[null,null,null,null,null,null,"Percent submitting SAT scores",null,null,"Number submitting SAT scores"]
[null,"Percentage of all enrolled, degree-seeking, first-time, first-year (freshman) students who had high school grade-point averages within each of the following ranges (using 4.0 scale).  Report information only for those students from whom you collected high school GPA.",null,null,null,null,"Percent submitting ACT scores",null,null,"Number submitting ACT scores"]
[]
[null,"Percent who had GPA of 3.75 and higher",null,null,null,null,null,null,"Yes","No"]
[null,"Percent who had GPA between 3.50 and 3.74",null,null,null,null,"Can on-line application fee be waived for applicants with financial need?",null,null,"√"]
[null,"Percent who had GPA between 3.25 and 3.49"]
[null,"Percent who had GPA between 3.00 and 3.24",null,null,null,null,"Percent of first-time, first-year (freshman) students with scores in each range:"]
[null,"Percent who had GPA between 2.50 and 2.99",null,null,null,null,null,"SAT Critical Reading","SAT Math","SAT Writing"]
[null,"Percent who had GPA between 2.0 and 2.49",null,null,null,null,"700-800"]
[null,"Percent who had GPA between 1.0 and 1.99",null,null,null,null,"600-699"]
[null,"Percent who had GPA below 1.0",null,null,null,null,"500-599"]
[null,"Totals should = 100%",null,null,{"$f":"SUM(E252:E259)","v":0},null,"400-499"]
[null,null,null,null,null,null,"300-399"]
[null,"If you have an application fee and an on-line application option, please indicate policy for students who apply on-line:",null,null,null,null,"200-299"]
[null,"Same fee:",null,"√",null,null,"Totals should = 100%",{"$f":"SUM(H257:H262)","v":0},{"$f":"SUM(I257:I262)","v":0},{"$f":"SUM(J257:J262)","v":0}]
[null,"Free:",null,null,null,null,null,"ACT Composite","ACT English","ACT Math"]
[null,"Reduced:",null,null,null,null,"30-36"]
[null,null,null,null,null,null,"24-29"]
[null,"Notification to applicants of admission decision sent (fill in one only)",null,null,null,null,"18-23"]
[null,"On a rolling basis beginning (date):  10/1",null,"√",null,null,"12-17"]
[null,"By (date):  ",null,null,null,null,"6-11"]
[null,"Other:  ",null,null,null,null,"Below 6"]
[null,null,null,null,null,null,"Totals should = 100%",{"$f":"SUM(H265:H270)","v":0},{"$f":"SUM(I265:I270)","v":0},{"$f":"SUM(J265:J270)","v":0}]
[null,"Reply policy for admitted applicants (fill in one only)"]
[null,"Must reply by (date):  ",null,null,null,null,"Deferred admission"]
[null,"No set date:  ",null,null,null,null,null,null,"Yes","No"]
[null,"Must reply by May 1 or within four weeks if notified thereafter",null,"√",null,null,"Does your institution allow students to postpone enrollment after admission?",null,"√"]
[null,"Other:  ",null,null,null,null,"If yes, maximum period of postponement:"]
[]
[null,"Deadline for housing deposit (MM/DD): ",null,null,"05/01",null,"Early admission of high school students"]
[null,"Amount of housing deposit: ",null,null,null,null,null,null,null,"Yes","No"]
[null,"Refundable if student does not enroll?",null,null,null,null,"Does your institution allow high school students to enroll as full-time, first-time, first-year (freshman) students one year or more before high school graduation?",null,null,"√"]
[null,"     Yes, in full"]
[null,"     Yes, in part",null,null,null,null,"Percent of all degree-seeking, first-time, first-year (freshman) students who had high school class rank within each of the following ranges (report information for those students from whom you collected high school rank information)."]
[null,"     No",null,"√",null,null,"Percent in top tenth of high school graduating class"]
[null,null,null,null,null,null,"Percent in top quarter of high school graduating class"]
[null,null,null,"25th Percentile","75th Percentile",null,"Percent in top half of high school graduating class",null,null,"Top half + "]
[null,"SAT Critical Reading",null,null,null,null,"Percent in bottom half of high school graduating class",null,null,"bottom half = 100%"]
[null,"SAT Math",null,null,null,null,"Percent in bottom quarter of high school graduating class"]
[null,"SAT Writing",null,null,null,null,"Percent of total first-time, first-year (freshmen) students who submitted high school class rank:"]
[null,"SAT Essay"]
[null,"ACT Composite",null,null,null,null,null,null,null,"Yes","No"]
[null,"ACT Math",null,null,null,null,"Are first-time, first-year students accepted for terms other than the fall?",null,null,"√"]
[null,"ACT English"]
[null,"ACT Writing",null,null,null,null,"Application closing date"]
[null,null,null,null,null,null,null,null,"Yes","No"]
[null,"Admission Policies",null,null,null,null,"Does your institution have an application closing date?",null,null,"√"]
[null,null,null,null,null,null,"Application closing date (fall):  "]
[null,null,"Yes","No",null,null,"Priority date:  ",null,"2007-01-01"]
[null,"Does your institution have an application fee?","√"]
[null,"Amount of application fee:",35]
[null,null,"Yes","No"]
[null,"Can it be waived for applicants with financial need?","√"]
[]
[null,null,null,null,"Early Decision and Early Action Plans"]
[]
[null,"Early Decision"]
[null,null,null,null,null,"Yes","No",null,"Early action"]
[null,"Does your institution offer an early decision plan (an admission plan that permits students to apply and be notified of an admission decision well in advance of the regular notification date and that asks students to commit to attending if accepted) for first-time, first-year (freshman) applicants for fall enrollment? ",null,null,null,null,"√",null,null,null,null,"Yes","No"]
[null,"If “yes,” please complete the following: ",null,null,null,null,null,null,"Do you have a nonbinding early action plan whereby students are notified of an admission decision well in advance of the regular notification date but do not have to commit to attending your college? ",null,null,null,"√"]
[null,"First or only early decision plan closing date",null,null,null,null,null,null,"If “yes,” please complete the following: "]
[null,"First or only early decision plan notification date",null,null,null,null,null,null,"Early action closing date"]
[null,"Other early decision plan closing date",null,null,null,null,null,null,"Early action notification date"]
[null,"Other early decision plan notification date"]
[null,"For the Fall 2008 entering class:"]
[null,"Number of early decision applications received by your institution"]
[null,"Number of applicants admitted under early decision plan"]
[]
[null,null,null,null,null,"Is your early action plan a “restrictive” plan under which you limit students from applying to other early plans?"]
[null,null,null,null,null,"Yes",null,"No"]
[null,null,null,null,null,null,null,"√"]
[]
["Transfer Admission"]
[]
[null,null,null,null,null,"Application for Admission"]
[null,null,null,null,null,"Indicate terms for which transfers may enroll:"]
[null,null,null,null,null,"Fall",null,"√"]
[null,null,null,null,null,"Winter"]
[null,null,null,null,null,"Spring",null,"√"]
[null,null,null,null,null,"Summer"]
[]
[null,"Transfer Credit Policies",null,null,null,null,null,"Fall Applicants"]
[null,null,null,null,null,null,null,null,null,null,"Yes",null,"No"]
[null,"Report the lowest grade earned for any course that may be transferred for credit:  ",null,null,2,null,null,"Does your institution enroll transfer students?  (If no, please skip to Section E)",null,null,"√"]
[null,null,null,null,"Number","Unit Type",null,"If yes, may transfer students earn advanced standing credit by transferring credits earned from course work completed at other colleges/universities?  ",null,null,"√"]
[null,"Maximum number of credits or courses that may be transferred from a two-year institution: ",null,null,"No Max"]
[null,"Maximum number of credits or courses that may be transferred from a four-year institution:  ",null,null,"No Max",null,null,"Must a transfer applicant have a minimum number of credits completed or else must apply as an entering freshman?",null,null,null,null,"√"]
[null,"Minimum number of credits that transfers must complete at your institution to earn an associate degree:",null,null,"N/A",null,null,"If yes, what is the minimum number of credits and the unit of measure?  "]
[null,"Minimum number of credits that transfers must complete at your institution to earn a bachelor’s degree:  ",null,null,30,null,null,"Does an open admission policy, if reported, apply to transfer students?",null,null,"We do not have an open admission policy"]
[]
[]
[null,null,null,null,"Provide the number of students who applied, were admitted, and enrolled as degree-seeking transfer students in fall 2008."]
[null,null,null,null,null,null,"Applicants","Admitted Applicants","Enrolled Applicants"]
[null,null,null,null,"Men"]
[null,null,null,null,"Women"]
[null,null,null,null,"Total",null,{"$f":"SUM(G342:G343)","v":0},{"$f":"SUM(H342:H343)","v":0},{"$f":"SUM(I342:I343)","v":0}]
[]
[null,null,null,"Indicate all items required of transfer students to apply for admission:"]
[]
[null,null,null,null,"Required of All","Recommended\nof All","Recommended\nof Some","Required of Some","Not Required"]
[null,null,null,"High school transcript",null,null,null,"√"]
[null,null,null,"College transcript(s)","√"]
[null,null,null,"Essay or personal statement","√"]
[null,null,null,"Interview",null,null,null,"√"]
[null,null,null,"Standardized test scores",null,null,null,"√"]
[null,null,null,"Statement of good standing from prior institution(s)",null,null,null,null,"√"]
[]
[null,null,null,"List application priority, closing, notification, and candidate reply dates for transfer students. If applications are reviewed on a continuous or rolling basis, place a check mark in the “Rolling admission” column."]
[null,null,null,null,"Priority Date","Closing Date","Notification Date","Reply Date","Rolling Admission"]
[null,null,null,"Fall",null,null,null,null,"√"]
[null,null,null,"Winter"]
[null,null,null,"Spring",null,null,null,null,"√"]
[null,null,null,"Summer"]
[]
[null,null,null,"If a minimum high school grade point average is required of transfer applicants, specify (on a 4.0 scale):"]
[null,null,null,"If a minimum college grade point average is required of transfer applicants, specify (on a 4.0 scale):",null,null,null,null,null,2]
[null,null,null,"Describe additional requirements for transfer admission, if applicable:  Certain academic programs require higher cumulative GPA than others and specific course prerequisites."]
[]
[null,null,null,"List any other application requirements specific to transfer applicants:  "]
[]
[]
["Academic Offerings and Policies"]
[]
[null,null,null,"Accelerated program",null,null,null,"Arts/fine arts",null,"√"]
[null,null,null,"Cooperative education program",null,"√",null,"Computer literacy",null,"√"]
[null,null,null,"Cross-registration",null,"√",null,"English (including composition)",null,"√"]
[null,null,null,"Distance learning",null,"√",null,"Foreign languages",null,"√"]
[null,null,null,"Double major",null,"√",null,"History",null,"√"]
[null,null,null,"Dual enrollment",null,"√",null,"Humanities",null,"√"]
[null,null,null,"English as a Second Language (ESL)",null,"√",null,"Mathematics",null,"√"]
[null,null,null,"Exchange student program (domestic)",null,"√",null,"Philosophy"]
[null,null,null,"External degree program",null,null,null,"Sciences (biological or physical)",null,"√"]
[null,null,null,"Honors Program",null,"√",null,"Social science",null,"√"]
[null,null,null,"Independent study",null,"√",null,"Other (describe):"]
[null,null,null,"Internships",null,"√"]
[null,null,null,"Liberal arts/career combination",null,"√"]
[null,null,null,"Student-designed major",null,"√"]
[null,null,null,"Study abroad",null,"√"]
[null,null,null,"Teacher certification program",null,"√"]
[null,null,null,"Weekend college"]
[null,null,null,"Other (specify):"]
[]
["Student Life"]
[]
[null,null,null,"Activities offered Identify those programs available at your institution. ",null,null,"Percentages of first-time, first-year (freshman) degree-seeking students and degree-seeking undergraduates enrolled in Fall 2008 who fit the following categories:"]
[null,null,null,"Campus Ministries","√",null,null,null,null,"First-time, first-year (freshman) students ","Undergraduates"]
[null,null,null,null,null,null,"Percent who are from out of state (exclude international/nonresident aliens from the numerator and denominator)"]
[null,null,null,"Choral groups","√",null,"Percent of men who join fraternities",null,null,6.2E-2,9.2999999999999999E-2]
[null,null,null,null,null,null,"Percent of women who join sororities",null,null,7.2999999999999995E-2,8.5999999999999993E-2]
[null,null,null,"Concert band","√",null,"Percent who live in college-owned, -operated, or -affiliated housing"]
[null,null,null,null,null,null,"Percent who live off campus or commute"]
[null,null,null,"Dance","√",null,"Percent of students age 25 and older"]
[null,null,null,null,null,null,"Average age of full-time students"]
[null,null,null,"Drama/theater","√",null,"Average age of all students (full- and part-time)"]
[]
[null,null,null,"International Student Organization","√"]
[null,null,null,null,null,null,"ROTC (program offered in cooperation with Reserve Officers' Training Corps)"]
[null,null,null,"Jazz band","√",null,null,"On Campus",null,"At Cooperating Institution ","Name of Cooperating Institution"]
[null,null,null,null,null,null,"Army ROTC is offered:","√",null,"√","Widener University"]
[null,null,null,"Literary magazine","√",null,"Naval ROTC is offered:"]
[null,null,null,null,null,null,"Air Force ROTC is offered:"]
[null,null,null,"Marching band","√"]
[null,null,null,null,null,null,"Housing: Check all types of college-owned, -operated, or -affiliated housing available for undergraduates at your institution."]
[null,null,null,"Model UN","√",null,"Coed dorms","√"]
[null,null,null,null,null,null,"Men's dorms","√"]
[null,null,null,"Music ensembles","√",null,"Women's dorms","√"]
[null,null,null,null,null,null,"Apartments for married students"]
[null,null,null,"Musical theater","√",null,"Apartments for single students","√"]
[null,null,null,null,null,null,"Special housing for disabled students","√"]
[null,null,null,"Opera","√",null,"Special housing for international students","√"]
[null,null,null,null,null,null,"Fraternity/sorority housing","√"]
[null,null,null,"Pep band","√",null,"Cooperative housing"]
[null,null,null,null,null,null,"Theme housing"]
[null,null,null,"Radio station","√",null,"Wellness housing"]
[null,null,null,null,null,null,"Other housing options (specify):"]
[null,null,null,"Student government","√"]
[]
[null,null,null,"Student newspaper","√"]
[]
[null,null,null,"Student-run film society"]
[]
[null,null,null,"Symphony orchestra","√"]
[]
[null,null,null,"Television station","√"]
[]
[null,null,null,null,"√"]
[]
[]
["Annual Expenses"]
[]
[]
[null,null,null,null,null,null,null,"Undergraduate full-time tuition, required fees, room and board List the typical tuition, required fees, and room and board for a full-time undergraduate student for the FULL 2009-2010 academic year (30 semester or 45 quarter hours for institutions that derive annual tuition by multiplying credit hour cost by number of credits). A full academic year refers to the period of time generally extending from September to June; usually equated to two semesters, two trimesters, three quarters, or the period covered by a four-one-four plan. Room and board is defined as double occupancy and 19 meals per week or the maximum meal plan. Required fees include only charges that all full-time students must pay that are not included in tuition (e.g., registration, health, or activity fees.) Do not include optional fees (e.g., parking, laboratory use)."]
[null,null,null,null,null,null,null,null,null,"First-Year","Undergraduates"]
[null,null,null,null,null,null,null,"PRIVATE INSTITUTIONS\nTuition:"]
[null,null,null,null,null,null,null,"PUBLIC INSTITUTIONS: In-district\nTuition:\n    In-district",null,5358]
[null,null,null,null,null,null,null,"PUBLIC INSTITUTIONS: In-state, out-of-district\n    In-state (out-of-district):"]
[null,null,null,null,null,null,null,"PUBLIC INSTITUTIONS: Out-of-state\n    Out-of-state:",null,13396]
[null,null,null,null,null,null,null,"NONRESIDENT ALIENS\nTuition:"]
[]
[null,null,null,null,null,null,null,"REQUIRED FEES:",null,1379]
[]
[null,null,null,null,null,null,null,"ROOM AND BOARD:\n(on-campus)",null,6874]
[null,null,null,null,null,null,null,"ROOM ONLY:\n(on-campus)",null,4476]
[null,null,null,null,null,null,null,"BOARD ONLY:\n(on-campus meal plan)",null,1199]
[]
[null,null,null,null,null,null,null,"Comprehensive tuition and room and board fee (if your college cannot provide separate tuition and room and board fees): "]
[null,"If tuition and fees vary by undergraduate instructional program, describe briefly:"]
[]
[null,"Provide the estimated expenses for a typical full-time undergraduate student:"]
[null,null,null,"Residents","Commuters\n(living at home)","Commuters\n(not living at home)"]
[null,"Books and supplies",null,1296,1296,1296]
[null,"Room only",null,4476,null,4898]
[null,"Board only",null,2398,null,2398]
[null,"Room and board total  (if your college cannot provide separate room and board figures for commuters not living at home):"]
[null,"Transportation",null,1472,2272,1472]
[null,"Other expenses",null,2113,2113,2113]
[]
[null,"Other:"]
[null,null,null,null,"Minimum","Maximum"]
[null,"Number of credits per term a student can take for the stated full-time tuition",null,null,12,18]
[null,null,null,null,"Yes","No"]
[null,"Do tuition and fees vary by year of study (e.g., sophomore, junior, senior)?",null,null,null,"x"]
[]
[null,"Undergraduate per-credit-hour charges (tuition only)"]
[null,"PRIVATE INSTITUTIONS:\n"]
[null,"PUBLIC INSTITUTIONS \n    In-district:",null,223]
[null,"PUBLIC INSTITUTIONS \n    In-state (out-of-district):",null,223]
[null,"PUBLIC INSTITUTIONS \n    Out-of-state:",null,558]
[null,"NONRESIDENT ALIENS:\n",null,558]
[]
["Financial Aid"]
[]
[null,null,null,null,"Aid Awarded to Enrolled Undergraduates"]
[]
[null,null,null,null,null,null,null,"2008-2009 estimated","2007-2008\nfinal"]
[null,null,null,null,"Indicate the academic year for which data are reported for items H1, H2, H2A, and H6 below:",null,null,null,"X"]
[]
[null,null,null,null,null,"Need-based $ (Include non-need-based aid used to meet need.)","Non-need-based $      (Exclude non-need-based aid used to meet need.)"]
[null,"Scholarships/Grants"]
[null,"Federal",null,null,null,6040670,0]
[null,"State (i.e., all states, not only the state in which your institution is located)",null,null,null,6923210,53482]
[null,"Institutional: Endowed scholarships, annual gifts and tuition funded grants, awarded by the college, excluding athletic aid and tuition waivers (which are reported below).",null,null,null,1716102,479373]
[null,"Scholarships/grants from external sources (e.g., Kiwanis, National Merit) not awarded by the college",null,null,null,1595341,197406]
[null,"Total Scholarships/Grants",null,null,null,{"$f":"SUM(F488:F491)","v":16275323},{"$f":"SUM(G488:G491)","v":730261}]
[null,"Self-Help"]
[null,"Student loans from all sources (excluding parent loans)",null,null,null,33101333,11690498]
[null,"Federal Work-Study",null,null,null,669411]
[null,"State and other (e.g., institutional) work-study/employment (Note: Excludes Federal Work-Study captured above.)"]
[null,"Total Self-Help",null,null,null,{"$f":"SUM(F494:F496)","v":33770744},{"$f":"SUM(G494,G496)","v":11690498}]
[null,"Other"]
[null,"Parent Loans",null,null,null,null,3141782]
[null,"Tuition Waivers\nReporting is optional. Report tuition waivers in this row if you choose to report them. Do not report tuition waivers elsewhere."]
[null,"Athletic Awards",null,null,null,530245,125451]
[]
[null,null,null,null,null,null,null,"Number of Enrolled Students Awarded Non-need-based Scholarships and Grants:  List the number of degree-seeking full-time and less-than-full-time undergraduates who had no financial need and who were awarded institutional non-need-based scholarship or grant aid. Numbers should reflect the cohort awarded the dollars reported in H1.  Note:  In the chart below, students may be counted in more than one row, and full-time freshmen should also be counted as full-time undergraduates."]
[null,null,null,null,null,null,null,null,null,"First-time\nFull-time\nFreshmen","Full-time\nUndergrad\n(Incl. Fresh.)","Less Than\nFull-time\nUndergrad"]
[null,null,null,null,null,null,null,"Number of students in line a who had no financial need and who were awarded institutional non-need-based scholarship or grant aid (exclude those who were awarded athletic awards and tuition benefits)",null,110,272,107]
[null,null,null,null,null,null,null,"Average dollar amount of institutional non-need-based scholarship and grant aid awarded to students",null,2383,5224,3857]
[null,null,null,null,null,null,null,"Number of students in line a who were awarded an institutional non-need-based athletic scholarship or grant",null,21,57,28]
[null,null,null,null,null,null,null,"Average dollar amount of institutional non-need-based athletic scholarships and grants awarded to students",null,2467,4348,2314]
[]
[null,"Number of Enrolled Students Awarded Aid:  List the number of degree-seeking full-time and less-than-full-time undergraduates who applied for and were awarded financial aid from any source. Aid that is non-need-based but that was used to meet need should be counted as need-based aid. Numbers should reflect the cohort awarded the dollars reported in H1.  Note:  In the chart below, students may be counted in more than one row, and full-time freshmen should also be counted as full-time undergraduates."]
[null,null,null,"First-time\nFull-time\nFreshmen","Full-time\nUndergraduate\n(Incl. Fresh.)","Less Than\nFull-time\nUndergraduate",null,"Which needs-analysis methodology does your institution use in awarding institutional aid?"]
[null,"Number of degree-seeking undergraduate students (CDS Item B1 if reporting on Fall 2008 cohort)",null,1957,10606,7511,null,"Federal methodology (FM)",null,"√"]
[null,"Number of students in line a who applied for need-based financial aid",null,1650,7478,3845,null,"Institutional methodology (IM)"]
[null,"Number of students in line b who were determined to have financial need",null,1039,5169,2734,null,"Both FM and IM"]
[null,"Number of students in line c who were awarded any financial aid",null,976,4925,2590]
[null,"Number of students in line d who were awarded any need-based scholarship or grant aid",null,679,3244,1749,null,"Note: These are the graduates and loan types to include and exclude in order to fill out CDS H4, H4a, H5, and H5a."]
[null,"Number of students in line d who were awarded any need-based self-help aid",null,880,4505,2337]
[null,"Number of students in line d who were awarded any non-need-based scholarship or grant aid",null,8,43,22,null,"Include:   * 2008 undergraduate class who graduated between July 1, 2007 and June 30, 2008 who started at your institution as first- time students and received a bachelor's degree between July 1, 2007 and June 30, 2008.\n  * only loans made to students who borrowed while enrolled at your institution.\n  * co-signed loans.\n"]
[null,"Number of students in line d whose need was fully met (exclude PLUS loans, unsubsidized loans, and private alternative loans)",null,378,2035,1102,null,"Exclude:   * those who transferred in.\n  * money borrowed at other institutions.\n"]
[null,"On average, the percentage of need that was met of students who were awarded any need-based aid. Exclude any aid that was awarded in excess of need as well as any resources that were awarded to replace EFC (PLUS loans, unsubsidized loans, and private alternative loans)",null,0.61,0.64,0.65,null,"Provide the percentage of the class (defined above) who borrowed at any time through any loan programs (institutional, state, Federal Perkins, Federal Stafford Subsidized and Unsubsidized, private loans that were certified by your institution, etc.; exclude parent loans). Include both Federal Direct Student Loans and Federal Family Education Loans.",null,null,null,0.65]
[null,"The average financial aid package of those in line d. Exclude any resources that were awarded to replace EFC (PLUS loans, unsubsidized loans, and private alternative loans)",null,7084,7228,7269,null,"Provide the percentage of the class (defined above) who borrowed at any time through federal loan programs--Federal Perkins, Federal Stafford Subsidized and Unsubsidized.  Include both Federal Direct Student Loans and Federal Family Education Loans. NOTE: exclude all institutional, state, private alternative loans and parent loans.",null,null,null,0.64]
[null,"Average need-based scholarship and grant award of those in line e",null,5251,4729,4668,null,"Report the average per-borrower cumulative undergraduate indebtedness of those in line H4",null,null,null,25179]
[null,"Average need-based self-help award (excluding PLUS loans, unsubsidized loans, and private alternative loans) of those in line f",null,3770,4447,4480,null,"Report the average per-borrower cumulative undergraduate indebtedness through federal loan programs--Federal Perkins, Federal Stafford Subsidized and Unsubsidized.  Include both Federal Direct Student Loan and Federal Family Education Loans.  These are listed in line 4a.  NOTE: exclude all institutional, state, private alternative loans and exclude parent loans.",null,null,null,14576]
[null,"Average need-based loan (excluding PLUS loans, unsubsidized loans, and private alternative loans) of those in line f who were awarded a need-based loan",null,3523,4318,4381]
[]
[null,null,null,null,"Aid to Undergraduate Degree-seeking Nonresident Aliens"]
[]
[null,"Indicate your institution’s policy regarding institutional scholarship and grant aid for undergraduate degree-seeking nonresident aliens:",null,null,null,null,null,"If institutional financial aid is available for undergraduate degree-seeking nonresident aliens, provide the number of undergraduate degree-seeking nonresident aliens who were awarded need-based or non-need-based aid: ",null,null,null,7]
[null,"Institutional need-based scholarship or grant aid is available",null,null,null,"√"]
[null,"Institutional non-need-based scholarship or grant aid is available",null,null,null,"√",null,"Average dollar amount of institutional financial aid awarded to undergraduate degree-seeking nonresident aliens: ",null,null,null,5170]
[null,"Institutional scholarship or grant aid is not available"]
[null,null,null,null,null,null,null,"Total dollar amount of institutional financial aid awarded to undergraduate degree-seeking nonresident aliens:  ",null,null,null,72377]
[]
[null,null,null,null,"Check off all financial aid forms nonresident alien first-year financial aid applicants must submit:"]
[null,null,null,null,"Institution’s own financial aid form"]
[null,null,null,null,"CSS/Financial Aid PROFILE"]
[null,null,null,null,"International Student’s Financial Aid Application"]
[null,null,null,null,"International Student’s Certification of Finances"]
[null,null,null,null,"Other (specify):  "]
[]
[null,"Types of Aid Available",null,null,null,null,null,null,null,"Process for First-Year/Freshman Students"]
[]
[null,"Federal Direct Student Loan Program",null,null,null,"Scholarships and Grants / NEED-BASED:",null,null,null,"Check off all financial aid forms domestic first-year (freshman) financial aid applicants must submit:"]
[null,"Direct Subsidized Stafford Loans",null,null,null,"Federal Pell",null,"√",null,"FAFSA",null,"√"]
[null,"Direct Unsubsidized Stafford Loans",null,null,null,"SEOG",null,"√",null,"Institution's own financial aid form"]
[null,"Direct PLUS Loans",null,null,null,"State scholarships/grants",null,"√",null,"CSS/Financial Aid PROFILE"]
[null,null,null,null,null,"Private scholarships",null,null,null,"State aid form"]
[null,"Federal Family Education Loan Program (FFEL)",null,null,null,"College/university scholarship or grant aid from institutional funds",null,"√",null,"Noncustodial PROFILE"]
[null,"FFEL Subsidized Stafford Loans",null,"√",null,"United Negro College Fund",null,null,null,"Business/Farm Supplement"]
[null,"FFEL Unsubsidized Stafford Loans",null,"√",null,"Federal Nursing Scholarship",null,null,null,"Other (specify):"]
[null,"FFEL PLUS Loans",null,"√",null,"Other (specify):"]
[null,"Federal Perkins Loans",null,"√",null,null,null,null,null,"Indicate filing dates for first-year (freshman) students:"]
[null,"Federal Nursing Loans",null,"√"]
[null,"State Loans",null,null,null,null,null,null,null,"Priority date for filing required financial aid forms:",null,"2008-03-01"]
[null,"College/university loans from institutional funds",null,null,null,null,null,null,null,"Deadline for filing required financial aid forms:"]
[null,"Other (specify):",null,null,null,null,null,null,null,"No deadline for filing required forms (applications processed on a rolling basis):",null,"√"]
[]
[null,"Check off criteria used in awarding institutional aid. Check all that apply. ",null,null,null,null,null,null,null,"Students notified on or about (date): "]
[null,null,null,null,"Non-Need Based","Need-Based",null,null,null,null,null,"Yes","No"]
[null,"Academics",null,null,"√","√",null,null,null,"Students notified on a rolling basis:"]
[null,"Alumni affiliation",null,null,null,null,null,null,null,"If yes, starting date:"]
[null,"Art",null,null,null,"√"]
[null,"Athletics",null,null,"√","√",null,null,null,"Indicate reply dates:"]
[null,"Job skills",null,null,null,null,null,null,null,"Students must reply by (date): "]
[null,"ROTC",null,null,null,null,null,null,null,"or within _____ weeks of notification.",null,"four weeks"]
[null,"Leadership",null,null,"√","√"]
[null,"Minority status",null,null,"√","√"]
[null,"Music/drama",null,null,"√"]
[null,"Religious affiliation"]
[null,"State/district residency",null,null,"√","√"]
[]
["Instructional Faculty and Class Size"]
[]
[null,null,"The following definition of full-time instructional faculty is used by the American Association of University Professors (AAUP) in its annual Faculty Compensation Survey (the part time definitions are not used by AAUP). Instructional Faculty is defined as those members of the instructional-research staff whose major regular assignment is instruction, including those with released time for research. Use the chart below to determine inclusions and exclusions:"]
[null,null,null,null,null,null,null,null,null,"Full-time","Part-time"]
[null,null,"instructional faculty in preclinical and clinical medicine, faculty who are not paid (e.g., those who donate their services or are in the military), or research-only faculty, post-doctoral fellows, or pre-doctoral fellows",null,null,null,null,null,null,"Exclude","Include only if they teach one or more non-clinical credit courses"]
[null,null,"administrative officers with titles such as dean of students, librarian, registrar, coach, and the like, even though they may devote part of their time to classroom instruction and may have faculty status",null,null,null,null,null,null,"Exclude","Include if they teach one or more non-clinical credit courses"]
[null,null,"other administrators/staff who teach one or more non-clinical credit courses even though they do not have faculty status",null,null,null,null,null,null,"Exclude","Include"]
[null,null,"undergraduate or graduate students who assist in the instruction of courses, but have titles such as teaching assistant, teaching fellow, and the like",null,null,null,null,null,null,"Exclude","Exclude"]
[null,null,"faculty on sabbatical or leave with pay",null,null,null,null,null,null,"Include","Exclude"]
[null,null,"faculty on leave without pay ",null,null,null,null,null,null,"Exclude","Exclude"]
[null,null,"replacement faculty for faculty on sabbatical leave or leave with pay",null,null,null,null,null,null,"Exclude","Include"]
[]
[null,null,"Part-time instructional faculty: Adjuncts and other instructors being paid solely for part-time classroom instruction. Also includes full-time faculty teaching less than two semesters, three quarters, two trimesters, or two four-month sessions. Employees who are not considered full-time instructional faculty but who teach one or more non-clinical credit courses may be counted as part-time faculty."]
[null,null,"Minority faculty: includes faculty who designate themselves as black, non-Hispanic; American Indian or Alaska Native; Asian or Pacific Islander; or Hispanic."]
[null,null,"Doctorate: includes such degrees as Doctor of Education, Doctor of Juridical Science, Doctor of Public Health, and Doctor of Philosophy degree in any field such as agronomy, food technology, education, engineering, public administration, ophthalmology, or radiology."]
[null,null,"First-professional: includes the fields of dentistry (DDS or DMD), medicine (MD), optometry (OD), osteopathic medicine (DO), pharmacy (DPharm or BPharm), podiatric medicine (DPM), veterinary medicine (DVM), chiropractic (DC or DCM), law (JD) and theological professions (MDiv, MHL)."]
[null,null,"Terminal degree: the highest degree in a field: example, M. Arch (architecture) and MFA (master of fine arts)."]
[null,null,null,null,null,null,null,null,null,"Full-Time","Part-Time","Total"]
[null,null,"Total number of instructional faculty"]
[null,null,"Total number who are members of minority groups"]
[null,null,"Total number who are women"]
[null,null,"Total number who are men"]
[null,null,"Total number who are nonresident aliens (international)"]
[null,null,"Total number with doctorate, first professional, or other terminal degree"]
[null,null,"Total number whose highest degree is a master's but not a terminal master's"]
[null,null,"Total number whose highest degree is a bachelor's"]
[null,null,"Total number whose highest degree is unknown or other  (Note:  Items f, g, h, and i must sum up to item a.)"]
[null,null,"Total number in stand-alone graduate/ professional programs in which faculty teach virtually only graduate-level students"]
[]
[]
[null,null,null,null,"Student to Faculty Ratio"]
[]
[null,null,"Fall 2008 Student to Faculty ratio",null,null,null,null,null,null,"to 1","(based on",null,"students"]
[null,null,null,null,null,null,null,null,null,null,"and",null,"faculty)."]
[]
[null,null,null,null,"Undergraduate Class Size"]
[]
[null,null,"CLASS SECTIONS",null,"2-9","10-19","20-29","30-39","40-49","50-99","100+","Total"]
[null,null,null,null,null,null,null,null,null,null,null,{"$f":"SUM(E610:K610)","v":0}]
[]
[null,null,"SUB-CLASS SECTIONS",null,"2-9","10-19","20-29","30-39","40-49","50-99","100+","Total"]
[null,null,null,null,null,null,null,null,null,null,null,{"$f":"SUM(E613:K613)","v":0}]
[]
["Degrees Conferred"]
[]
[null,null,null,null,"Degrees conferred between July 1, 2007 and June 30, 2008"]
[null,null,null,null,"For each of the following discipline areas, provide the percentage of diplomas/certificates, associate, and bachelor’s degrees awarded. To determine the percentage, use majors, not headcount (e.g., students with one degree but a double major will be represented twice). Calculate the percentage from your institution’s IPEDS Completions by using the sum of 1st and 2nd majors for each CIP code as the numerator and the sum of the Grand Total by 1st Majors and the Grand Total by 2nd major as the denominator. If you prefer, you can compute the percentages using 1st majors only."]
[null,null,null,null,"Category","Diploma/Certificates","Associate","Bachelor’s","CIP 2000 Categories to Include"]
[null,null,null,null,"Agriculture",null,null,null,1]
[null,null,null,null,"Natural resources/environmental science",null,null,null,3]
[null,null,null,null,"Architecture",null,null,null,4]
[null,null,null,null,"Area and ethnic studies",null,null,null,5]
[null,null,null,null,"Communications/journalism",null,null,null,9]
[null,null,null,null,"Communication technologies",null,null,null,10]
[null,null,null,null,"Computer and information sciences",null,null,null,11]
[null,null,null,null,"Personal and culinary services",null,null,null,12]
[null,null,null,null,"Education",null,null,null,13]
[null,null,null,null,"Engineering",null,null,null,14]
[null,null,null,null,"Engineering technologies",null,null,null,15]
[null,null,null,null,"Foreign languages and literature",null,null,null,16]
[null,null,null,null,"Family and consumer sciences",null,null,null,19]
[null,null,null,null,"Law/legal studies",null,null,null,22]
[null,null,null,null,"English",null,null,null,23]
[null,null,null,null,"Liberal arts/general studies",null,null,null,24]
[null,null,null,null,"Library science",null,null,null,25]
[null,null,null,null,"Biological/life sciences",null,null,null,26]
[null,null,null,null,"Mathematics",null,null,null,27]
[null,null,null,null,"Military science and technologies",null,null,null,29]
[null,null,null,null,"Interdisciplinary studies",null,null,null,30]
[null,null,null,null,"Parks and recreation",null,null,null,31]
[null,null,null,null,"Philosophy and religious studies",null,null,null,38]
[null,null,null,null,"Theology and religious vocations",null,null,null,39]
[null,null,null,null,"Physical sciences",null,null,null,40]
[null,null,null,null,"Science technologies",null,null,null,41]
[null,null,null,null,"Psychology",null,null,null,42]
[null,null,null,null,"Security and protective services",null,null,null,43]
[null,null,null,null,"Public administration and social services",null,null,null,44]
[null,null,null,null,"Social sciences ",null,null,null,45]
[null,null,null,null,"Construction trades",null,null,null,46]
[null,null,null,null,"Mechanic and repair technologies",null,null,null,47]
[null,null,null,null,"Precision production",null,null,null,48]
[null,null,null,null,"Transportation and materials moving",null,null,null,49]
[null,null,null,null,"Visual and performing arts",null,null,null,50]
[null,null,null,null,"Health professions and related sciences",null,null,null,51]
[null,null,null,null,"Business/marketing",null,null,null,52]
[null,null,null,null,"History",null,null,null,54]
[null,null,null,null,"Other"]
[null,null,null,null,"TOTAL (should = 100%)",{"$f":"SUM(F620:F658)","v":0},{"$f":"SUM(G620:G658)","v":0},{"$f":"SUM(H620:H658)","v":0}]

{"sheet":"Admissions","index":15,"n_rows":80,"n_cols":30,"rows_kept":80,"cut":false,"hidden":true,"merged":[[56,1,60,3],[56,0,60,0],[61,1,65,3],[61,0,65,0],[51,0,55,0],[51,1,55,3],[47,4,48,4],[47,5,48,5],[47,6,48,6],[47,7,48,7],[0,0,1,21],[6,2,6,4],[6,5,6,7],[6,8,6,9],[3,0,3,23],[5,1,5,9],[38,0,38,23],[45,0,46,2],[43,0,44,7],[47,3,48,3],[69,5,69,15],[67,0,67,23],[70,5,71,5],[70,6,70,7],[70,8,70,9],[70,10,70,11],[70,12,70,13],[70,14,70,15]]}
["West Chester University's Admissions Data Fall 2007 - Fall 2008"]
[]
[]
["First-Time Freshmen"]
[]
[null,"Applications, Acceptances, and Enrollment by Ethnicity and Gender"]
[null,null,"Fall 2007",null,null,"Fall 2008",null,null,"Total"]
[null," ","Male","Female","Total","Male","Female","Total","Change","%Change"]
[null,"African American"]
[null,"  Applied",517,958,1475,570,1136,1706,231,0.157]
[null,"  Accepted",149,311,460,155,332,487,27,5.8999999999999997E-2]
[null,"  Enrolled",58,132,190,69,132,201,11,5.8000000000000003E-2]
[null,"Native American"]
[null,"  Applied",13,22,35,13,30,43,8,0.22900000000000001]
[null,"  Accepted",2,14,16,5,19,24,8,0.5]
[null,"  Enrolled",1,8,9,2,3,5,-4,-0.44400000000000001]
[null,"Asian"]
[null,"  Applied",120,137,257,111,180,291,34,0.13200000000000001]
[null,"  Accepted",62,68,130,57,97,154,24,0.185]
[null,"  Enrolled",18,21,39,15,27,42,3,7.6999999999999999E-2]
[null,"Latino"]
[null,"  Applied",159,234,393,173,350,523,130,0.33100000000000002]
[null,"  Accepted",81,130,211,78,193,271,60,0.28399999999999997]
[null,"  Enrolled",22,40,62,26,64,90,28,0.45200000000000001]
[null,"Caucasian"]
[null,"  Applied",3716,6095,9811,4027,6483,10510,699,7.0999999999999994E-2]
[null,"  Accepted",1805,3170,4975,2017,3287,5304,329,6.6000000000000003E-2]
[null,"  Enrolled",641,1015,1656,644,994,1638,-18,-1.0999999999999999E-2]
[null,"NRA/Unknown"]
[null,"  Applied",115,142,257,122,158,280,23,8.8999999999999996E-2]
[null,"  Accepted",16,21,37,36,41,77,40,1.081]
[null,"  Enrolled",1,0,1,6,11,17,16,16]
[null,"Total"]
[null,"  Applied",4640,7588,12228,5016,8337,13353,1125,9.1999999999999998E-2]
[null,"  Accepted",2115,3714,5829,2348,3969,6317,488,8.4000000000000005E-2]
[null,"  Enrolled",741,1216,1957,762,1231,1993,36,1.7999999999999999E-2]
[]
[]
["Freshmen by Admit Type",null,null,null,null,null,null,null,null,null,null,null,null,null,null,null,null,null,null,null,null,null,null,null,8337,13353]
[]
[]
[]
[null,null,null,null,null,null,null,null,null,null,null,null,null,null,null,null,null,null,null,null,null,null,null,null,3969,6317]
["First Time Full-Time Freshmen by Admission Type",null,null,null,null,null,null,null,null,null,null,null,null,null,null,null,null,null,null,null,null,null,null,null,1231,1993]
[]
["Admittance Type",null,null,2004,2005,2006,2007,2008,null,null,null,null,null,null,null,null,null,null,null,null,null,null,null,null,"Admittance Type",2004,"blah","doing","haha","hehe"]
[null,null,null,"N","N",null,"N","N",null,null,null,null,null,null,null,null,null,null,null,null,null,null,null,null,"Regular",1534,1568,1564,1597,1597]
[null,null,null,{"$f":"INDEX(PRICE, AB60)","v":226},{"$f":"INDEX(AA47:AA50, AB60)","v":214},{"$f":"INDEX(AB47:AB50, AB60)","v":194},{"$f":"INDEX(AC47:AC50, AB60)","v":212},{"$f":"INDEX(AD47:AD50, AB60)","v":246},null,null,null,null,null,null,null,null,null,null,null,null,null,null,null,null,"ADP ACT 101",39,42,48,61,50]
[null,null,null,null,null,null,null,null,null,null,null,null,null,null,null,null,null,null,null,null,null,null,null,null,"ADP Non-ACT 101",80,77,79,87,100]
[null,null,null,null,null,null,null,null,null,null,null,null,null,null,null,null,null,null,null,null,null,null,null,null,"Special Admission",226,214,194,212,246]
[]
[]
[]
[]
[]
[]
[]
[]
[]
[null,null,null,null,null,null,null,null,null,null,null,null,null,null,null,null,null,null,null,null,null,null,null,null,null,null,null,4]
[]
[]
[]
[]
[]
[]
[]
["SAT"]
[]
[null,null,null,null,null,"SAT- Verbal Distribution"]
[null,null,null,null,null,"Score",2004,null,2005,null,2006,null,2007,null,2008]
[null,null,null,null,null,null,"N","%","N","%","N","%","N","%","N","%"]
[null,null,null,null,null,"700 - 800",21,1.1000000000000001,20,1.1000000000000001,21,1.1000000000000001,24,1.2,27,1.4]
[null,null,null,null,null,"600 - 699",285,15.2,294,15.5,252,13.4,261,13.3,255,12.8]
[null,null,null,null,null,"500 - 599",993,52.8,1058,55.7,1036,55,1073,54.8,1062,53.3]
[null,null,null,null,null,"400 - 499",538,28.6,492,25.9,539,28.6,530,27.1,587,29.5]
[null,null,null,null,null,"300 - 399",35,2,35,2,37,2,68,3.5,59,3]
[null,null,null,null,null,"200 - 299",0,0,0,0,0,0,1,0.1,1,0.1]
[null,null,null,null,null,"No Scores",7,0,2,0,0,0,0,0,2,0.1]
[null,null,null,null,null,"Total",1879,null,1901,null,1885,null,1957,null,1993]